Workbook

Sheet Tabeller (hidden)
A1: 2025 | C1: 0 | E1: -0.05 | G1: 01
A2: =A1+1 -> 2026 | C2: =C1+0.01 -> 0.01 | E2: =E1+0.01 -> -0.04 | G2: 02
A3: 2027 | C3: 0.02 | E3: =E2+0.01 -> -0.03 | G3: 03
A4: 2028 | C4: 0.03 | E4: -0.02 | G4: 04
A5: 2029 | C5: 0.04 | E5: -0.01 | G5: 05
A6: 2030 | C6: 0.05 | E6: 0 | G6: 06
A7: 2031 | C7: 0.06 | E7: 0.01 | G7: 07
A8: 2032 | C8: 0.07 | E8: 0.02 | G8: 08
A9: 2033 | C9: 0.08 | E9: 0.03 | G9: 09
A10: 2034 | C10: 0.09 | E10: 0.04 | G10: 10
A11: 2035 | C11: 0.1 | E11: =E10+0.01 -> 0.05 | G11: 11
A12: 2036 | G12: 12
A13: 2037
A14: 2038
A15: 2039
A16: 2040
A17: 2041
A18: 2042
A19: 2043
A20: 2044

Sheet Uppdragsforskning
B1: UPPDRAGSFORSKNING - FULL KOSTNADSTÄCKNINGSKALKYL
U3: Instruktioner Generellt Med knappen under rubriken väljs typ av mall, uppdrag / bidragskalkylmall. Det går alltid att hoppa mellan olika mallar utan att förlora inmatade uppgifter. De vita cellerna i mallen fylls i med värden och de färgade cellerna är beräkningar som filen gör automatiskt. Namn / beskrivningar som är ifyllda exempel bör raderas. Grupperingarna / plusknapparna (1, 2 och 3) ute till vänster i filen gör det möjligt att komprimera och expandera kostnads- / intäktsdetaljerna. Grupperingen / plusknappen längst upp (ovanför R kolumnen) ger utökade antal år. Vid behov kan ytterligare rader och även kolumner (för år) infogas, men då med viss försiktighet då formler inte följer med automatiskt. Vid behov av ytterligare rader är rekommenderat att kopiera en hel rad i mitten av de kostnader / intäkter där behov av ytterligare poster uppstår och sedan infoga hela den kopierade raden på samma rad. Vid behov av ytterligare år rekommenderas kontakt med EA eller att två seprata mallar nyttjas för uträkning men med olika projekt start år. Omf.% innebär omfattning av heltid Nyttj % innebär nyttjandegrad av resursen i procent Förbr % innebär förbrukningsgrad av resursen i procent
B6: Inledning för uppdrag Denna mall ska enbart nyttjas internt för beräkning av pris för uppdrag inom forskning. Syftet med att uppdragsforskningsverksamheten ska nyttja denna modell är för att prissättningen ska leda till att full kostnadstäckning uppnås. Modellen är också godkänd av Ekonomistyrningsverket (ESV) via samråd som förnyas vartannat år. Samtliga uppdragskalkyler som överskrider 100 000 kr ska skrivas under av prefekt, eller av den till vilken prefekten delegerat beslutsrätten. I dessa fall ska även ett exemplar av kalkylen diarieföras och sparas. Enligt § 3 Avgiftsförordning (1992:191) får Karolinska Institutet (KI) endast ta ut avgifter för varor och/eller tjänster som myndigheten tillhandahåller om det följer av lag eller förordning eller av ett särskilt beslut av regeringen. Enligt regleringsbrevet som är en årlig skrivelse och styrande dokument från riksdagen får KI bedriva uppdragsforskning. Det ekonomiska målet är bestämt i regleringsbrevet till full kostnadstäckning. Full kostnadstäckning innebär enkelt uttryckt att verksamheten varken får generera ett överskott eller underskott över tid. Detta innebär i praktiken att målet för varje enskilt uppdrags resultat bör vara +/-noll vid uppdragets slut eller då samtliga till uppdraget hänförliga kostnader har allokerats (exempelvis; avvecklingskostnader eller avskrivningar kan kostnadsföras även efter åtagandet har fullföljts). Det är även viktigt att denna verksamhet inte bedrivs med underskott, d.v.s. att KI inte skulle få täckning för samtliga kostnader av beställaren. Därav behöver man uppskatta de förväntade kostnaderna med god eftertanke. Detta får dock heller ej leda till att uppdragsforskningsverksamheten bedrivs med ett överskott som överstiger 10 procent av omsättningen mätt i innevarande års intäkter.
C26: GRUNDLÄGGANDE UPPGIFTER | U26: Grundläggande uppgifter Här väljs institutionskod i rullistan som påverkar de indirekta kostnaderna (INDI) både i denna mall men även värden i specifikations- och uppföljningsflikar. Innevarande år kommer upp automatiskt, men val av projektets start år påverkar Index av personal-, drift-, och lokalkostnader. För uppdrag redogörs även om projektet är internt, statligt, externt eller övrigt uppdrag och där moms av annan anldening ska exkluderas. Resten av fälten är fritextfält, men observera att framförallt projektnumret och även de andra fält hämtas upp av de övriga bladen.
C28: Institutionskod
C29: Innevrande år | D29: =Tabeller!$A$1 -> 2025
C30: Projektets start år/månad | D30: 2025 | E30: 01
C31: Projektets slut år/månad | D31: 2027
C33: =IF(LEFT(D28,2)="UF","","Internt/Statligt/Externt") -> Internt/Statligt/Externt
C35: Projektledare/-ansvarig
C36: Projektnummer - UBW
C37: Beskrivnig av projektet
C41: ="PROJEKTKOSTNADER"&" - "&LEFT($B$1,(LEN($B$1)-41)) -> PROJEKTKOSTNADER - UPPDRAG | U41: Personalkostnader
U42: Länk till stöd för beräkning av debiterbar månadsersättning
C43: A. Personalkostnader (gäller KI-personal) | H43: =IF($D$30="","",IF($D$29>$D$30,"Fel i grundläggande uppgifter",$D$30)) -> 2025 | J43: =IFERROR(H43+1,"") -> 2026 | L43: =IFERROR(J43+1,"") -> 2027 | N43: =IFERROR(L43+1,"") -> 2028 | P43: =IFERROR(N43+1,"") -> 2029 | U43: Beräkningen baserar sig på total månadsersättning och omfattning av heltid i projektet. Notera att kostnader för sjukvårdspersonal hamnar under drift. För bidragsforksning nyttjas bruttolön och standardtiden anges automatiskt, vilket motsvarar 1680 timmar per år på KI. För externa uppdrag ska månadsersättning baseras på debiterbar tid. Bruttolönen behöver beräknas om till debiterbar månadsersättning. Detta är högre än bruttolönen då avräkning för indirekt tid eller produktionsbortfall såsom egen- administration, utbildning och utvecklingsarbete görs. Mallen utgår ifrån en standard produktionsbortfall om 480 timmar, men denna kan enkelt justeras genom att ange nya siffror i beräkningsunderlaget längst ner i bladet. (se även länk ovan eller i rubriken för månadsersättning) Index för personalkostnader är satt till 2% ökning per år. LKP LKP (Lönekostnadspålägg) är en kostnad som de flesta arbetsgivare har för den anställda utöver den individuella bruttolönen som den anställda har. Detta är en standardsats som revideras centralt årligen.
H46: =IF($D$30="","",IF($D$29>$D$30,"Se fel i grundläggande uppgifter",$D$30)) -> 2025 | J46: =IFERROR(H46+1,"") -> 2026 | L46: =IFERROR(J46+1,"") -> 2027 | N46: =IFERROR(L46+1,"") -> 2028 | P46: =IFERROR(N46+1,"") -> 2029
C47: Namn/Roll | D47: Arbetsmoment/Beskrivning | F47: Antal timmar | G47: Debiterbar månadsers. (kr) | H47: Omf. % | I47: =IF($D$29=$D$30,"inkl. index 0%","inkl. index 4%") -> inkl. index 0% | J47: Omf. % | K47: inkl. index 3% | L47: Omf. % | M47: inkl. index 3% | N47: Omf. % | O47: inkl. index 3% | P47: Omf. % | Q47: inkl. index 3%
F48: =IF(H48+J48+L48+N48+P48=0,0,IF($D$33="Internt",(H48+J48+L48+N48+P48)*1680,(H48+J48+L48+N48+P48)*(1680-($D$170*8)))) -> 3600 | H48: 1 | I48: =IFERROR(IF(OR($D$29="",$D$30=""),"År saknas",(($G48*12)*H48*((1+(MID(I$47,12,2))/100)^(H$46-$D$29)))),0) -> 0 | J48: 1 | K48: =IFERROR(IF(OR($D$29="",$D$30=""),"År saknas",(($G48*12)*J48*((1+(MID(K$47,12,2))/100)^(J$46-$D$29)))),0) -> 0 | L48: 1 | M48: =IFERROR(IF(OR($D$29="",$D$30=""),"År saknas",(($G48*12)*L48*((1+(MID(M$47,12,2))/100)^(L$46-$D$29)))),0) -> 0 | O48: =IFERROR(IF(OR($D$29="",$D$30=""),"År saknas",(($G48*12)*N48*((1+(MID(O$47,12,2))/100)^(N$46-$D$29)))),0) -> 0 | Q48: =IFERROR(IF(OR($D$29="",$D$30=""),"År saknas",(($G48*12)*P48*((1+(MID(Q$47,12,2))/100)^(P$46-$D$29)))),0) -> 0
F49: 0 | I49: =IFERROR(IF(OR($D$29="",$D$30=""),"År saknas",(($G49*12)*H49*((1+(MID(I$47,12,2))/100)^(H$46-$D$29)))),0) -> 0 | K49: 0 | M49: 0 | O49: 0 | Q49: 0
F50: 0 | I50: 0 | K50: 0 | M50: 0 | O50: 0 | Q50: 0
F51: 0 | I51: 0 | K51: 0 | M51: 0 | O51: 0 | Q51: 0
F52: 0 | I52: 0 | K52: 0 | M52: 0 | O52: 0 | Q52: 0
F53: 0 | I53: 0 | K53: 0 | M53: 0 | O53: 0 | Q53: 0
F54: 0 | I54: 0 | K54: 0 | M54: 0 | O54: 0 | Q54: 0
F55: 0 | I55: 0 | K55: 0 | M55: 0 | O55: 0 | Q55: 0
F56: 0 | I56: 0 | K56: 0 | M56: 0 | O56: 0 | Q56: 0
F57: 0 | I57: 0 | K57: 0 | M57: 0 | O57: 0 | Q57: 0
C59: Summa Personalkostnader exkl. lönekostnadspålägg (LKP) | F59: =SUM(F$48:F57) -> 3600 | G59: =SUM(G$48:G57) -> 0 | H59: =SUM(I$48:I57) -> 0 | J59: =SUM(K$48:K57) -> 0 | L59: =SUM(M$48:M57) -> 0 | N59: =SUM(O$48:O57) -> 0 | P59: =SUM(Q$48:Q57) -> 0
C61: Sociala avgifter (LKP) - 2024 | G61: 0.5501
C62: Semestertillägg | G62: 0.0185
F63: LKP Total | G63: =SUM(G61:G62) -> 0.5686
C65: Summa personalkostnad där lönekostnadspålägg (LKP) ingår | H65: =H59*(1+$G63) -> 0 | J65: =J59*(1+$G63) -> 0 | L65: =L59*(1+$G63) -> 0 | N65: =N59*(1+$G63) -> 0 | P65: =P59*(1+$G63) -> 0
C67: B. Driftkostnader
C70: B.1 Resekostnader
H72: =IF($D$30="","",IF($D$29>$D$30,"Fel i grunduppgifter",$D$30)) -> 2025 | J72: =IFERROR(H72+1,"") -> 2026 | L72: =IFERROR(J72+1,"") -> 2027 | N72: =IFERROR(L72+1,"") -> 2028 | P72: =IFERROR(N72+1,"") -> 2029
C73: Resekostnader - beskrivning | G73: Kostnad att fördela -> | H73: Förbr. % | I73: =IF($D$29=$D$30,"inkl. index 0%","inkl. index 3%") -> inkl. index 0% | J73: Förbr. % | K73: inkl. index 3% | L73: Förbr. % | M73: inkl. index 3% | N73: Förbr. % | O73: inkl. index 3% | P73: Förbr. % | Q73: inkl. index 3%
C74: Resa 1 | I74: =IF(OR($D$29="",$D$30=""),"År saknas",(($G74)*H74)*((1+(MID(I$73,12,2))/100)^(H$72-$D$29))) -> 0 | K74: =IF(OR($D$29="",$D$30=""),"År saknas",(($G74)*J74)*((1+(MID(K$73,12,2))/100)^(J$72-$D$29))) -> 0 | M74: =IF(OR($D$29="",$D$30=""),"År saknas",(($G74)*L74)*((1+(MID(M$73,12,2))/100)^(L$72-$D$29))) -> 0 | O74: =IF(OR($D$29="",$D$30=""),"År saknas",(($G74)*N74)*((1+(MID(O$73,12,2))/100)^(N$72-$D$29))) -> 0 | Q74: =IF(OR($D$29="",$D$30=""),"År saknas",(($G74)*P74)*((1+(MID(Q$73,12,2))/100)^(P$72-$D$29))) -> 0
C75: Resa 2 | I75: =IF(OR($D$29="",$D$30=""),"År saknas",(($G75)*H75)*((1+(MID(I$73,12,2))/100)^(H$72-$D$29))) -> 0 | K75: =IF(OR($D$29="",$D$30=""),"År saknas",(($G75)*J75)*((1+(MID(K$73,12,2))/100)^(J$72-$D$29))) -> 0 | M75: =IF(OR($D$29="",$D$30=""),"År saknas",(($G75)*L75)*((1+(MID(M$73,12,2))/100)^(L$72-$D$29))) -> 0 | O75: =IF(OR($D$29="",$D$30=""),"År saknas",(($G75)*N75)*((1+(MID(O$73,12,2))/100)^(N$72-$D$29))) -> 0 | Q75: =IF(OR($D$29="",$D$30=""),"År saknas",(($G75)*P75)*((1+(MID(Q$73,12,2))/100)^(P$72-$D$29))) -> 0
C76: Resa 3 | I76: =IF(OR($D$29="",$D$30=""),"År saknas",(($G76)*H76)*((1+(MID(I$73,12,2))/100)^(H$72-$D$29))) -> 0 | K76: =IF(OR($D$29="",$D$30=""),"År saknas",(($G76)*J76)*((1+(MID(K$73,12,2))/100)^(J$72-$D$29))) -> 0 | M76: =IF(OR($D$29="",$D$30=""),"År saknas",(($G76)*L76)*((1+(MID(M$73,12,2))/100)^(L$72-$D$29))) -> 0 | O76: =IF(OR($D$29="",$D$30=""),"År saknas",(($G76)*N76)*((1+(MID(O$73,12,2))/100)^(N$72-$D$29))) -> 0 | Q76: =IF(OR($D$29="",$D$30=""),"År saknas",(($G76)*P76)*((1+(MID(Q$73,12,2))/100)^(P$72-$D$29))) -> 0
C78: Summa resekostnader | H78: =SUM(I$74:I76) -> 0 | J78: =SUM(K$74:K76) -> 0 | L78: =SUM(M$74:M76) -> 0 | N78: =SUM(O$74:O76) -> 0 | P78: =SUM(Q$74:Q76) -> 0
C80: B.1 Direkta driftkostnader (Lokal- och KI-interna kostnader kommer under övriga drifkostnader) | U80: Drifkostnader Hit förs alla typer av driftkostnader som är direkt förknippade med projektet. Detta kan innefatta för projektet nödvändig litteratur, kemikalier, laboratorieutrustning, konsultkostnader, resor (inkl. brutto av eventuella skattepliktiga traktamenten). Beloppet anges som en total kostnad för projektet på respektive rad sedan anges förbrukning av resursen för respektive år som procent, 100% motsvarar alltså hela kostnaden för det året.
H81: =IF($D$30="","",IF($D$29>$D$30,"Se fel i grundläggande uppgifter",$D$30)) -> 2025 | J81: =IFERROR(H81+1,"") -> 2026 | L81: =IFERROR(J81+1,"") -> 2027 | N81: =IFERROR(L81+1,"") -> 2028 | P81: =IFERROR(N81+1,"") -> 2029
C82: Driftkostnader - beskrivning | G82: Kostnad att fördela -> | H82: Förbr. % | I82: =IF($D$29=$D$30,"inkl. index 0%","inkl. index 1%") -> inkl. index 0% | J82: Förbr. % | K82: inkl. index 1,0% | L82: Förbr. % | M82: inkl. index 1,0% | N82: Förbr. % | O82: inkl. index 1,0% | P82: Förbr. % | Q82: inkl. index 1,0%
C83: Instrument | I83: =IF(OR($D$29="",$D$30=""),"År saknas",(($G83)*H83)*((1+(MID(I$82,12,2))/100)^(H$81-$D$29))) -> 0 | K83: =IF(OR($D$29="",$D$30=""),"År saknas",(($G83)*J83)*((1+(MID(K$82,12,2))/100)^(J$81-$D$29))) -> 0 | M83: =IF(OR($D$29="",$D$30=""),"År saknas",(($G83)*L83)*((1+(MID(M$82,12,2))/100)^(L$81-$D$29))) -> 0 | O83: =IF(OR($D$29="",$D$30=""),"År saknas",(($G83)*N83)*((1+(MID(O$82,12,2))/100)^(N$81-$D$29))) -> 0 | Q83: =IF(OR($D$29="",$D$30=""),"År saknas",(($G83)*P83)*((1+(MID(Q$82,12,2))/100)^(P$81-$D$29))) -> 0
C84: Konsulttid | I84: 0 | K84: 0 | M84: 0 | O84: 0 | Q84: 0
C85: Litteratur | I85: 0 | K85: 0 | M85: 0 | O85: 0 | Q85: 0
C86: Djur | I86: 0 | K86: 0 | M86: 0 | O86: 0 | Q86: 0
I87: 0 | K87: 0 | M87: 0 | O87: 0 | Q87: 0
I88: 0 | K88: 0 | M88: 0 | O88: 0 | Q88: 0
I89: 0 | K89: 0 | M89: 0 | O89: 0 | Q89: 0
I90: 0 | K90: 0 | M90: 0 | O90: 0 | Q90: 0
C92: Summa Direkta driftkostnader | H92: =SUM(I$83:I90) -> 0 | J92: =SUM(K$83:K90) -> 0 | L92: =SUM(M$83:M90) -> 0 | N92: =SUM(O$83:O90) -> 0 | P92: =SUM(Q$83:Q90) -> 0
C94: B.2 Övriga driftkostnader (dessa exkluderas från INDI) | U94: Övriga driftkostnader Avskrivningar, Lokalkostnader och interna kostnader genererar ingen INDI i den mån kalkylen inkluderar detta. Anläggningar Ange den kvarvarande ekonomiska livslängden och investeringskostnaden (nettofakturabelopp) eller restvärde vid befintliga anläggningar. Nyttjandegrad kan uppskattas eller beräknas genom att ta den totala tiden som anläggningen kommer nyttjas respektive år med den totala möjliga nyttjandetiden för anläggningen per år. Lokalkostnader Hit förs alla kostnader för de lokaler som nyttjas samt eventuella kostnader för städning och gemensamma ytor. Uppgifter om ytor och kostnd erhålls oftast från institutionens administration. Interna kostnader Hit förs interna kostnader som uppstår av produkter eller tjänster som tillhandahålls från andra delar av KI, vilket ska inkludera motpartens indirekta kostnader (INDI)
H96: =IF($D$30="","",IF($D$29>$D$30,"Se fel i grundläggande uppgifter",$D$30)) -> 2025 | J96: =IFERROR(H96+1,"") -> 2026 | L96: =IFERROR(J96+1,"") -> 2027 | N96: =IFERROR(L96+1,"") -> 2028 | P96: =IFERROR(N96+1,"") -> 2029
C97: Anläggning - beskrivning | F97: Eko. livslängd | G97: Investeringskostnad | H97: Nyttj. % | I97: =IF($D$29=$D$30,"inkl. index 0%","inkl. index 0%") -> inkl. index 0% | J97: Nyttj. % | K97: inkl. index 0% | L97: Nyttj. % | M97: inkl. index 0% | N97: Nyttj. % | O97: inkl. index 0% | P97: Nyttj. % | Q97: inkl. index 0%
C98: anl 1 | I98: =IFERROR(IF((H$96-$D$30)>=((IF(LEN($F98)=4,LEFT($F98,1),LEFT($F98,2)))*1),"*livslängd < proj-tid",(($G98/(IF(LEN($F98)=4,LEFT($F98,1),LEFT($F98,2))))*H98)*((1+(MID(I$97,12,2))/100)^(H$96-$D$29))),0) -> 0 | K98: =IFERROR(IF((J$96-$D$30)>=((IF(LEN($F98)=4,LEFT($F98,1),LEFT($F98,2)))*1),"*livslängd < proj-tid",(($G98/(IF(LEN($F98)=4,LEFT($F98,1),LEFT($F98,2))))*J98)*((1+(MID(K$97,12,2))/100)^(J$96-$D$29))),0) -> 0 | M98: =IFERROR(IF((L$96-$D$30)>=((IF(LEN($F98)=4,LEFT($F98,1),LEFT($F98,2)))*1),"*livslängd < proj-tid",(($G98/(IF(LEN($F98)=4,LEFT($F98,1),LEFT($F98,2))))*L98)*((1+(MID(M$97,12,2))/100)^(L$96-$D$29))),0) -> 0 | O98: =IFERROR(IF((N$96-$D$30)>=((IF(LEN($F98)=4,LEFT($F98,1),LEFT($F98,2)))*1),"*livslängd < proj-tid",(($G98/(IF(LEN($F98)=4,LEFT($F98,1),LEFT($F98,2))))*N98)*((1+(MID(O$97,12,2))/100)^(N$96-$D$29))),0) -> 0 | Q98: =IFERROR(IF((P$96-$D$30)>=((IF(LEN($F98)=4,LEFT($F98,1),LEFT($F98,2)))*1),"*livslängd < proj-tid",(($G98/(IF(LEN($F98)=4,LEFT($F98,1),LEFT($F98,2))))*P98)*((1+(MID(Q$97,12,2))/100)^(P$96-$D$29))),0) -> 0
I99: =IFERROR(IF((H$96-$D$30)>=((IF(LEN($F99)=4,LEFT($F99,1),LEFT($F99,2)))*1),"*livslängd < proj-tid",(($G99/(IF(LEN($F99)=4,LEFT($F99,1),LEFT($F99,2))))*H99)*((1+(MID(I$97,12,2))/100)^(H$96-$D$29))),0) -> 0 | K99: =IFERROR(IF((J$96-$D$30)>=((IF(LEN($F99)=4,LEFT($F99,1),LEFT($F99,2)))*1),"*livslängd < proj-tid",(($G99/(IF(LEN($F99)=4,LEFT($F99,1),LEFT($F99,2))))*J99)*((1+(MID(K$97,12,2))/100)^(J$96-$D$29))),0) -> 0 | M99: =IFERROR(IF((L$96-$D$30)>=((IF(LEN($F99)=4,LEFT($F99,1),LEFT($F99,2)))*1),"*livslängd < proj-tid",(($G99/(IF(LEN($F99)=4,LEFT($F99,1),LEFT($F99,2))))*L99)*((1+(MID(M$97,12,2))/100)^(L$96-$D$29))),0) -> 0 | O99: =IFERROR(IF((N$96-$D$30)>=((IF(LEN($F99)=4,LEFT($F99,1),LEFT($F99,2)))*1),"*livslängd < proj-tid",(($G99/(IF(LEN($F99)=4,LEFT($F99,1),LEFT($F99,2))))*N99)*((1+(MID(O$97,12,2))/100)^(N$96-$D$29))),0) -> 0 | Q99: =IFERROR(IF((P$96-$D$30)>=((IF(LEN($F99)=4,LEFT($F99,1),LEFT($F99,2)))*1),"*livslängd < proj-tid",(($G99/(IF(LEN($F99)=4,LEFT($F99,1),LEFT($F99,2))))*P99)*((1+(MID(Q$97,12,2))/100)^(P$96-$D$29))),0) -> 0
H101: =IF($D$30="","",IF($D$29>$D$30,"Se fel i grundläggande uppgifter",$D$30)) -> 2025 | J101: =IFERROR(H101+1,"") -> 2026 | L101: =IFERROR(J101+1,"") -> 2027 | N101: =IFERROR(L101+1,"") -> 2028 | P101: =IFERROR(N101+1,"") -> 2029
C102: Lokalkostnader - beskrivning | F102: Lokal yta kvm | G102: Kvm kostnad / år | H102: Nyttj. % | I102: =IF($D$29=$D$30,"inkl. index 0%","inkl. index 1%") -> inkl. index 0% | J102: Nyttj. % | K102: inkl. index 1% | L102: Nyttj. % | M102: inkl. index 1% | N102: Nyttj. % | O102: inkl. index 1% | P102: Nyttj. % | Q102: inkl. index 1%
C103: Kontor1 | I103: =IF(OR($D$29="",$D$30=""),"År saknas",(($F103*$G103)*H103)*((1+(MID(I$102,12,2))/100)^(H$101-$D$29))) -> 0 | K103: =IF(OR($D$29="",$D$30=""),"År saknas",(($F103*$G103)*J103)*((1+(MID(K$102,12,2))/100)^(J$101-$D$29))) -> 0 | M103: =IF(OR($D$29="",$D$30=""),"År saknas",(($F103*$G103)*L103)*((1+(MID(M$102,12,2))/100)^(L$101-$D$29))) -> 0 | O103: =IF(OR($D$29="",$D$30=""),"År saknas",(($F103*$G103)*N103)*((1+(MID(O$102,12,2))/100)^(N$101-$D$29))) -> 0 | Q103: =IF(OR($D$29="",$D$30=""),"År saknas",(($F103*$G103)*P103)*((1+(MID(Q$102,12,2))/100)^(P$101-$D$29))) -> 0
C104: Lab1 | I104: =IF(OR($D$29="",$D$30=""),"År saknas",(($F104*$G104)*H104)*((1+(MID(I$102,12,2))/100)^(H$101-$D$29))) -> 0 | K104: =IF(OR($D$29="",$D$30=""),"År saknas",(($F104*$G104)*J104)*((1+(MID(K$102,12,2))/100)^(J$101-$D$29))) -> 0 | M104: =IF(OR($D$29="",$D$30=""),"År saknas",(($F104*$G104)*L104)*((1+(MID(M$102,12,2))/100)^(L$101-$D$29))) -> 0 | O104: =IF(OR($D$29="",$D$30=""),"År saknas",(($F104*$G104)*N104)*((1+(MID(O$102,12,2))/100)^(N$101-$D$29))) -> 0 | Q104: =IF(OR($D$29="",$D$30=""),"År saknas",(($F104*$G104)*P104)*((1+(MID(Q$102,12,2))/100)^(P$101-$D$29))) -> 0
I105: =IF(OR($D$29="",$D$30=""),"År saknas",(($F105*$G105)*H105)*((1+(MID(I$102,12,2))/100)^(H$101-$D$29))) -> 0 | K105: =IF(OR($D$29="",$D$30=""),"År saknas",(($F105*$G105)*J105)*((1+(MID(K$102,12,2))/100)^(J$101-$D$29))) -> 0 | M105: =IF(OR($D$29="",$D$30=""),"År saknas",(($F105*$G105)*L105)*((1+(MID(M$102,12,2))/100)^(L$101-$D$29))) -> 0 | O105: =IF(OR($D$29="",$D$30=""),"År saknas",(($F105*$G105)*N105)*((1+(MID(O$102,12,2))/100)^(N$101-$D$29))) -> 0 | Q105: =IF(OR($D$29="",$D$30=""),"År saknas",(($F105*$G105)*P105)*((1+(MID(Q$102,12,2))/100)^(P$101-$D$29))) -> 0
H107: =IF($D$30="","",IF($D$29>$D$30,"Se fel i grundläggande uppgifter",$D$30)) -> 2025 | J107: =IFERROR(H107+1,"") -> 2026 | L107: =IFERROR(J107+1,"") -> 2027 | N107: =IFERROR(L107+1,"") -> 2028 | P107: =IFERROR(N107+1,"") -> 2029
C108: Interna kostnader och eventuell INDI-befriad verksamhet - beskrivning | G108: Kostnad att fördela -> | H108: Förbr. % | I108: =IF($D$29=$D$30,"inkl. index 0%","inkl. index 0%") -> inkl. index 0% | J108: Förbr. % | K108: inkl. index 0% | L108: Förbr. % | M108: inkl. index 0% | N108: Förbr. % | O108: inkl. index 0% | P108: Förbr. % | Q108: inkl. index 0%
C109: Interntjänst1, inkl. motpartens INDI | I109: =IF(OR($D$29="",$D$30=""),"År saknas",(($G109)*H109)*((1+(MID(I$108,12,2))/100)^(H$107-$D$29))) -> 0 | K109: =IF(OR($D$29="",$D$30=""),"År saknas",(($G109)*J109)*((1+(MID(K$108,12,2))/100)^(J$107-$D$29))) -> 0 | M109: =IF(OR($D$29="",$D$30=""),"År saknas",(($G109)*L109)*((1+(MID(M$108,12,2))/100)^(L$107-$D$29))) -> 0 | O109: =IF(OR($D$29="",$D$30=""),"År saknas",(($G109)*N109)*((1+(MID(O$108,12,2))/100)^(N$107-$D$29))) -> 0 | Q109: =IF(OR($D$29="",$D$30=""),"År saknas",(($G109)*P109)*((1+(MID(Q$108,12,2))/100)^(P$107-$D$29))) -> 0
C110: IT avgift 10 400 kr per anställd/anknuten och år (2022) | I110: =IF(OR($D$29="",$D$30=""),"År saknas",(($G110)*H110)*((1+(MID(I$108,12,2))/100)^(H$107-$D$29))) -> 0 | K110: =IF(OR($D$29="",$D$30=""),"År saknas",(($G110)*J110)*((1+(MID(K$108,12,2))/100)^(J$107-$D$29))) -> 0 | M110: =IF(OR($D$29="",$D$30=""),"År saknas",(($G110)*L110)*((1+(MID(M$108,12,2))/100)^(L$107-$D$29))) -> 0 | O110: =IF(OR($D$29="",$D$30=""),"År saknas",(($G110)*N110)*((1+(MID(O$108,12,2))/100)^(N$107-$D$29))) -> 0 | Q110: =IF(OR($D$29="",$D$30=""),"År saknas",(($G110)*P110)*((1+(MID(Q$108,12,2))/100)^(P$107-$D$29))) -> 0
I111: =IF(OR($D$29="",$D$30=""),"År saknas",(($G111)*H111)*((1+(MID(I$108,12,2))/100)^(H$107-$D$29))) -> 0 | K111: =IF(OR($D$29="",$D$30=""),"År saknas",(($G111)*J111)*((1+(MID(K$108,12,2))/100)^(J$107-$D$29))) -> 0 | M111: =IF(OR($D$29="",$D$30=""),"År saknas",(($G111)*L111)*((1+(MID(M$108,12,2))/100)^(L$107-$D$29))) -> 0 | O111: =IF(OR($D$29="",$D$30=""),"År saknas",(($G111)*N111)*((1+(MID(O$108,12,2))/100)^(N$107-$D$29))) -> 0 | Q111: =IF(OR($D$29="",$D$30=""),"År saknas",(($G111)*P111)*((1+(MID(Q$108,12,2))/100)^(P$107-$D$29))) -> 0
C113: Summa Övriga kostnader | H113: =SUM(I$98:I99)+SUM(I$109:I111)+SUM(I$103:I105) -> 0 | J113: =SUM(K$98:K99)+SUM(K$109:K111)+SUM(K$103:K105) -> 0 | L113: =SUM(M$98:M99)+SUM(M$109:M111)+SUM(M$103:M105) -> 0 | N113: =SUM(O$98:O99)+SUM(O$109:O111)+SUM(O$103:O105) -> 0 | P113: =SUM(Q$98:Q99)+SUM(Q$109:Q111)+SUM(Q$103:Q105) -> 0
C115: Summa Driftkostnader | H115: =H113+H92+H78 -> 0 | J115: =J113+J92+J78 -> 0 | L115: =L113+L92+L78 -> 0 | N115: =N113+N92+N78 -> 0 | P115: =P113+P92+P78 -> 0
U116: Gemensamma kostnader Indirekta kostnader (INDI) Dessa innefattar oftast universitets- och fakultetsgemensamma kostnader samt institutionsgemensamma kostnader. Här finns även möjlighet att göra ned- eller uppräkning av INDI (kan nyttjas vid flerårigt projekt).
C117: C. Gemensamma kostnader
C119: =IF(LEFT($D$28,2)="UF",$D$28,"Universitetsgem.") -> Universitetsgem. | G119: =IF($D$28="",0,IF(LEFT($D$28,2)="UF",VLOOKUP($C$141,'INDI FO 2025'!$C:$G,5,0),VLOOKUP(LEFT($D$28,2),'INDI FO 2025'!$A:$G,6,0))) -> 0
C120: =IF(LEFT($D$28,2)="UF","","Institutionsgem.") -> Institutionsgem. | G120: =IF($D$28="",0,IF(LEFT($D$28,2)="UF","",VLOOKUP(LEFT($D$28,2),'INDI FO 2025'!$A:$G,4,0))) -> 0
C121: Ned- / Uppräkning av INDI | G121: 0
G122: =SUM(G119:G121) -> 0
C124: Summa Indirekta kostnader | H124: =((H92+H65+H78)*$G122) -> 0 | J124: =((J92+J65+J78)*$G122) -> 0 | L124: =((L92+L65+L78)*$G122) -> 0 | N124: =((N92+N65+N78)*$G122) -> 0 | P124: =((P92+P65+P78)*$G122) -> 0
C126: D. Riskpåslag
U127: Riskpåslag/Säkerhetsmarginal Riskpåslag kan nyttjas när det finns väsentliga osäkerheter kopplade till uppskattning av kostnaderna. Rekommenderat riskpåslag är 3% på uppdrag, dock ska hänsyn tas till historiks utveckling inom verksamheten.
C128: Riskpåslag/Säkerhetsmarginal | G128: 0
C131: SUMMA PROJEKTKOSTNADER | H131: =(H65+H115+H124)*(1+$G128) -> 0 | J131: =(J65+J115+J124)*(1+$G128) -> 0 | L131: =(L65+L115+L124)*(1+$G128) -> 0 | N131: =(N65+N115+N124)*(1+$G128) -> 0 | P131: =(P65+P115+P124)*(1+$G128) -> 0
C134: KOSTNADSSPECIFIKATION | U134: Kostnadsspecifikation Här redogörs de totala förväntade kostnaderna för projektet och som är underlag för prissättning. Summa exklusive moms debiteras internt och från statliga myndigheter samt utlandet i de flesta fall, och summa inklusive moms debiteras övriga organisationer och företag. Välj externt uppdrag i grundläggande uppgifter vid behov av moms och internt, statligt eller övrigt utan moms då moms inte ska debiteras. Underskrifter Om nettoomsättnming överskrider 100 000 kr är godkännande från Universitetsdirektören obligatorisk för uppdrag.
C136: Timkostnad (personalkostnad exklusive indirekta kostnader) | F136: =IFERROR(F59&"h á "&(ROUND(((SUM($H65:Q65)+SUM($H124:Q124))/$F59)*(1+$G128),0)&"kr"),"") -> 3600h á 0kr | G136: =(ROUND((SUM($H65:Q65)),0)*(1+$G128)) -> 0
C137: Indirekt kostnad | G137: =H124 -> 0
C138: Driftkostnad | G138: =ROUND(SUM($H115:Q115),0)*(1+$G128) -> 0
C140: SUMMA KOSTNADER (EXKL MOMS) | G140: =(SUM($H65:Q65)+SUM($H113:Q113)+SUM($H124:Q124)+SUM($H92:Q92))*(1+$G128) -> 0
C142: =IF(G142="","Moms redogörs här vid externa uppdrag","VARAV MOMS") -> VARAV MOMS | G142: =IF(G143="","",G143-G140) -> 0
C143: =IF(G143="","Internt, statligt och oftast utländska uppdrag debiteras exkl moms","SUMMA KOSTNADER (INKL 25% MOMS)") -> SUMMA KOSTNADER (INKL 25% MOMS) | G143: =IF(OR($D$28="UF - Internt",$D$33="Internt",$D$33="Statligt",$D$33="Övr. utan moms",),"",G140*1.25) -> 0
C146: Projektledare/-ansvarig | E146: Kontrollerad av inst.-ekonom / motsvarande | G146: Prefekt / med motsvarande beslutsrätt
C149: Signatur | E149: Signatur | G149: Signatur
C152: Namnförtydligande | E152: Namnförtydligande | G152: Namnförtydligande
U155: Beräkning av debiterbar månadsersättning och tid (exkl. LKP) I den mån det är ett externt uppdrag ska avärkning göras för indirekt tid eller produktionsbortfall såsom egen- administration, utbildning och utvecklingsarbete ske. Det som är individuellt och kan ändras i kalkylen är: - månadslön (här anger individens bruttomånadslön exkl. LKP) - antalet semesterdagar som individen har (ex. 7 veckor är 35 dagar) - övrig betald ledighet i dagar (ex. avtalad friskvårdstimmar eller liknande) I den mån projektet är ett externt uppdrag ska även hänsyn tas till övrig ineffektiv betald arbetstid (produktionsbortfall) som kan vara: - egen administration som inte är förknippad med något projekt - egen utveckling, så som utbildningar och annat - generella resor och arrangemang som är personalhälsofrämjande
C156: BERÄKNING AV DEBITERBAR MÅNADSERSÄTTNING OCH TID (Exkl. LKP)
C158: Ange månadslön (hela kronor):
C160: Arbetstid på årsbas | D160: Dagar | E160: Timmar totalt
C161: 52 veckor x 40 tim (heltid) | D161: 260 | E161: =52*40 -> 2080
C162: - 2 veckor helgdagar avgår | D162: 10 | E162: =2*40 -> 80
C163: Betald tid | D163: =D161-D162 -> 250 | E163: =E161-E162 -> 2000
C164: - betalda semesterdagar | D164: 35 | E164: =D164*8 -> 280
C165: - övrig betald frånvaro | D165: 5 | E165: =D165*8 -> 40
C166: STANDARDTID | D166: =D163-D164-D165 -> 210 | E166: =E163-E164-E165 -> 1680
C167: - egen administration | D167: 10 | E167: =D167*8 -> 80
C168: - egen utveckling etc | D168: 25 | E168: =D168*8 -> 200
C169: - resor, sammankomster | D169: 25 | E169: =D169*8 -> 200
C170: Summa indirekt tid | D170: =SUM(D167:D169) -> 60 | E170: =SUM(E167:E169) -> 480
C171: DEBITERBAR TID (DIREKT TID) | D171: =D166-D170 -> 150 | E171: =E166-E170 -> 1200
C173: =IF(G173=0,"Ange månadslön","Månadsersättning exkl. LKP Interna uppdrag:") -> Ange månadslön | E173: =E158/E171*E171 -> 0 | F173: kr per månad | G173: =ROUND(E158/(E166/12),2) -> 0 | H173: kr/tim
C175: =IF(G175=0,"Ange månadslön","Månadsersättning exkl. LKP Externa uppdrag:") -> Ange månadslön | E175: =E158/E171*E166 -> 0 | F175: kr per månad | G175: =ROUND(E158/(E171/12),2) -> 0 | H175: kr/tim

Sheet Inläsning Planner uppdrag (hidden)
B1: UPPDRAGSFORSKNING - STÖD FÖR BUDGET TILL UBW
B3: Inledning Denna flik summerar kostnader och intäkter som fyllts in i kalkylfliken och återvisar dem i en budget modell som kan enkelt föras in i UBWs Saldo tabell för uppföljningsändamål. Posterna hämtas till olika konton beroende på vad som fyllts i under respektive rubrik i kalkylen. Det är möjligt att välja antingen att föra in totala förväntad utfall på första året, det under första rubriken nedan, eller en årsfördelad from första året och framåt som finns under rubriken årsfördelad budget. OBS! Kopiera endast gråa fält och klistra in direkt i UBW (Ctrl + C & Ctrl + V). Se gärna UBW handbok på medarbetarportalen för ytterligare instruktioner om hur funktionen nyttjas.
C11: TOTAL BUDGET
C13: RR2 | D13: Beskrivning | E13: Konto | F13: Proj | G13: Per från | H13: Per till | I13: Budget (BB) | J13: Text
C14: 11 | D14: Intäkter avgifter | E14: 3313 | F14: =IF(Uppdragsforskning!$D$36="","Ange projektnummer",Uppdragsforskning!$D$36) -> Ange projektnummer | G14: =IF(OR(Uppdragsforskning!$D$30="",Uppdragsforskning!$E$30=""),"Ange start år/månad",Uppdragsforskning!$D$30&Uppdragsforskning!$E$30) -> 202501 | H14: =IF(OR(Uppdragsforskning!$D$31="",Uppdragsforskning!$E$31=""),"Ange slut år/månad",Uppdragsforskning!$D$31&Uppdragsforskning!$E$31) -> Ange slut år/månad | I14: =I26+I34+I42+I50+I58 -> 0 | J14: ="Budget totalt "&Uppdragsforskning!$D$36&"" -> Budget totalt
C15: 21 | D15: Personalkostnader | E15: 4011 | F15: =IF(Uppdragsforskning!$D$36="","Ange projektnummer",Uppdragsforskning!$D$36) -> Ange projektnummer | G15: =IF(OR(Uppdragsforskning!$D$30="",Uppdragsforskning!$E$30=""),"Ange start år/månad",Uppdragsforskning!$D$30&Uppdragsforskning!$E$30) -> 202501 | H15: =IF(OR(Uppdragsforskning!$D$31="",Uppdragsforskning!$E$31=""),"Ange slut år/månad",Uppdragsforskning!$D$31&Uppdragsforskning!$E$31) -> Ange slut år/månad | I15: =I27+I35+I43+I51+I59 -> 0 | J15: ="Budget totalt "&Uppdragsforskning!$D$36&"" -> Budget totalt
C16: 211 | D16: Gemensamma kostnader (INDI) | E16: 49988 | F16: =IF(Uppdragsforskning!$D$36="","Ange projektnummer",Uppdragsforskning!$D$36) -> Ange projektnummer | G16: =IF(OR(Uppdragsforskning!$D$30="",Uppdragsforskning!$E$30=""),"Ange start år/månad",Uppdragsforskning!$D$30&Uppdragsforskning!$E$30) -> 202501 | H16: =IF(OR(Uppdragsforskning!$D$31="",Uppdragsforskning!$E$31=""),"Ange slut år/månad",Uppdragsforskning!$D$31&Uppdragsforskning!$E$31) -> Ange slut år/månad | I16: =I28+I36+I44+I52+I60 -> 0 | J16: ="Budget totalt "&Uppdragsforskning!$D$36&"" -> Budget totalt
C17: 22 | D17: Lokalkostnader | E17: 50111 | F17: =IF(Uppdragsforskning!$D$36="","Ange projektnummer",Uppdragsforskning!$D$36) -> Ange projektnummer | G17: =IF(OR(Uppdragsforskning!$D$30="",Uppdragsforskning!$E$30=""),"Ange start år/månad",Uppdragsforskning!$D$30&Uppdragsforskning!$E$30) -> 202501 | H17: =IF(OR(Uppdragsforskning!$D$31="",Uppdragsforskning!$E$31=""),"Ange slut år/månad",Uppdragsforskning!$D$31&Uppdragsforskning!$E$31) -> Ange slut år/månad | I17: =I29+I37+I45+I53+I61 -> 0 | J17: ="Budget totalt "&Uppdragsforskning!$D$36&"" -> Budget totalt
C18: 23 | D18: Resekostnader | E18: 5522 | F18: =IF(Uppdragsforskning!$D$36="","Ange projektnummer",Uppdragsforskning!$D$36) -> Ange projektnummer | G18: =IF(OR(Uppdragsforskning!$D$30="",Uppdragsforskning!$E$30=""),"Ange start år/månad",Uppdragsforskning!$D$30&Uppdragsforskning!$E$30) -> 202501 | H18: =IF(OR(Uppdragsforskning!$D$31="",Uppdragsforskning!$E$31=""),"Ange slut år/månad",Uppdragsforskning!$D$31&Uppdragsforskning!$E$31) -> Ange slut år/månad | I18: =Uppdragsforskning!H78+Uppdragsforskning!J78+Uppdragsforskning!L78+Uppdragsforskning!N78+Uppdragsforskning!P78 -> 0 | J18: ="Budget totalt "&Uppdragsforskning!$D$36&"" -> Budget totalt
C19: 23 | D19: Övriga driftskostnader | E19: 5797 | F19: =IF(Uppdragsforskning!$D$36="","Ange projektnummer",Uppdragsforskning!$D$36) -> Ange projektnummer | G19: =IF(OR(Uppdragsforskning!$D$30="",Uppdragsforskning!$E$30=""),"Ange start år/månad",Uppdragsforskning!$D$30&Uppdragsforskning!$E$30) -> 202501 | H19: =IF(OR(Uppdragsforskning!$D$31="",Uppdragsforskning!$E$31=""),"Ange slut år/månad",Uppdragsforskning!$D$31&Uppdragsforskning!$E$31) -> Ange slut år/månad | I19: =I31+I39+I47+I55+I63 -> 0 | J19: ="Budget totalt "&Uppdragsforskning!$D$36&"" -> Budget totalt
C20: 23 | D20: Interna kostnader | E20: 57849 | F20: =IF(Uppdragsforskning!$D$36="","Ange projektnummer",Uppdragsforskning!$D$36) -> Ange projektnummer | G20: =IF(OR(Uppdragsforskning!$D$30="",Uppdragsforskning!$E$30=""),"Ange start år/månad",Uppdragsforskning!$D$30&Uppdragsforskning!$E$30) -> 202501 | H20: =IF(OR(Uppdragsforskning!$D$31="",Uppdragsforskning!$E$31=""),"Ange slut år/månad",Uppdragsforskning!$D$31&Uppdragsforskning!$E$31) -> Ange slut år/månad | I20: =I32+I40+I48+I56+I64 -> 0 | J20: ="Budget totalt "&Uppdragsforskning!$D$36&"" -> Budget totalt
C21: 24 | D21: Avskrivningar | E21: 6911 | F21: =IF(Uppdragsforskning!$D$36="","Ange projektnummer",Uppdragsforskning!$D$36) -> Ange projektnummer | G21: =IF(OR(Uppdragsforskning!$D$30="",Uppdragsforskning!$E$30=""),"Ange start år/månad",Uppdragsforskning!$D$30&Uppdragsforskning!$E$30) -> 202501 | H21: =IF(OR(Uppdragsforskning!$D$31="",Uppdragsforskning!$E$31=""),"Ange slut år/månad",Uppdragsforskning!$D$31&Uppdragsforskning!$E$31) -> Ange slut år/månad | I21: =I33+I41+I49+I57+I65 -> 0 | J21: ="Budget totalt "&Uppdragsforskning!$D$36&"" -> Budget totalt
C23: ÅRSFÖRDELAD BUDGET
C25: RR2 | D25: Beskrivning | E25: Konto | F25: Proj | G25: Per från | H25: Per till | I25: Budget (BB) | J25: Text
C26: 11 | D26: Intäkter av avgifter | E26: 3313 | F26: =IF(Uppdragsforskning!$D$36="","Ange projektnummer",Uppdragsforskning!$D$36) -> Ange projektnummer | G26: =RIGHT(J26,4)&Uppdragsforskning!$E$30 -> 202501 | H26: =IFERROR(IF(_xlfn.NUMBERVALUE(RIGHT(J26,4))=Uppdragsforskning!$D$31,RIGHT(J26,4)&Uppdragsforskning!$E$31,RIGHT(J26,4)&"12"),"Ange start/slut år/mån") -> 202512 | I26: =SUM(Uppdragsforskning!H131:I131)*-1 -> 0 | J26: ="Budget "&Uppdragsforskning!$D$36&" "&Uppdragsforskning!H$43 -> Budget 2025
C27: 21 | D27: Personalkostnader | E27: 4011 | F27: =IF(Uppdragsforskning!$D$36="","Ange projektnummer",Uppdragsforskning!$D$36) -> Ange projektnummer | G27: =RIGHT(J27,4)&Uppdragsforskning!$E$30 -> 202501 | H27: =IFERROR(IF(_xlfn.NUMBERVALUE(RIGHT(J27,4))=Uppdragsforskning!$D$31,RIGHT(J27,4)&Uppdragsforskning!$E$31,RIGHT(J27,4)&"12"),"Ange start/slut år/mån") -> 202512 | I27: =SUM(Uppdragsforskning!H65:I65) -> 0 | J27: ="Budget "&Uppdragsforskning!$D$36&" "&Uppdragsforskning!H$43 -> Budget 2025
C28: 211 | D28: Gemensamma kostnader (INDI) | E28: 49988 | F28: =IF(Uppdragsforskning!$D$36="","Ange projektnummer",Uppdragsforskning!$D$36) -> Ange projektnummer | G28: =RIGHT(J28,4)&Uppdragsforskning!$E$30 -> 202501 | H28: =IFERROR(IF(_xlfn.NUMBERVALUE(RIGHT(J28,4))=Uppdragsforskning!$D$31,RIGHT(J28,4)&Uppdragsforskning!$E$31,RIGHT(J28,4)&"12"),"Ange start/slut år/mån") -> 202512 | I28: =SUM(Uppdragsforskning!H124:I124) -> 0 | J28: ="Budget "&Uppdragsforskning!$D$36&" "&Uppdragsforskning!H$43 -> Budget 2025
C29: 22 | D29: Lokalkostnader | E29: 50111 | F29: =IF(Uppdragsforskning!$D$36="","Ange projektnummer",Uppdragsforskning!$D$36) -> Ange projektnummer | G29: =RIGHT(J29,4)&Uppdragsforskning!$E$30 -> 202501 | H29: =IFERROR(IF(_xlfn.NUMBERVALUE(RIGHT(J29,4))=Uppdragsforskning!$D$31,RIGHT(J29,4)&Uppdragsforskning!$E$31,RIGHT(J29,4)&"12"),"Ange start/slut år/mån") -> 202512 | I29: =SUM(Uppdragsforskning!I$103:I105) -> 0 | J29: ="Budget "&Uppdragsforskning!$D$36&" "&Uppdragsforskning!H$43 -> Budget 2025
C30: 23 | D30: Resekostnader | E30: 5522 | F30: =IF(Uppdragsforskning!$D$36="","Ange projektnummer",Uppdragsforskning!$D$36) -> Ange projektnummer | G30: =RIGHT(J30,4)&Uppdragsforskning!$E$30 -> 202501 | H30: =IFERROR(IF(_xlfn.NUMBERVALUE(RIGHT(J30,4))=Uppdragsforskning!$D$31,RIGHT(J30,4)&Uppdragsforskning!$E$31,RIGHT(J30,4)&"12"),"Ange start/slut år/mån") -> 202512 | I30: =SUM(Uppdragsforskning!I$74:I76) -> 0 | J30: ="Budget "&Uppdragsforskning!$D$36&" "&Uppdragsforskning!H$43 -> Budget 2025
C31: 23 | D31: Övriga driftskostnader | E31: 5797 | F31: =IF(Uppdragsforskning!$D$36="","Ange projektnummer",Uppdragsforskning!$D$36) -> Ange projektnummer | G31: =RIGHT(J31,4)&Uppdragsforskning!$E$30 -> 202501 | H31: =IFERROR(IF(_xlfn.NUMBERVALUE(RIGHT(J31,4))=Uppdragsforskning!$D$31,RIGHT(J31,4)&Uppdragsforskning!$E$31,RIGHT(J31,4)&"12"),"Ange start/slut år/mån") -> 202512 | I31: =SUM(Uppdragsforskning!H92:I92) -> 0 | J31: ="Budget "&Uppdragsforskning!$D$36&" "&Uppdragsforskning!H$43 -> Budget 2025
C32: 23 | D32: Interna kostnader | E32: 57849 | F32: =IF(Uppdragsforskning!$D$36="","Ange projektnummer",Uppdragsforskning!$D$36) -> Ange projektnummer | G32: =RIGHT(J32,4)&Uppdragsforskning!$E$30 -> 202501 | H32: =IFERROR(IF(_xlfn.NUMBERVALUE(RIGHT(J32,4))=Uppdragsforskning!$D$31,RIGHT(J32,4)&Uppdragsforskning!$E$31,RIGHT(J32,4)&"12"),"Ange start/slut år/mån") -> 202512 | I32: =SUM(Uppdragsforskning!I$109:I111) -> 0 | J32: ="Budget "&Uppdragsforskning!$D$36&" "&Uppdragsforskning!H$43 -> Budget 2025
C33: 24 | D33: Avskrivningar | E33: 6911 | F33: =IF(Uppdragsforskning!$D$36="","Ange projektnummer",Uppdragsforskning!$D$36) -> Ange projektnummer | G33: =RIGHT(J33,4)&Uppdragsforskning!$E$30 -> 202501 | H33: =IFERROR(IF(_xlfn.NUMBERVALUE(RIGHT(J33,4))=Uppdragsforskning!$D$31,RIGHT(J33,4)&Uppdragsforskning!$E$31,RIGHT(J33,4)&"12"),"Ange start/slut år/mån") -> 202512 | I33: =SUM(Uppdragsforskning!I$98:I99) -> 0 | J33: ="Budget "&Uppdragsforskning!$D$36&" "&Uppdragsforskning!H$43 -> Budget 2025
C34: 11 | D34: Intäkter av avgifter | E34: 3313 | F34: =Uppdragsforskning!$D$36 -> 0 | G34: =RIGHT(J34,4)&"01" -> 01 | H34: =IF(_xlfn.NUMBERVALUE(RIGHT(J34,4))=Uppdragsforskning!$D$31,RIGHT(J34,4)&Uppdragsforskning!$E$31,RIGHT(J34,4)&"12") -> 12 | I34: =SUM(Uppdragsforskning!J131:K131)*-1 -> 0 | J34: =IF(Uppdragsforskning!$D$36="","",IF(Uppdragsforskning!$D$31<=Uppdragsforskning!$D$30+1,"","Budget "&Uppdragsforskning!$D$36&" "&Uppdragsforskning!J$43)) -> 
C35: 21 | D35: Personalkostnader | E35: 4011 | F35: =Uppdragsforskning!$D$36 -> 0 | G35: =RIGHT(J35,4)&"01" -> 01 | H35: =IF(_xlfn.NUMBERVALUE(RIGHT(J35,4))=Uppdragsforskning!$D$31,RIGHT(J35,4)&Uppdragsforskning!$E$31,RIGHT(J35,4)&"12") -> 12 | I35: =SUM(Uppdragsforskning!J65:K65) -> 0 | J35: =IF(Uppdragsforskning!$D$36="","",IF(Uppdragsforskning!$D$31<Uppdragsforskning!$D$30+1,"","Budget "&Uppdragsforskning!$D$36&" "&Uppdragsforskning!J$43)) -> 
C36: 211 | D36: Gemensamma kostnader (INDI) | E36: 49988 | F36: =Uppdragsforskning!$D$36 -> 0 | G36: 01 | H36: =IF(_xlfn.NUMBERVALUE(RIGHT(J36,4))=Uppdragsforskning!$D$31,RIGHT(J36,4)&Uppdragsforskning!$E$31,RIGHT(J36,4)&"12") -> 12 | I36: =SUM(Uppdragsforskning!J124:K124) -> 0 | J36: =IF(Uppdragsforskning!$D$36="","",IF(Uppdragsforskning!$D$31<Uppdragsforskning!$D$30+1,"","Budget "&Uppdragsforskning!$D$36&" "&Uppdragsforskning!J$43)) -> 
C37: 22 | D37: Lokalkostnader | E37: 50111 | F37: =Uppdragsforskning!$D$36 -> 0 | G37: 01 | H37: =IF(_xlfn.NUMBERVALUE(RIGHT(J37,4))=Uppdragsforskning!$D$31,RIGHT(J37,4)&Uppdragsforskning!$E$31,RIGHT(J37,4)&"12") -> 12 | I37: =SUM(Uppdragsforskning!K$103:K105) -> 0 | J37: =IF(Uppdragsforskning!$D$36="","",IF(Uppdragsforskning!$D$31<Uppdragsforskning!$D$30+1,"","Budget "&Uppdragsforskning!$D$36&" "&Uppdragsforskning!J$43)) -> 
C38: 23 | D38: Resekostnader | E38: 5522 | F38: =Uppdragsforskning!$D$36 -> 0 | G38: =RIGHT(J38,4)&"01" -> 01 | H38: =IF(_xlfn.NUMBERVALUE(RIGHT(J38,4))=Uppdragsforskning!$D$31,RIGHT(J38,4)&Uppdragsforskning!$E$31,RIGHT(J38,4)&"12") -> 12 | I38: =SUM(Uppdragsforskning!K$74:K76) -> 0 | J38: =IF(Uppdragsforskning!$D$36="","",IF(Uppdragsforskning!$D$31<Uppdragsforskning!$D$30+1,"","Budget "&Uppdragsforskning!$D$36&" "&Uppdragsforskning!J$43)) -> 
C39: 23 | D39: Övriga driftskostnader | E39: 5797 | F39: =Uppdragsforskning!$D$36 -> 0 | G39: 01 | H39: =IF(_xlfn.NUMBERVALUE(RIGHT(J39,4))=Uppdragsforskning!$D$31,RIGHT(J39,4)&Uppdragsforskning!$E$31,RIGHT(J39,4)&"12") -> 12 | I39: =SUM(Uppdragsforskning!J92:K92) -> 0 | J39: =IF(Uppdragsforskning!$D$36="","",IF(Uppdragsforskning!$D$31<Uppdragsforskning!$D$30+1,"","Budget "&Uppdragsforskning!$D$36&" "&Uppdragsforskning!J$43)) -> 
C40: 23 | D40: Interna kostnader | E40: 57849 | F40: =Uppdragsforskning!$D$36 -> 0 | G40: 01 | H40: =IF(_xlfn.NUMBERVALUE(RIGHT(J40,4))=Uppdragsforskning!$D$31,RIGHT(J40,4)&Uppdragsforskning!$E$31,RIGHT(J40,4)&"12") -> 12 | I40: =SUM(Uppdragsforskning!K$109:K111) -> 0 | J40: =IF(Uppdragsforskning!$D$36="","",IF(Uppdragsforskning!$D$31<Uppdragsforskning!$D$30+1,"","Budget "&Uppdragsforskning!$D$36&" "&Uppdragsforskning!J$43)) -> 
C41: 24 | D41: Avskrivningar | E41: 6911 | F41: =Uppdragsforskning!$D$36 -> 0 | G41: 01 | H41: =IF(_xlfn.NUMBERVALUE(RIGHT(J41,4))=Uppdragsforskning!$D$31,RIGHT(J41,4)&Uppdragsforskning!$E$31,RIGHT(J41,4)&"12") -> 12 | I41: =SUM(Uppdragsforskning!K$98:K99) -> 0 | J41: =IF(Uppdragsforskning!$D$36="","",IF(Uppdragsforskning!$D$31<Uppdragsforskning!$D$30+1,"","Budget "&Uppdragsforskning!$D$36&" "&Uppdragsforskning!J$43)) -> 
C42: 11 | D42: Intäkter av avgifter | E42: 3313 | F42: =Uppdragsforskning!$D$36 -> 0 | G42: 01 | H42: =IF(_xlfn.NUMBERVALUE(RIGHT(J42,4))=Uppdragsforskning!$D$31,RIGHT(J42,4)&Uppdragsforskning!$E$31,RIGHT(J42,4)&"12") -> 12 | I42: =SUM(Uppdragsforskning!L131:M131)*-1 -> 0 | J42: =IF(Uppdragsforskning!$D$36="","",IF(Uppdragsforskning!$D$31<Uppdragsforskning!$D$30+2,"","Budget "&Uppdragsforskning!$D$36&" "&Uppdragsforskning!L$43)) -> 
C43: 21 | D43: Personalkostnader | E43: 4011 | F43: =Uppdragsforskning!$D$36 -> 0 | G43: 01 | H43: =IF(_xlfn.NUMBERVALUE(RIGHT(J43,4))=Uppdragsforskning!$D$31,RIGHT(J43,4)&Uppdragsforskning!$E$31,RIGHT(J43,4)&"12") -> 12 | I43: =SUM(Uppdragsforskning!L65:M65) -> 0 | J43: =IF(Uppdragsforskning!$D$36="","",IF(Uppdragsforskning!$D$31<Uppdragsforskning!$D$30+2,"","Budget "&Uppdragsforskning!$D$36&" "&Uppdragsforskning!L$43)) -> 
C44: 211 | D44: Gemensamma kostnader (INDI) | E44: 49988 | F44: =Uppdragsforskning!$D$36 -> 0 | G44: 01 | H44: =IF(_xlfn.NUMBERVALUE(RIGHT(J44,4))=Uppdragsforskning!$D$31,RIGHT(J44,4)&Uppdragsforskning!$E$31,RIGHT(J44,4)&"12") -> 12 | I44: =SUM(Uppdragsforskning!L124:M124) -> 0 | J44: =IF(Uppdragsforskning!$D$36="","",IF(Uppdragsforskning!$D$31<Uppdragsforskning!$D$30+2,"","Budget "&Uppdragsforskning!$D$36&" "&Uppdragsforskning!L$43)) -> 
C45: 22 | D45: Lokalkostnader | E45: 50111 | F45: =Uppdragsforskning!$D$36 -> 0 | G45: 01 | H45: =IF(_xlfn.NUMBERVALUE(RIGHT(J45,4))=Uppdragsforskning!$D$31,RIGHT(J45,4)&Uppdragsforskning!$E$31,RIGHT(J45,4)&"12") -> 12 | I45: =SUM(Uppdragsforskning!M$103:M105) -> 0 | J45: =IF(Uppdragsforskning!$D$36="","",IF(Uppdragsforskning!$D$31<Uppdragsforskning!$D$30+2,"","Budget "&Uppdragsforskning!$D$36&" "&Uppdragsforskning!L$43)) -> 
C46: 23 | D46: Resekostnader | E46: 5522 | F46: =Uppdragsforskning!$D$36 -> 0 | G46: 01 | H46: =IF(_xlfn.NUMBERVALUE(RIGHT(J46,4))=Uppdragsforskning!$D$31,RIGHT(J46,4)&Uppdragsforskning!$E$31,RIGHT(J46,4)&"12") -> 12 | I46: =SUM(Uppdragsforskning!M$74:M76) -> 0 | J46: =IF(Uppdragsforskning!$D$36="","",IF(Uppdragsforskning!$D$31<Uppdragsforskning!$D$30+2,"","Budget "&Uppdragsforskning!$D$36&" "&Uppdragsforskning!L$43)) -> 
C47: 23 | D47: Övriga driftskostnader | E47: 5797 | F47: =Uppdragsforskning!$D$36 -> 0 | G47: 01 | H47: =IF(_xlfn.NUMBERVALUE(RIGHT(J47,4))=Uppdragsforskning!$D$31,RIGHT(J47,4)&Uppdragsforskning!$E$31,RIGHT(J47,4)&"12") -> 12 | I47: =SUM(Uppdragsforskning!L92:M92) -> 0 | J47: =IF(Uppdragsforskning!$D$36="","",IF(Uppdragsforskning!$D$31<Uppdragsforskning!$D$30+2,"","Budget "&Uppdragsforskning!$D$36&" "&Uppdragsforskning!L$43)) -> 
C48: 23 | D48: Interna kostnader | E48: 57849 | F48: =Uppdragsforskning!$D$36 -> 0 | G48: 01 | H48: =IF(_xlfn.NUMBERVALUE(RIGHT(J48,4))=Uppdragsforskning!$D$31,RIGHT(J48,4)&Uppdragsforskning!$E$31,RIGHT(J48,4)&"12") -> 12 | I48: =SUM(Uppdragsforskning!M$109:M111) -> 0 | J48: =IF(Uppdragsforskning!$D$36="","",IF(Uppdragsforskning!$D$31<Uppdragsforskning!$D$30+2,"","Budget "&Uppdragsforskning!$D$36&" "&Uppdragsforskning!L$43)) -> 
C49: 24 | D49: Avskrivningar | E49: 6911 | F49: =Uppdragsforskning!$D$36 -> 0 | G49: 01 | H49: =IF(_xlfn.NUMBERVALUE(RIGHT(J49,4))=Uppdragsforskning!$D$31,RIGHT(J49,4)&Uppdragsforskning!$E$31,RIGHT(J49,4)&"12") -> 12 | I49: =SUM(Uppdragsforskning!M$98:M99) -> 0 | J49: =IF(Uppdragsforskning!$D$36="","",IF(Uppdragsforskning!$D$31<Uppdragsforskning!$D$30+2,"","Budget "&Uppdragsforskning!$D$36&" "&Uppdragsforskning!L$43)) -> 
C50: 11 | D50: Intäkter av avgifter | E50: 3313 | F50: =Uppdragsforskning!$D$36 -> 0 | G50: 01 | H50: =IF(_xlfn.NUMBERVALUE(RIGHT(J50,4))=Uppdragsforskning!$D$31,RIGHT(J50,4)&Uppdragsforskning!$E$31,RIGHT(J50,4)&"12") -> 12 | I50: =SUM(Uppdragsforskning!N131:O131)*-1 -> 0 | J50: =IF(Uppdragsforskning!$D$36="","",IF(Uppdragsforskning!$D$31<Uppdragsforskning!$D$30+3,"","Budget "&Uppdragsforskning!$D$36&" "&Uppdragsforskning!N$43)) -> 
C51: 21 | D51: Personalkostnader | E51: 4011 | F51: =Uppdragsforskning!$D$36 -> 0 | G51: 01 | H51: =IF(_xlfn.NUMBERVALUE(RIGHT(J51,4))=Uppdragsforskning!$D$31,RIGHT(J51,4)&Uppdragsforskning!$E$31,RIGHT(J51,4)&"12") -> 12 | I51: =SUM(Uppdragsforskning!N65:O65) -> 0 | J51: =IF(Uppdragsforskning!$D$36="","",IF(Uppdragsforskning!$D$31<Uppdragsforskning!$D$30+3,"","Budget "&Uppdragsforskning!$D$36&" "&Uppdragsforskning!N$43)) -> 
C52: 211 | D52: Gemensamma kostnader (INDI) | E52: 49988 | F52: =Uppdragsforskning!$D$36 -> 0 | G52: 01 | H52: =IF(_xlfn.NUMBERVALUE(RIGHT(J52,4))=Uppdragsforskning!$D$31,RIGHT(J52,4)&Uppdragsforskning!$E$31,RIGHT(J52,4)&"12") -> 12 | I52: =SUM(Uppdragsforskning!N124:O124) -> 0 | J52: =IF(Uppdragsforskning!$D$36="","",IF(Uppdragsforskning!$D$31<Uppdragsforskning!$D$30+3,"","Budget "&Uppdragsforskning!$D$36&" "&Uppdragsforskning!N$43)) -> 
C53: 22 | D53: Lokalkostnader | E53: 50111 | F53: =Uppdragsforskning!$D$36 -> 0 | G53: 01 | H53: =IF(_xlfn.NUMBERVALUE(RIGHT(J53,4))=Uppdragsforskning!$D$31,RIGHT(J53,4)&Uppdragsforskning!$E$31,RIGHT(J53,4)&"12") -> 12 | I53: =SUM(Uppdragsforskning!O$103:O105) -> 0 | J53: =IF(Uppdragsforskning!$D$36="","",IF(Uppdragsforskning!$D$31<Uppdragsforskning!$D$30+3,"","Budget "&Uppdragsforskning!$D$36&" "&Uppdragsforskning!N$43)) -> 
C54: 23 | D54: Resekostnader | E54: 5522 | F54: =Uppdragsforskning!$D$36 -> 0 | G54: 01 | H54: =IF(_xlfn.NUMBERVALUE(RIGHT(J54,4))=Uppdragsforskning!$D$31,RIGHT(J54,4)&Uppdragsforskning!$E$31,RIGHT(J54,4)&"12") -> 12 | I54: =SUM(Uppdragsforskning!O$74:O76) -> 0 | J54: =IF(Uppdragsforskning!$D$36="","",IF(Uppdragsforskning!$D$31<Uppdragsforskning!$D$30+3,"","Budget "&Uppdragsforskning!$D$36&" "&Uppdragsforskning!N$43)) -> 
C55: 23 | D55: Övriga driftskostnader | E55: 5797 | F55: =Uppdragsforskning!$D$36 -> 0 | G55: 01 | H55: =IF(_xlfn.NUMBERVALUE(RIGHT(J55,4))=Uppdragsforskning!$D$31,RIGHT(J55,4)&Uppdragsforskning!$E$31,RIGHT(J55,4)&"12") -> 12 | I55: =SUM(Uppdragsforskning!N92:O92) -> 0 | J55: =IF(Uppdragsforskning!$D$36="","",IF(Uppdragsforskning!$D$31<Uppdragsforskning!$D$30+3,"","Budget "&Uppdragsforskning!$D$36&" "&Uppdragsforskning!N$43)) -> 
C56: 23 | D56: Interna kostnader | E56: 57849 | F56: =Uppdragsforskning!$D$36 -> 0 | G56: 01 | H56: =IF(_xlfn.NUMBERVALUE(RIGHT(J56,4))=Uppdragsforskning!$D$31,RIGHT(J56,4)&Uppdragsforskning!$E$31,RIGHT(J56,4)&"12") -> 12 | I56: =SUM(Uppdragsforskning!O$109:O111) -> 0 | J56: =IF(Uppdragsforskning!$D$36="","",IF(Uppdragsforskning!$D$31<Uppdragsforskning!$D$30+3,"","Budget "&Uppdragsforskning!$D$36&" "&Uppdragsforskning!N$43)) -> 
C57: 24 | D57: Avskrivningar | E57: 6911 | F57: =Uppdragsforskning!$D$36 -> 0 | G57: 01 | H57: =IF(_xlfn.NUMBERVALUE(RIGHT(J57,4))=Uppdragsforskning!$D$31,RIGHT(J57,4)&Uppdragsforskning!$E$31,RIGHT(J57,4)&"12") -> 12 | I57: =SUM(Uppdragsforskning!O$98:O99) -> 0 | J57: =IF(Uppdragsforskning!$D$36="","",IF(Uppdragsforskning!$D$31<Uppdragsforskning!$D$30+3,"","Budget "&Uppdragsforskning!$D$36&" "&Uppdragsforskning!N$43)) -> 
C58: 11 | D58: Intäkter av avgifter | E58: 3313 | F58: =Uppdragsforskning!$D$36 -> 0 | G58: 01 | H58: =IF(_xlfn.NUMBERVALUE(RIGHT(J58,4))=Uppdragsforskning!$D$31,RIGHT(J58,4)&Uppdragsforskning!$E$31,RIGHT(J58,4)&"12") -> 12 | I58: =SUM(Uppdragsforskning!P131:Q131)*-1 -> 0 | J58: =IF(Uppdragsforskning!$D$36="","",IF(Uppdragsforskning!$D$31<Uppdragsforskning!$D$30+4,"","Budget "&Uppdragsforskning!$D$36&" "&Uppdragsforskning!P$43)) -> 
C59: 21 | D59: Personalkostnader | E59: 4011 | F59: =Uppdragsforskning!$D$36 -> 0 | G59: 01 | H59: =IF(_xlfn.NUMBERVALUE(RIGHT(J59,4))=Uppdragsforskning!$D$31,RIGHT(J59,4)&Uppdragsforskning!$E$31,RIGHT(J59,4)&"12") -> 12 | I59: =SUM(Uppdragsforskning!P65:Q65) -> 0 | J59: =IF(Uppdragsforskning!$D$36="","",IF(Uppdragsforskning!$D$31<Uppdragsforskning!$D$30+4,"","Budget "&Uppdragsforskning!$D$36&" "&Uppdragsforskning!P$43)) -> 
C60: 211 | D60: Gemensamma kostnader (INDI) | E60: 49988 | F60: =Uppdragsforskning!$D$36 -> 0 | G60: 01 | H60: =IF(_xlfn.NUMBERVALUE(RIGHT(J60,4))=Uppdragsforskning!$D$31,RIGHT(J60,4)&Uppdragsforskning!$E$31,RIGHT(J60,4)&"12") -> 12 | I60: =SUM(Uppdragsforskning!P124:Q124) -> 0 | J60: =IF(Uppdragsforskning!$D$36="","",IF(Uppdragsforskning!$D$31<Uppdragsforskning!$D$30+4,"","Budget "&Uppdragsforskning!$D$36&" "&Uppdragsforskning!P$43)) -> 
C61: 22 | D61: Lokalkostnader | E61: 50111 | F61: =Uppdragsforskning!$D$36 -> 0 | G61: 01 | H61: =IF(_xlfn.NUMBERVALUE(RIGHT(J61,4))=Uppdragsforskning!$D$31,RIGHT(J61,4)&Uppdragsforskning!$E$31,RIGHT(J61,4)&"12") -> 12 | I61: =SUM(Uppdragsforskning!Q$103:Q105) -> 0 | J61: =IF(Uppdragsforskning!$D$36="","",IF(Uppdragsforskning!$D$31<Uppdragsforskning!$D$30+4,"","Budget "&Uppdragsforskning!$D$36&" "&Uppdragsforskning!P$43)) -> 
C62: 23 | D62: Resekostnader | E62: 5522 | F62: =Uppdragsforskning!$D$36 -> 0 | G62: 01 | H62: =IF(_xlfn.NUMBERVALUE(RIGHT(J62,4))=Uppdragsforskning!$D$31,RIGHT(J62,4)&Uppdragsforskning!$E$31,RIGHT(J62,4)&"12") -> 12 | I62: =SUM(Uppdragsforskning!Q$74:Q76) -> 0 | J62: =IF(Uppdragsforskning!$D$36="","",IF(Uppdragsforskning!$D$31<Uppdragsforskning!$D$30+4,"","Budget "&Uppdragsforskning!$D$36&" "&Uppdragsforskning!P$43)) -> 
C63: 23 | D63: Övriga driftskostnader | E63: 5797 | F63: =Uppdragsforskning!$D$36 -> 0 | G63: 01 | H63: =IF(_xlfn.NUMBERVALUE(RIGHT(J63,4))=Uppdragsforskning!$D$31,RIGHT(J63,4)&Uppdragsforskning!$E$31,RIGHT(J63,4)&"12") -> 12 | I63: =SUM(Uppdragsforskning!P92:Q92) -> 0 | J63: =IF(Uppdragsforskning!$D$36="","",IF(Uppdragsforskning!$D$31<Uppdragsforskning!$D$30+4,"","Budget "&Uppdragsforskning!$D$36&" "&Uppdragsforskning!P$43)) -> 
C64: 23 | D64: Interna kostnader | E64: 57849 | F64: =Uppdragsforskning!$D$36 -> 0 | G64: 01 | H64: =IF(_xlfn.NUMBERVALUE(RIGHT(J64,4))=Uppdragsforskning!$D$31,RIGHT(J64,4)&Uppdragsforskning!$E$31,RIGHT(J64,4)&"12") -> 12 | I64: =SUM(Uppdragsforskning!Q$109:Q111) -> 0 | J64: =IF(Uppdragsforskning!$D$36="","",IF(Uppdragsforskning!$D$31<Uppdragsforskning!$D$30+4,"","Budget "&Uppdragsforskning!$D$36&" "&Uppdragsforskning!P$43)) -> 
C65: 24 | D65: Avskrivningar | E65: 6911 | F65: =Uppdragsforskning!$D$36 -> 0 | G65: 01 | H65: =IF(_xlfn.NUMBERVALUE(RIGHT(J65,4))=Uppdragsforskning!$D$31,RIGHT(J65,4)&Uppdragsforskning!$E$31,RIGHT(J65,4)&"12") -> 12 | I65: =SUM(Uppdragsforskning!Q$98:Q99) -> 0 | J65: =IF(Uppdragsforskning!$D$36="","",IF(Uppdragsforskning!$D$31<Uppdragsforskning!$D$30+4,"","Budget "&Uppdragsforskning!$D$36&" "&Uppdragsforskning!P$43)) -> 

Sheet Bidragsforskning VR (Prisma) (hidden)
B2: GRUNDLÄGGANDE UPPGIFTER | Q2: Klicka på + ovan för att öppna upp fler år
B4: Institutionskod | H4: Lönekostnadspålägg (LKP) | K4: =Bidragsforskning!G73 -> 0.5586
B5: Innevrande år | D5: =Tabeller!$A$1 -> 2025 | H5: Indirektakostnader - pålägg (INDI) | K5: =_xlfn.IFNA(VLOOKUP(LEFT(D4,2),'INDI FO 2025'!A:G,7,0),"Välj institution") -> Välj institution
B6: Projektets start år/månad
B7: Projektets slut år/månad | H7: Fyll först i de grundläggande uppgifterna i denna sektion. All ekonomisk information anges i kolumn S till AE i respektive sektion. Kalkylmallen innehåller informationsrutor som beskriver respektive sektion/kolumn, de visas när man markerar en cell. I kalkylbladet är celler innehållande formler skyddade, vill man manuellt ange/ändra något så går det att ta bort skyddet genom att i verktygsfältet välja Granska och sen alternativet Ta bort bladets skydd.
B8: Projektledare/-ansvarig
B9: Projektnummer - UBW
B10: Beskrivnig av projektet
B14: Budget och forskningsresurser
B16: Aktivitetsgrad i projektet
C17: Roll i projektet | G17: Namn | Q17: Procent av heltid
B18: 1
B19: 2
B20: 3
B21: 4
B22: 5
B23: 6
B24: 7
B25: 8
B26: 9
B27: 10
B28: 11
B29: 12
B30: 13
B31: 14
B32: 15
B34: Löner inklusive sociala avgifter | U34: =G$52 -> Välj start år | W34: =I$52 ->  | X34: =J$52 -> 
C35: Roll i projektet | G35: Namn | Q35: Procent av lönen | S35: Månadslön | T35: Indexering | U35: Omf % | V35: Omf % | W35: Omf % | X35: Omf % | Y35: Omf % | Z35: Omf % | AA35: Omf % | AB35: Omf % | AC35: Omf % | AD35: Omf %
B36: 1 | Q36: =IFERROR(SUM(U36:AD36)/COUNTA(U36:AD36),"") ->  | T36: 0.04
B37: 2 | Q37: =IFERROR(SUM(U37:AD37)/COUNTA(U37:AD37),"") ->  | T37: 0.04
B38: 3 | T38: 0.04
B39: 4 | T39: 0.04
B40: 5 | T40: 0.04
B41: 6 | T41: 0.04
B42: 7 | Q42: =IFERROR(SUM(U42:AD42)/COUNTA(U42:AD42),"") ->  | T42: 0.04
B43: 8 | T43: 0.04
B44: 9 | T44: 0.04
B45: 10 | T45: 0.04
B46: 11 | T46: 0.04
B47: 12 | T47: 0.04
B48: 13 | T48: 0.04
B49: 14 | T49: 0.04
B50: 15 | T50: 0.04
B51: Totalt
C52: Namn | G52: =IF($D$6=0,"Välj start år",$D$6) -> Välj start år | H52: =IFERROR(G52+1,"") ->  | I52: =IFERROR(H52+1,"") ->  | Q52: Totalt
B53: 1 | C53: =IF(G36="","",G36) ->  | G53: =IF(IF($S36="","",ROUND($S36*U36*12*(1+$K$4),0))=0,"",IF($S36="","",ROUND($S36*U36*12*(1+$K$4),0))) ->  | H53: =IF($S36="","",IF(G53="",ROUND($S36*V36*12*(1+$K$4),0),ROUND($S36*V36*12*(1+$K$4)*(1+$T36),0))) ->  | I53: =IF($S36="","",IF(COUNTA($U36:V36)=0,ROUND($S36*W36*12*(1+$K$4),0),ROUND($S36*W36*12*(1+$K$4)*((1+$T36)^COUNTA($U36:V36)),0))) ->  | J53: =IF($S36="","",IF(COUNTA($U36:W36)=0,ROUND($S36*X36*12*(1+$K$4),0),ROUND($S36*X36*12*(1+$K$4)*((1+$T36)^COUNTA($U36:W36)),0))) ->  | K53: =IF($S36="","",IF(COUNTA($U36:X36)=0,ROUND($S36*Y36*12*(1+$K$4),0),ROUND($S36*Y36*12*(1+$K$4)*((1+$T36)^COUNTA($U36:X36)),0))) ->  | L53: =IF($S36="","",IF(COUNTA($U36:Y36)=0,ROUND($S36*Z36*12*(1+$K$4),0),ROUND($S36*Z36*12*(1+$K$4)*((1+$T36)^COUNTA($U36:Y36)),0))) ->  | M53: =IF($S36="","",IF(COUNTA($U36:Z36)=0,ROUND($S36*AA36*12*(1+$K$4),0),ROUND($S36*AA36*12*(1+$K$4)*((1+$T36)^COUNTA($U36:Z36)),0))) ->  | N53: =IF($S36="","",IF(COUNTA($U36:AA36)=0,ROUND($S36*AB36*12*(1+$K$4),0),ROUND($S36*AB36*12*(1+$K$4)*((1+$T36)^COUNTA($U36:AA36)),0))) ->  | O53: =IF($S36="","",IF(COUNTA($U36:AB36)=0,ROUND($S36*AC36*12*(1+$K$4),0),ROUND($S36*AC36*12*(1+$K$4)*((1+$T36)^COUNTA($U36:AB36)),0))) ->  | P53: =IF($S36="","",IF(COUNTA($U36:AC36)=0,ROUND($S36*AD36*12*(1+$K$4),0),ROUND($S36*AD36*12*(1+$K$4)*((1+$T36)^COUNTA($U36:AC36)),0))) ->  | Q53: =IF(SUM(G53:P53)=0,"",SUM(G53:P53)) -> 
B54: 2 | C54: =IF(G37="","",G37) ->  | G54: =IF(IF($S37="","",ROUND($S37*U37*12*(1+$K$4),0))=0,"",IF($S37="","",ROUND($S37*U37*12*(1+$K$4),0))) ->  | H54: =IF($S37="","",IF(G54="",ROUND($S37*V37*12*(1+$K$4),0),ROUND($S37*V37*12*(1+$K$4)*(1+$T37),0))) ->  | I54: =IF($S37="","",IF(COUNTA($U37:V37)=0,ROUND($S37*W37*12*(1+$K$4),0),ROUND($S37*W37*12*(1+$K$4)*((1+$T37)^COUNTA($U37:V37)),0))) ->  | J54: =IF($S37="","",IF(COUNTA($U37:W37)=0,ROUND($S37*X37*12*(1+$K$4),0),ROUND($S37*X37*12*(1+$K$4)*((1+$T37)^COUNTA($U37:W37)),0))) ->  | K54: =IF($S37="","",IF(COUNTA($U37:X37)=0,ROUND($S37*Y37*12*(1+$K$4),0),ROUND($S37*Y37*12*(1+$K$4)*((1+$T37)^COUNTA($U37:X37)),0))) ->  | L54: =IF($S37="","",IF(COUNTA($U37:Y37)=0,ROUND($S37*Z37*12*(1+$K$4),0),ROUND($S37*Z37*12*(1+$K$4)*((1+$T37)^COUNTA($U37:Y37)),0))) ->  | M54: =IF($S37="","",IF(COUNTA($U37:Z37)=0,ROUND($S37*AA37*12*(1+$K$4),0),ROUND($S37*AA37*12*(1+$K$4)*((1+$T37)^COUNTA($U37:Z37)),0))) ->  | N54: =IF($S37="","",IF(COUNTA($U37:AA37)=0,ROUND($S37*AB37*12*(1+$K$4),0),ROUND($S37*AB37*12*(1+$K$4)*((1+$T37)^COUNTA($U37:AA37)),0))) ->  | O54: =IF($S37="","",IF(COUNTA($U37:AB37)=0,ROUND($S37*AC37*12*(1+$K$4),0),ROUND($S37*AC37*12*(1+$K$4)*((1+$T37)^COUNTA($U37:AB37)),0))) ->  | P54: =IF($S37="","",IF(COUNTA($U37:AC37)=0,ROUND($S37*AD37*12*(1+$K$4),0),ROUND($S37*AD37*12*(1+$K$4)*((1+$T37)^COUNTA($U37:AC37)),0))) ->  | Q54: =IF(SUM(G54:P54)=0,"",SUM(G54:P54)) -> 
B55: 3 | H55: =IF($S38="","",IF(G55="",ROUND($S38*V38*12*(1+$K$4),0),ROUND($S38*V38*12*(1+$K$4)*(1+$T38),0))) ->  | I55: =IF($S38="","",IF(COUNTA($U38:V38)=0,ROUND($S38*W38*12*(1+$K$4),0),ROUND($S38*W38*12*(1+$K$4)*((1+$T38)^COUNTA($U38:V38)),0))) ->  | J55: =IF($S38="","",IF(COUNTA($U38:W38)=0,ROUND($S38*X38*12*(1+$K$4),0),ROUND($S38*X38*12*(1+$K$4)*((1+$T38)^COUNTA($U38:W38)),0))) ->  | K55: =IF($S38="","",IF(COUNTA($U38:X38)=0,ROUND($S38*Y38*12*(1+$K$4),0),ROUND($S38*Y38*12*(1+$K$4)*((1+$T38)^COUNTA($U38:X38)),0))) ->  | L55: =IF($S38="","",IF(COUNTA($U38:Y38)=0,ROUND($S38*Z38*12*(1+$K$4),0),ROUND($S38*Z38*12*(1+$K$4)*((1+$T38)^COUNTA($U38:Y38)),0))) ->  | M55: =IF($S38="","",IF(COUNTA($U38:Z38)=0,ROUND($S38*AA38*12*(1+$K$4),0),ROUND($S38*AA38*12*(1+$K$4)*((1+$T38)^COUNTA($U38:Z38)),0))) ->  | N55: =IF($S38="","",IF(COUNTA($U38:AA38)=0,ROUND($S38*AB38*12*(1+$K$4),0),ROUND($S38*AB38*12*(1+$K$4)*((1+$T38)^COUNTA($U38:AA38)),0))) ->  | O55: =IF($S38="","",IF(COUNTA($U38:AB38)=0,ROUND($S38*AC38*12*(1+$K$4),0),ROUND($S38*AC38*12*(1+$K$4)*((1+$T38)^COUNTA($U38:AB38)),0))) ->  | P55: =IF($S38="","",IF(COUNTA($U38:AC38)=0,ROUND($S38*AD38*12*(1+$K$4),0),ROUND($S38*AD38*12*(1+$K$4)*((1+$T38)^COUNTA($U38:AC38)),0))) -> 
B56: 4 | H56: =IF($S39="","",IF(G56="",ROUND($S39*V39*12*(1+$K$4),0),ROUND($S39*V39*12*(1+$K$4)*(1+$T39),0))) ->  | I56: =IF($S39="","",IF(COUNTA($U39:V39)=0,ROUND($S39*W39*12*(1+$K$4),0),ROUND($S39*W39*12*(1+$K$4)*((1+$T39)^COUNTA($U39:V39)),0))) ->  | J56: =IF($S39="","",IF(COUNTA($U39:W39)=0,ROUND($S39*X39*12*(1+$K$4),0),ROUND($S39*X39*12*(1+$K$4)*((1+$T39)^COUNTA($U39:W39)),0))) ->  | K56: =IF($S39="","",IF(COUNTA($U39:X39)=0,ROUND($S39*Y39*12*(1+$K$4),0),ROUND($S39*Y39*12*(1+$K$4)*((1+$T39)^COUNTA($U39:X39)),0))) ->  | L56: =IF($S39="","",IF(COUNTA($U39:Y39)=0,ROUND($S39*Z39*12*(1+$K$4),0),ROUND($S39*Z39*12*(1+$K$4)*((1+$T39)^COUNTA($U39:Y39)),0))) ->  | M56: =IF($S39="","",IF(COUNTA($U39:Z39)=0,ROUND($S39*AA39*12*(1+$K$4),0),ROUND($S39*AA39*12*(1+$K$4)*((1+$T39)^COUNTA($U39:Z39)),0))) ->  | N56: =IF($S39="","",IF(COUNTA($U39:AA39)=0,ROUND($S39*AB39*12*(1+$K$4),0),ROUND($S39*AB39*12*(1+$K$4)*((1+$T39)^COUNTA($U39:AA39)),0))) ->  | O56: =IF($S39="","",IF(COUNTA($U39:AB39)=0,ROUND($S39*AC39*12*(1+$K$4),0),ROUND($S39*AC39*12*(1+$K$4)*((1+$T39)^COUNTA($U39:AB39)),0))) ->  | P56: =IF($S39="","",IF(COUNTA($U39:AC39)=0,ROUND($S39*AD39*12*(1+$K$4),0),ROUND($S39*AD39*12*(1+$K$4)*((1+$T39)^COUNTA($U39:AC39)),0))) -> 
B57: 5 | H57: =IF($S40="","",IF(G57="",ROUND($S40*V40*12*(1+$K$4),0),ROUND($S40*V40*12*(1+$K$4)*(1+$T40),0))) ->  | I57: =IF($S40="","",IF(COUNTA($U40:V40)=0,ROUND($S40*W40*12*(1+$K$4),0),ROUND($S40*W40*12*(1+$K$4)*((1+$T40)^COUNTA($U40:V40)),0))) ->  | J57: =IF($S40="","",IF(COUNTA($U40:W40)=0,ROUND($S40*X40*12*(1+$K$4),0),ROUND($S40*X40*12*(1+$K$4)*((1+$T40)^COUNTA($U40:W40)),0))) ->  | K57: =IF($S40="","",IF(COUNTA($U40:X40)=0,ROUND($S40*Y40*12*(1+$K$4),0),ROUND($S40*Y40*12*(1+$K$4)*((1+$T40)^COUNTA($U40:X40)),0))) ->  | L57: =IF($S40="","",IF(COUNTA($U40:Y40)=0,ROUND($S40*Z40*12*(1+$K$4),0),ROUND($S40*Z40*12*(1+$K$4)*((1+$T40)^COUNTA($U40:Y40)),0))) ->  | M57: =IF($S40="","",IF(COUNTA($U40:Z40)=0,ROUND($S40*AA40*12*(1+$K$4),0),ROUND($S40*AA40*12*(1+$K$4)*((1+$T40)^COUNTA($U40:Z40)),0))) ->  | N57: =IF($S40="","",IF(COUNTA($U40:AA40)=0,ROUND($S40*AB40*12*(1+$K$4),0),ROUND($S40*AB40*12*(1+$K$4)*((1+$T40)^COUNTA($U40:AA40)),0))) ->  | O57: =IF($S40="","",IF(COUNTA($U40:AB40)=0,ROUND($S40*AC40*12*(1+$K$4),0),ROUND($S40*AC40*12*(1+$K$4)*((1+$T40)^COUNTA($U40:AB40)),0))) ->  | P57: =IF($S40="","",IF(COUNTA($U40:AC40)=0,ROUND($S40*AD40*12*(1+$K$4),0),ROUND($S40*AD40*12*(1+$K$4)*((1+$T40)^COUNTA($U40:AC40)),0))) -> 
B58: 6 | H58: =IF($S41="","",IF(G58="",ROUND($S41*V41*12*(1+$K$4),0),ROUND($S41*V41*12*(1+$K$4)*(1+$T41),0))) ->  | I58: =IF($S41="","",IF(COUNTA($U41:V41)=0,ROUND($S41*W41*12*(1+$K$4),0),ROUND($S41*W41*12*(1+$K$4)*((1+$T41)^COUNTA($U41:V41)),0))) ->  | J58: =IF($S41="","",IF(COUNTA($U41:W41)=0,ROUND($S41*X41*12*(1+$K$4),0),ROUND($S41*X41*12*(1+$K$4)*((1+$T41)^COUNTA($U41:W41)),0))) ->  | K58: =IF($S41="","",IF(COUNTA($U41:X41)=0,ROUND($S41*Y41*12*(1+$K$4),0),ROUND($S41*Y41*12*(1+$K$4)*((1+$T41)^COUNTA($U41:X41)),0))) ->  | L58: =IF($S41="","",IF(COUNTA($U41:Y41)=0,ROUND($S41*Z41*12*(1+$K$4),0),ROUND($S41*Z41*12*(1+$K$4)*((1+$T41)^COUNTA($U41:Y41)),0))) ->  | M58: =IF($S41="","",IF(COUNTA($U41:Z41)=0,ROUND($S41*AA41*12*(1+$K$4),0),ROUND($S41*AA41*12*(1+$K$4)*((1+$T41)^COUNTA($U41:Z41)),0))) ->  | N58: =IF($S41="","",IF(COUNTA($U41:AA41)=0,ROUND($S41*AB41*12*(1+$K$4),0),ROUND($S41*AB41*12*(1+$K$4)*((1+$T41)^COUNTA($U41:AA41)),0))) ->  | O58: =IF($S41="","",IF(COUNTA($U41:AB41)=0,ROUND($S41*AC41*12*(1+$K$4),0),ROUND($S41*AC41*12*(1+$K$4)*((1+$T41)^COUNTA($U41:AB41)),0))) ->  | P58: =IF($S41="","",IF(COUNTA($U41:AC41)=0,ROUND($S41*AD41*12*(1+$K$4),0),ROUND($S41*AD41*12*(1+$K$4)*((1+$T41)^COUNTA($U41:AC41)),0))) -> 
B59: 7 | H59: =IF($S42="","",IF(G59="",ROUND($S42*V42*12*(1+$K$4),0),ROUND($S42*V42*12*(1+$K$4)*(1+$T42),0))) ->  | I59: =IF($S42="","",IF(COUNTA($U42:V42)=0,ROUND($S42*W42*12*(1+$K$4),0),ROUND($S42*W42*12*(1+$K$4)*((1+$T42)^COUNTA($U42:V42)),0))) ->  | J59: =IF($S42="","",IF(COUNTA($U42:W42)=0,ROUND($S42*X42*12*(1+$K$4),0),ROUND($S42*X42*12*(1+$K$4)*((1+$T42)^COUNTA($U42:W42)),0))) ->  | K59: =IF($S42="","",IF(COUNTA($U42:X42)=0,ROUND($S42*Y42*12*(1+$K$4),0),ROUND($S42*Y42*12*(1+$K$4)*((1+$T42)^COUNTA($U42:X42)),0))) ->  | L59: =IF($S42="","",IF(COUNTA($U42:Y42)=0,ROUND($S42*Z42*12*(1+$K$4),0),ROUND($S42*Z42*12*(1+$K$4)*((1+$T42)^COUNTA($U42:Y42)),0))) ->  | M59: =IF($S42="","",IF(COUNTA($U42:Z42)=0,ROUND($S42*AA42*12*(1+$K$4),0),ROUND($S42*AA42*12*(1+$K$4)*((1+$T42)^COUNTA($U42:Z42)),0))) ->  | N59: =IF($S42="","",IF(COUNTA($U42:AA42)=0,ROUND($S42*AB42*12*(1+$K$4),0),ROUND($S42*AB42*12*(1+$K$4)*((1+$T42)^COUNTA($U42:AA42)),0))) ->  | O59: =IF($S42="","",IF(COUNTA($U42:AB42)=0,ROUND($S42*AC42*12*(1+$K$4),0),ROUND($S42*AC42*12*(1+$K$4)*((1+$T42)^COUNTA($U42:AB42)),0))) ->  | P59: =IF($S42="","",IF(COUNTA($U42:AC42)=0,ROUND($S42*AD42*12*(1+$K$4),0),ROUND($S42*AD42*12*(1+$K$4)*((1+$T42)^COUNTA($U42:AC42)),0))) -> 
B60: 8 | H60: =IF($S43="","",IF(G60="",ROUND($S43*V43*12*(1+$K$4),0),ROUND($S43*V43*12*(1+$K$4)*(1+$T43),0))) ->  | I60: =IF($S43="","",IF(COUNTA($U43:V43)=0,ROUND($S43*W43*12*(1+$K$4),0),ROUND($S43*W43*12*(1+$K$4)*((1+$T43)^COUNTA($U43:V43)),0))) ->  | J60: =IF($S43="","",IF(COUNTA($U43:W43)=0,ROUND($S43*X43*12*(1+$K$4),0),ROUND($S43*X43*12*(1+$K$4)*((1+$T43)^COUNTA($U43:W43)),0))) ->  | K60: =IF($S43="","",IF(COUNTA($U43:X43)=0,ROUND($S43*Y43*12*(1+$K$4),0),ROUND($S43*Y43*12*(1+$K$4)*((1+$T43)^COUNTA($U43:X43)),0))) ->  | L60: =IF($S43="","",IF(COUNTA($U43:Y43)=0,ROUND($S43*Z43*12*(1+$K$4),0),ROUND($S43*Z43*12*(1+$K$4)*((1+$T43)^COUNTA($U43:Y43)),0))) ->  | M60: =IF($S43="","",IF(COUNTA($U43:Z43)=0,ROUND($S43*AA43*12*(1+$K$4),0),ROUND($S43*AA43*12*(1+$K$4)*((1+$T43)^COUNTA($U43:Z43)),0))) ->  | N60: =IF($S43="","",IF(COUNTA($U43:AA43)=0,ROUND($S43*AB43*12*(1+$K$4),0),ROUND($S43*AB43*12*(1+$K$4)*((1+$T43)^COUNTA($U43:AA43)),0))) ->  | O60: =IF($S43="","",IF(COUNTA($U43:AB43)=0,ROUND($S43*AC43*12*(1+$K$4),0),ROUND($S43*AC43*12*(1+$K$4)*((1+$T43)^COUNTA($U43:AB43)),0))) ->  | P60: =IF($S43="","",IF(COUNTA($U43:AC43)=0,ROUND($S43*AD43*12*(1+$K$4),0),ROUND($S43*AD43*12*(1+$K$4)*((1+$T43)^COUNTA($U43:AC43)),0))) -> 
B61: 9 | H61: =IF($S44="","",IF(G61="",ROUND($S44*V44*12*(1+$K$4),0),ROUND($S44*V44*12*(1+$K$4)*(1+$T44),0))) ->  | I61: =IF($S44="","",IF(COUNTA($U44:V44)=0,ROUND($S44*W44*12*(1+$K$4),0),ROUND($S44*W44*12*(1+$K$4)*((1+$T44)^COUNTA($U44:V44)),0))) ->  | J61: =IF($S44="","",IF(COUNTA($U44:W44)=0,ROUND($S44*X44*12*(1+$K$4),0),ROUND($S44*X44*12*(1+$K$4)*((1+$T44)^COUNTA($U44:W44)),0))) ->  | K61: =IF($S44="","",IF(COUNTA($U44:X44)=0,ROUND($S44*Y44*12*(1+$K$4),0),ROUND($S44*Y44*12*(1+$K$4)*((1+$T44)^COUNTA($U44:X44)),0))) ->  | L61: =IF($S44="","",IF(COUNTA($U44:Y44)=0,ROUND($S44*Z44*12*(1+$K$4),0),ROUND($S44*Z44*12*(1+$K$4)*((1+$T44)^COUNTA($U44:Y44)),0))) ->  | M61: =IF($S44="","",IF(COUNTA($U44:Z44)=0,ROUND($S44*AA44*12*(1+$K$4),0),ROUND($S44*AA44*12*(1+$K$4)*((1+$T44)^COUNTA($U44:Z44)),0))) ->  | N61: =IF($S44="","",IF(COUNTA($U44:AA44)=0,ROUND($S44*AB44*12*(1+$K$4),0),ROUND($S44*AB44*12*(1+$K$4)*((1+$T44)^COUNTA($U44:AA44)),0))) ->  | O61: =IF($S44="","",IF(COUNTA($U44:AB44)=0,ROUND($S44*AC44*12*(1+$K$4),0),ROUND($S44*AC44*12*(1+$K$4)*((1+$T44)^COUNTA($U44:AB44)),0))) ->  | P61: =IF($S44="","",IF(COUNTA($U44:AC44)=0,ROUND($S44*AD44*12*(1+$K$4),0),ROUND($S44*AD44*12*(1+$K$4)*((1+$T44)^COUNTA($U44:AC44)),0))) -> 
B62: 10 | H62: =IF($S45="","",IF(G62="",ROUND($S45*V45*12*(1+$K$4),0),ROUND($S45*V45*12*(1+$K$4)*(1+$T45),0))) ->  | I62: =IF($S45="","",IF(COUNTA($U45:V45)=0,ROUND($S45*W45*12*(1+$K$4),0),ROUND($S45*W45*12*(1+$K$4)*((1+$T45)^COUNTA($U45:V45)),0))) ->  | J62: =IF($S45="","",IF(COUNTA($U45:W45)=0,ROUND($S45*X45*12*(1+$K$4),0),ROUND($S45*X45*12*(1+$K$4)*((1+$T45)^COUNTA($U45:W45)),0))) ->  | K62: =IF($S45="","",IF(COUNTA($U45:X45)=0,ROUND($S45*Y45*12*(1+$K$4),0),ROUND($S45*Y45*12*(1+$K$4)*((1+$T45)^COUNTA($U45:X45)),0))) ->  | L62: =IF($S45="","",IF(COUNTA($U45:Y45)=0,ROUND($S45*Z45*12*(1+$K$4),0),ROUND($S45*Z45*12*(1+$K$4)*((1+$T45)^COUNTA($U45:Y45)),0))) ->  | M62: =IF($S45="","",IF(COUNTA($U45:Z45)=0,ROUND($S45*AA45*12*(1+$K$4),0),ROUND($S45*AA45*12*(1+$K$4)*((1+$T45)^COUNTA($U45:Z45)),0))) ->  | N62: =IF($S45="","",IF(COUNTA($U45:AA45)=0,ROUND($S45*AB45*12*(1+$K$4),0),ROUND($S45*AB45*12*(1+$K$4)*((1+$T45)^COUNTA($U45:AA45)),0))) ->  | O62: =IF($S45="","",IF(COUNTA($U45:AB45)=0,ROUND($S45*AC45*12*(1+$K$4),0),ROUND($S45*AC45*12*(1+$K$4)*((1+$T45)^COUNTA($U45:AB45)),0))) ->  | P62: =IF($S45="","",IF(COUNTA($U45:AC45)=0,ROUND($S45*AD45*12*(1+$K$4),0),ROUND($S45*AD45*12*(1+$K$4)*((1+$T45)^COUNTA($U45:AC45)),0))) -> 
B63: 11 | H63: =IF($S46="","",IF(G63="",ROUND($S46*V46*12*(1+$K$4),0),ROUND($S46*V46*12*(1+$K$4)*(1+$T46),0))) ->  | I63: =IF($S46="","",IF(COUNTA($U46:V46)=0,ROUND($S46*W46*12*(1+$K$4),0),ROUND($S46*W46*12*(1+$K$4)*((1+$T46)^COUNTA($U46:V46)),0))) ->  | J63: =IF($S46="","",IF(COUNTA($U46:W46)=0,ROUND($S46*X46*12*(1+$K$4),0),ROUND($S46*X46*12*(1+$K$4)*((1+$T46)^COUNTA($U46:W46)),0))) ->  | K63: =IF($S46="","",IF(COUNTA($U46:X46)=0,ROUND($S46*Y46*12*(1+$K$4),0),ROUND($S46*Y46*12*(1+$K$4)*((1+$T46)^COUNTA($U46:X46)),0))) ->  | L63: =IF($S46="","",IF(COUNTA($U46:Y46)=0,ROUND($S46*Z46*12*(1+$K$4),0),ROUND($S46*Z46*12*(1+$K$4)*((1+$T46)^COUNTA($U46:Y46)),0))) ->  | M63: =IF($S46="","",IF(COUNTA($U46:Z46)=0,ROUND($S46*AA46*12*(1+$K$4),0),ROUND($S46*AA46*12*(1+$K$4)*((1+$T46)^COUNTA($U46:Z46)),0))) ->  | N63: =IF($S46="","",IF(COUNTA($U46:AA46)=0,ROUND($S46*AB46*12*(1+$K$4),0),ROUND($S46*AB46*12*(1+$K$4)*((1+$T46)^COUNTA($U46:AA46)),0))) ->  | O63: =IF($S46="","",IF(COUNTA($U46:AB46)=0,ROUND($S46*AC46*12*(1+$K$4),0),ROUND($S46*AC46*12*(1+$K$4)*((1+$T46)^COUNTA($U46:AB46)),0))) ->  | P63: =IF($S46="","",IF(COUNTA($U46:AC46)=0,ROUND($S46*AD46*12*(1+$K$4),0),ROUND($S46*AD46*12*(1+$K$4)*((1+$T46)^COUNTA($U46:AC46)),0))) -> 
B64: 12 | H64: =IF($S47="","",IF(G64="",ROUND($S47*V47*12*(1+$K$4),0),ROUND($S47*V47*12*(1+$K$4)*(1+$T47),0))) ->  | I64: =IF($S47="","",IF(COUNTA($U47:V47)=0,ROUND($S47*W47*12*(1+$K$4),0),ROUND($S47*W47*12*(1+$K$4)*((1+$T47)^COUNTA($U47:V47)),0))) ->  | J64: =IF($S47="","",IF(COUNTA($U47:W47)=0,ROUND($S47*X47*12*(1+$K$4),0),ROUND($S47*X47*12*(1+$K$4)*((1+$T47)^COUNTA($U47:W47)),0))) ->  | K64: =IF($S47="","",IF(COUNTA($U47:X47)=0,ROUND($S47*Y47*12*(1+$K$4),0),ROUND($S47*Y47*12*(1+$K$4)*((1+$T47)^COUNTA($U47:X47)),0))) ->  | L64: =IF($S47="","",IF(COUNTA($U47:Y47)=0,ROUND($S47*Z47*12*(1+$K$4),0),ROUND($S47*Z47*12*(1+$K$4)*((1+$T47)^COUNTA($U47:Y47)),0))) ->  | M64: =IF($S47="","",IF(COUNTA($U47:Z47)=0,ROUND($S47*AA47*12*(1+$K$4),0),ROUND($S47*AA47*12*(1+$K$4)*((1+$T47)^COUNTA($U47:Z47)),0))) ->  | N64: =IF($S47="","",IF(COUNTA($U47:AA47)=0,ROUND($S47*AB47*12*(1+$K$4),0),ROUND($S47*AB47*12*(1+$K$4)*((1+$T47)^COUNTA($U47:AA47)),0))) ->  | O64: =IF($S47="","",IF(COUNTA($U47:AB47)=0,ROUND($S47*AC47*12*(1+$K$4),0),ROUND($S47*AC47*12*(1+$K$4)*((1+$T47)^COUNTA($U47:AB47)),0))) ->  | P64: =IF($S47="","",IF(COUNTA($U47:AC47)=0,ROUND($S47*AD47*12*(1+$K$4),0),ROUND($S47*AD47*12*(1+$K$4)*((1+$T47)^COUNTA($U47:AC47)),0))) -> 
B65: 13 | H65: =IF($S48="","",IF(G65="",ROUND($S48*V48*12*(1+$K$4),0),ROUND($S48*V48*12*(1+$K$4)*(1+$T48),0))) ->  | I65: =IF($S48="","",IF(COUNTA($U48:V48)=0,ROUND($S48*W48*12*(1+$K$4),0),ROUND($S48*W48*12*(1+$K$4)*((1+$T48)^COUNTA($U48:V48)),0))) ->  | J65: =IF($S48="","",IF(COUNTA($U48:W48)=0,ROUND($S48*X48*12*(1+$K$4),0),ROUND($S48*X48*12*(1+$K$4)*((1+$T48)^COUNTA($U48:W48)),0))) ->  | K65: =IF($S48="","",IF(COUNTA($U48:X48)=0,ROUND($S48*Y48*12*(1+$K$4),0),ROUND($S48*Y48*12*(1+$K$4)*((1+$T48)^COUNTA($U48:X48)),0))) ->  | L65: =IF($S48="","",IF(COUNTA($U48:Y48)=0,ROUND($S48*Z48*12*(1+$K$4),0),ROUND($S48*Z48*12*(1+$K$4)*((1+$T48)^COUNTA($U48:Y48)),0))) ->  | M65: =IF($S48="","",IF(COUNTA($U48:Z48)=0,ROUND($S48*AA48*12*(1+$K$4),0),ROUND($S48*AA48*12*(1+$K$4)*((1+$T48)^COUNTA($U48:Z48)),0))) ->  | N65: =IF($S48="","",IF(COUNTA($U48:AA48)=0,ROUND($S48*AB48*12*(1+$K$4),0),ROUND($S48*AB48*12*(1+$K$4)*((1+$T48)^COUNTA($U48:AA48)),0))) ->  | O65: =IF($S48="","",IF(COUNTA($U48:AB48)=0,ROUND($S48*AC48*12*(1+$K$4),0),ROUND($S48*AC48*12*(1+$K$4)*((1+$T48)^COUNTA($U48:AB48)),0))) ->  | P65: =IF($S48="","",IF(COUNTA($U48:AC48)=0,ROUND($S48*AD48*12*(1+$K$4),0),ROUND($S48*AD48*12*(1+$K$4)*((1+$T48)^COUNTA($U48:AC48)),0))) -> 
B66: 14 | H66: =IF($S49="","",IF(G66="",ROUND($S49*V49*12*(1+$K$4),0),ROUND($S49*V49*12*(1+$K$4)*(1+$T49),0))) ->  | I66: =IF($S49="","",IF(COUNTA($U49:V49)=0,ROUND($S49*W49*12*(1+$K$4),0),ROUND($S49*W49*12*(1+$K$4)*((1+$T49)^COUNTA($U49:V49)),0))) ->  | J66: =IF($S49="","",IF(COUNTA($U49:W49)=0,ROUND($S49*X49*12*(1+$K$4),0),ROUND($S49*X49*12*(1+$K$4)*((1+$T49)^COUNTA($U49:W49)),0))) ->  | K66: =IF($S49="","",IF(COUNTA($U49:X49)=0,ROUND($S49*Y49*12*(1+$K$4),0),ROUND($S49*Y49*12*(1+$K$4)*((1+$T49)^COUNTA($U49:X49)),0))) ->  | L66: =IF($S49="","",IF(COUNTA($U49:Y49)=0,ROUND($S49*Z49*12*(1+$K$4),0),ROUND($S49*Z49*12*(1+$K$4)*((1+$T49)^COUNTA($U49:Y49)),0))) ->  | M66: =IF($S49="","",IF(COUNTA($U49:Z49)=0,ROUND($S49*AA49*12*(1+$K$4),0),ROUND($S49*AA49*12*(1+$K$4)*((1+$T49)^COUNTA($U49:Z49)),0))) ->  | N66: =IF($S49="","",IF(COUNTA($U49:AA49)=0,ROUND($S49*AB49*12*(1+$K$4),0),ROUND($S49*AB49*12*(1+$K$4)*((1+$T49)^COUNTA($U49:AA49)),0))) ->  | O66: =IF($S49="","",IF(COUNTA($U49:AB49)=0,ROUND($S49*AC49*12*(1+$K$4),0),ROUND($S49*AC49*12*(1+$K$4)*((1+$T49)^COUNTA($U49:AB49)),0))) ->  | P66: =IF($S49="","",IF(COUNTA($U49:AC49)=0,ROUND($S49*AD49*12*(1+$K$4),0),ROUND($S49*AD49*12*(1+$K$4)*((1+$T49)^COUNTA($U49:AC49)),0))) -> 
B67: 15 | C67: =IF(G50="","",G50) ->  | G67: =IF(IF($S50="","",ROUND($S50*U50*12*(1+$K$4),0))=0,"",IF($S50="","",ROUND($S50*U50*12*(1+$K$4),0))) ->  | H67: =IF($S50="","",IF(G67="",ROUND($S50*V50*12*(1+$K$4),0),ROUND($S50*V50*12*(1+$K$4)*(1+$T50),0))) ->  | I67: =IF($S50="","",IF(COUNTA($U50:V50)=0,ROUND($S50*W50*12*(1+$K$4),0),ROUND($S50*W50*12*(1+$K$4)*((1+$T50)^COUNTA($U50:V50)),0))) ->  | J67: =IF($S50="","",IF(COUNTA($U50:W50)=0,ROUND($S50*X50*12*(1+$K$4),0),ROUND($S50*X50*12*(1+$K$4)*((1+$T50)^COUNTA($U50:W50)),0))) ->  | K67: =IF($S50="","",IF(COUNTA($U50:X50)=0,ROUND($S50*Y50*12*(1+$K$4),0),ROUND($S50*Y50*12*(1+$K$4)*((1+$T50)^COUNTA($U50:X50)),0))) ->  | L67: =IF($S50="","",IF(COUNTA($U50:Y50)=0,ROUND($S50*Z50*12*(1+$K$4),0),ROUND($S50*Z50*12*(1+$K$4)*((1+$T50)^COUNTA($U50:Y50)),0))) ->  | M67: =IF($S50="","",IF(COUNTA($U50:Z50)=0,ROUND($S50*AA50*12*(1+$K$4),0),ROUND($S50*AA50*12*(1+$K$4)*((1+$T50)^COUNTA($U50:Z50)),0))) ->  | N67: =IF($S50="","",IF(COUNTA($U50:AA50)=0,ROUND($S50*AB50*12*(1+$K$4),0),ROUND($S50*AB50*12*(1+$K$4)*((1+$T50)^COUNTA($U50:AA50)),0))) ->  | O67: =IF($S50="","",IF(COUNTA($U50:AB50)=0,ROUND($S50*AC50*12*(1+$K$4),0),ROUND($S50*AC50*12*(1+$K$4)*((1+$T50)^COUNTA($U50:AB50)),0))) ->  | P67: =IF($S50="","",IF(COUNTA($U50:AC50)=0,ROUND($S50*AD50*12*(1+$K$4),0),ROUND($S50*AD50*12*(1+$K$4)*((1+$T50)^COUNTA($U50:AC50)),0))) -> 
B68: Totalt | G68: =IF(SUM(G53:G67)=0,"",SUM(G53:G67)) ->  | L68: =IF(SUM(L53:L67)=0,"",SUM(L53:L67)) ->  | M68: =IF(SUM(M53:M67)=0,"",SUM(M53:M67)) ->  | N68: =IF(SUM(N53:N67)=0,"",SUM(N53:N67)) ->  | O68: =IF(SUM(O53:O67)=0,"",SUM(O53:O67)) ->  | P68: =IF(SUM(P53:P67)=0,"",SUM(P53:P67)) ->  | Q68: =IF(SUM(Q53:Q67)=0,"",SUM(Q53:Q67)) -> 
B70: Lokaler | U70: =G$52 -> Välj start år | V70: =H$52 ->  | W70: =I$52 ->  | X70: =J$52 ->  | Y70: =K$52 ->  | Z70: =L$52 ->  | AA70: =M$52 ->  | AB70: =N$52 ->  | AC70: =O$52 ->  | AD70: =P$52 -> 
C71: Typ av lokal | G71: =$D$6 -> 0 | H71: =G71+1 -> 1 | I71: 2 | J71: 3 | K71: 4 | L71: 5 | M71: 6 | N71: 7 | O71: 8 | P71: 9 | Q71: Totalt | S71: Tot kostnad | T71: Indexering | U71: Förbr. % | V71: Förbr. % | W71: Förbr. % | X71: Förbr. % | Y71: Förbr. % | Z71: Förbr. % | AA71: Förbr. % | AB71: Förbr. % | AC71: Förbr. % | AD71: Förbr. %
B72: 1 | G72: =IF($S72*U72*(1+$T72)=0,"",$S72*U72*(1+$T72)) ->  | H72: =IF($S72*V72*(1+$T72)=0,"",$S72*V72*(1+$T72)) ->  | I72: =IF($S72*W72*(1+$T72)=0,"",$S72*W72*(1+$T72)) ->  | J72: =IF($S72*X72*(1+$T72)=0,"",$S72*X72*(1+$T72)) ->  | K72: =IF($S72*Y72*(1+$T72)=0,"",$S72*Y72*(1+$T72)) ->  | L72: =IF($S72*Z72*(1+$T72)=0,"",$S72*Z72*(1+$T72)) ->  | M72: =IF($S72*AA72*(1+$T72)=0,"",$S72*AA72*(1+$T72)) ->  | N72: =IF($S72*AB72*(1+$T72)=0,"",$S72*AB72*(1+$T72)) ->  | O72: =IF($S72*AC72*(1+$T72)=0,"",$S72*AC72*(1+$T72)) ->  | P72: =IF($S72*AD72*(1+$T72)=0,"",$S72*AD72*(1+$T72)) ->  | Q72: =IF(SUM(G72:P72)=0,"",SUM(G72:P72)) ->  | T72: 0
B73: 2 | G73: =IF($S73*U73*(1+$T73)=0,"",$S73*U73*(1+$T73)) ->  | Q73: =IF(SUM(G73:P73)=0,"",SUM(G73:P73)) ->  | T73: 0
B74: 3 | T74: 0
B75: 4 | T75: 0
B76: 5 | T76: 0
B77: Totalt | G77: =IF(SUM(G72:G76)=0,"",SUM(G72:G76)) ->  | H77: =IF(SUM(H72:H76)=0,"",SUM(H72:H76)) -> 
B79: Driftkostnader | U79: =G$52 -> Välj start år | V79: =H$52 ->  | W79: =I$52 ->  | X79: =J$52 ->  | Y79: =K$52 ->  | Z79: =L$52 ->  | AA79: =M$52 ->  | AB79: =N$52 ->  | AC79: =O$52 ->  | AD79: =P$52 -> 
C80: Driftkostnader | D80: Beskrivning | G80: =$D$6 -> 0 | H80: =G80+1 -> 1 | I80: 2 | J80: 3 | K80: 4 | L80: 5 | M80: 6 | N80: 7 | O80: 8 | P80: 9 | Q80: Totalt | S80: Tot kostnad | T80: Indexering | U80: Förbr. % | V80: Förbr. % | W80: Förbr. % | X80: Förbr. % | Y80: Förbr. % | Z80: Förbr. % | AA80: Förbr. % | AB80: Förbr. % | AC80: Förbr. % | AD80: Förbr. %
B81: 1 | G81: =IF($S81*U81*(1+$T81)=0,"",$S81*U81*(1+$T81)) ->  | H81: =IF($S81*V81*(1+$T81)=0,"",$S81*V81*(1+$T81)) ->  | I81: =IF($S81*W81*(1+$T81)=0,"",$S81*W81*(1+$T81)) ->  | J81: =IF($S81*X81*(1+$T81)=0,"",$S81*X81*(1+$T81)) ->  | K81: =IF($S81*Y81*(1+$T81)=0,"",$S81*Y81*(1+$T81)) ->  | L81: =IF($S81*Z81*(1+$T81)=0,"",$S81*Z81*(1+$T81)) ->  | M81: =IF($S81*AA81*(1+$T81)=0,"",$S81*AA81*(1+$T81)) ->  | N81: =IF($S81*AB81*(1+$T81)=0,"",$S81*AB81*(1+$T81)) ->  | O81: =IF($S81*AC81*(1+$T81)=0,"",$S81*AC81*(1+$T81)) ->  | P81: =IF($S81*AD81*(1+$T81)=0,"",$S81*AD81*(1+$T81)) ->  | Q81: =IF(SUM(G81:P81)=0,"",SUM(G81:P81)) ->  | T81: 0
B82: 2 | G82: =IF($S82*U82*(1+$T82)=0,"",$S82*U82*(1+$T82)) ->  | Q82: =IF(SUM(G82:P82)=0,"",SUM(G82:P82)) ->  | T82: 0
B83: 3 | T83: 0
B84: 4 | T84: 0
B85: 5 | T85: 0
B86: 6 | T86: 0
B87: 7 | T87: 0
B88: 8 | T88: 0
B89: 9 | T89: 0
B90: 10 | T90: 0
B91: INDI undantagna driftskostander
B92: 11 | G92: =IF($S92*U92*(1+$T92)=0,"",$S92*U92*(1+$T92)) ->  | H92: =IF($S92*V92*(1+$T92)=0,"",$S92*V92*(1+$T92)) ->  | I92: =IF($S92*W92*(1+$T92)=0,"",$S92*W92*(1+$T92)) ->  | J92: =IF($S92*X92*(1+$T92)=0,"",$S92*X92*(1+$T92)) ->  | K92: =IF($S92*Y92*(1+$T92)=0,"",$S92*Y92*(1+$T92)) ->  | L92: =IF($S92*Z92*(1+$T92)=0,"",$S92*Z92*(1+$T92)) ->  | M92: =IF($S92*AA92*(1+$T92)=0,"",$S92*AA92*(1+$T92)) ->  | N92: =IF($S92*AB92*(1+$T92)=0,"",$S92*AB92*(1+$T92)) ->  | O92: =IF($S92*AC92*(1+$T92)=0,"",$S92*AC92*(1+$T92)) ->  | P92: =IF($S92*AD92*(1+$T92)=0,"",$S92*AD92*(1+$T92)) ->  | T92: 0
B93: 12 | T93: 0
B94: 13 | T94: 0
B95: 14 | T95: 0
B96: 15 | T96: 0
B97: Totalt | G97: =IF(SUM(G81:G96)=0,"",SUM(G81:G96)) ->  | K97: =IF(SUM(K81:K96)=0,"",SUM(K81:K96)) ->  | L97: =IF(SUM(L81:L96)=0,"",SUM(L81:L96)) ->  | S97: =IF(SUM(S81:S96)=0,"",SUM(S81:S96)) -> 
B99: Avskrivningar utrustning | S99: Investeringsbudget | V99: =G$52 -> Välj start år | W99: =H$52 -> 
C100: Avskrivning | D100: Beskrivning | G100: =$D$6 -> 0 | H100: =G100+1 -> 1 | I100: 2 | J100: 3 | K100: 4 | L100: 5 | M100: 6 | N100: 7 | O100: 8 | P100: 9 | Q100: Totalt | S100: Inköpsvärde | T100: Inköpsår | U100: Avsk.tid | V100: Omf % | W100: Omf % | X100: Omf % | Y100: Omf % | Z100: Omf % | AA100: Omf % | AB100: Omf % | AC100: Omf % | AD100: Omf % | AE100: Omf %
B101: 1 | G101: =IFERROR(IF(AND(G$100>=$T101,G$100<$T101+LEFT($U101,2)),($S101/LEFT($U101,2))*V101,IF(G$100>$T101+LEFT($U101,2),0,0)),"") ->  | H101: =IFERROR(IF(AND(H$100>=$T101,H$100<$T101+LEFT($U101,2)),($S101/LEFT($U101,2))*W101,IF(H$100>$T101+LEFT($U101,2),0,0)),"") ->  | Q101: =IF(SUM(G101:P101)=0,"",SUM(G101:P101)) -> 
B102: 2 | G102: =IFERROR(IF(AND(G$100>=$T102,G$100<$T102+LEFT($U102,2)),($S102/LEFT($U102,2))*V102,IF(G$100>$T102+LEFT($U102,2),0,0)),"") ->  | Q102: =IF(SUM(G102:P102)=0,"",SUM(G102:P102)) -> 
B103: 3 | Q103: =IF(SUM(G103:P103)=0,"",SUM(G103:P103)) -> 
B104: 4
B105: 5
B106: 6
B107: 7
B108: 8
B109: 9
B110: 10
B111: Totalt | G111: =IF(SUM(G101:G110)=0,"",SUM(G101:G110)) ->  | K111: =IF(SUM(K101:K110)=0,"",SUM(K101:K110)) ->  | L111: =IF(SUM(L101:L110)=0,"",SUM(L101:L110)) ->  | S111: =IF(SUM(S101:S110)=0,"",SUM(S101:S110)) -> 
B113: Total kostnad för projektet
B115: Total budget
C116: Specifcierade kostander | G116: =$D$6 -> 0 | H116: =G116+1 -> 1 | I116: 2 | J116: 3 | K116: 4 | L116: 5 | M116: 6 | N116: 7 | O116: 8 | P116: 9
B117: 1 | C117: Löner inkl. sociala avgifter | G117: =G68 -> 
B118: 2 | C118: Driftskostander | G118: =G97 ->  | H118: =H97 -> 
B119: 3 | C119: Avskrivningar utrustning | G119: =G111 ->  | H119: =H111 -> 
B120: 4 | C120: Lokaler | G120: =G77 -> 
B121: 5 | C121: Delsumma | G121: =IF(SUM(G117:G120)=0,"",SUM(G117:G120)) ->  | H121: =IF(SUM(H117:H120)=0,"",SUM(H117:H120)) -> 
B122: 6 | C122: Indirekta kostnader | G122: =IFERROR((G117+SUM(G81:G90))*($K$5),"Välj institution") -> Välj institution | H122: =IFERROR((H117+SUM(H81:H90))*($K$5),"Välj institution") -> Välj institution | I122: Välj institution | J122: Välj institution | K122: Välj institution | L122: Välj institution | M122: Välj institution | N122: Välj institution | O122: Välj institution | P122: Välj institution
B123: 7 | C123: Total projektkostnad | G123: =IFERROR(G121+G122,"") ->  | H123: =IFERROR(H121+H122,"") -> 
G124: Totalt, sökt | J124: Annan kostnad | Q124: Total kostnad
B125: 1 | C125: Löner inkl. sociala avgifter | G125: =SUM(G117:P117) -> 0 | J125: 0 | Q125: =G125+J125 -> 0
B126: 2 | C126: Driftskostander | G126: =SUM(G118:P118) -> 0 | J126: 0 | Q126: =G126+J126 -> 0
B127: 3 | C127: Avskrivningar utrustning | G127: =SUM(G119:P119) -> 0 | J127: 0 | Q127: =G127+J127 -> 0
B128: 4 | C128: Lokaler | G128: 0 | J128: 0 | Q128: =G128+J128 -> 0
B129: 5 | C129: Delsumma | G129: 0 | J129: 0 | Q129: =G129+J129 -> 0
B130: 6 | C130: Indirekta kostnader | G130: =IFERROR(SUM(G122:P122),"Välj institution") -> 0 | J130: =IFERROR((J125+J126)*(1+$K$5),"Välj institution") -> Välj institution | Q130: =IFERROR(G130+J130,"Välj institution") -> Välj institution
B131: 7 | C131: Total projektkostnad | G131: =IFERROR(G129+G130,"Välj institution") -> 0 | J131: =IFERROR(J129+J130,"Välj institution") -> Välj institution | Q131: =IFERROR(G131+J131,"Välj institution") -> Välj institution

Sheet Inläsning UBW Planner (hidden)
A1: Konto | B1: Projekt | C1: Start period | D1: Slut period | E1: Belopp | F1: Text
A2: =IF(C2="","",3511) ->  | B2: =IF('Bidragsforskning VR (Prisma)'!$D$9="","Ange projeknummer",'Bidragsforskning VR (Prisma)'!$D$9) -> Ange projeknummer | C2: =IF('Bidragsforskning VR (Prisma)'!$D$6<'Bidragsforskning VR (Prisma)'!$G$52,"",'Bidragsforskning VR (Prisma)'!$G$52&"01") ->  | D2: =IF('Bidragsforskning VR (Prisma)'!$D$6<'Bidragsforskning VR (Prisma)'!$G$52,"",'Bidragsforskning VR (Prisma)'!$G$52&"12") ->  | E2: =IFERROR(IF('Inläsning UBW Planner'!C2="","",ROUND('Bidragsforskning VR (Prisma)'!G$123,0))*-1,0) -> 0 | F2: ="Budget år "&LEFT(C2,4) -> Budget år
A3: 4011 | B3: =IF('Bidragsforskning VR (Prisma)'!$D$9="","Ange projeknummer",'Bidragsforskning VR (Prisma)'!$D$9) -> Ange projeknummer | C3: =IF('Bidragsforskning VR (Prisma)'!$D$6<'Bidragsforskning VR (Prisma)'!$G$52,"",'Bidragsforskning VR (Prisma)'!$G$52&"01") ->  | D3: =IF('Bidragsforskning VR (Prisma)'!$D$6<'Bidragsforskning VR (Prisma)'!$G$52,"",'Bidragsforskning VR (Prisma)'!$G$52&"12") ->  | E3: =IFERROR(IF(C3="","",ROUND('Bidragsforskning VR (Prisma)'!G$117,0)),0) ->  | F3: ="Budget år "&LEFT(C3,4) -> Budget år
A4: 50111 | B4: =IF('Bidragsforskning VR (Prisma)'!$D$9="","Ange projeknummer",'Bidragsforskning VR (Prisma)'!$D$9) -> Ange projeknummer | C4: =IF('Bidragsforskning VR (Prisma)'!$D$6<'Bidragsforskning VR (Prisma)'!$G$52,"",'Bidragsforskning VR (Prisma)'!$G$52&"01") ->  | D4: =IF('Bidragsforskning VR (Prisma)'!$D$6<'Bidragsforskning VR (Prisma)'!$G$52,"",'Bidragsforskning VR (Prisma)'!$G$52&"12") ->  | E4: =IFERROR(IF(C4="","",ROUND('Bidragsforskning VR (Prisma)'!G$120,0)),0) ->  | F4: Budget år
A5: 5871 | B5: =IF('Bidragsforskning VR (Prisma)'!$D$9="","Ange projeknummer",'Bidragsforskning VR (Prisma)'!$D$9) -> Ange projeknummer | C5: =IF('Bidragsforskning VR (Prisma)'!$D$6<'Bidragsforskning VR (Prisma)'!$G$52,"",'Bidragsforskning VR (Prisma)'!$G$52&"01") ->  | D5: =IF('Bidragsforskning VR (Prisma)'!$D$6<'Bidragsforskning VR (Prisma)'!$G$52,"",'Bidragsforskning VR (Prisma)'!$G$52&"12") ->  | E5: =IFERROR(IF(C5="","",ROUND(SUM('Bidragsforskning VR (Prisma)'!G$81:G$90),0)),0) ->  | F5: Budget år
A6: 57849 | B6: =IF('Bidragsforskning VR (Prisma)'!$D$9="","Ange projeknummer",'Bidragsforskning VR (Prisma)'!$D$9) -> Ange projeknummer | C6: =IF('Bidragsforskning VR (Prisma)'!$D$6<'Bidragsforskning VR (Prisma)'!$G$52,"",'Bidragsforskning VR (Prisma)'!$G$52&"01") ->  | D6: =IF('Bidragsforskning VR (Prisma)'!$D$6<'Bidragsforskning VR (Prisma)'!$G$52,"",'Bidragsforskning VR (Prisma)'!$G$52&"12") ->  | E6: =IFERROR(IF(C6="","",ROUND(SUM('Bidragsforskning VR (Prisma)'!G$92:G$96),0)),0) ->  | F6: Budget år
A7: 6911 | B7: =IF('Bidragsforskning VR (Prisma)'!$D$9="","Ange projeknummer",'Bidragsforskning VR (Prisma)'!$D$9) -> Ange projeknummer | C7: =IF('Bidragsforskning VR (Prisma)'!$D$6<'Bidragsforskning VR (Prisma)'!$G$52,"",'Bidragsforskning VR (Prisma)'!$G$52&"01") ->  | D7: =IF('Bidragsforskning VR (Prisma)'!$D$6<'Bidragsforskning VR (Prisma)'!$G$52,"",'Bidragsforskning VR (Prisma)'!$G$52&"12") ->  | E7: =IFERROR(IF(C7="","",ROUND('Bidragsforskning VR (Prisma)'!G$119,0)),0) ->  | F7: Budget år
A8: 49988 | B8: =IF('Bidragsforskning VR (Prisma)'!$D$9="","Ange projeknummer",'Bidragsforskning VR (Prisma)'!$D$9) -> Ange projeknummer | C8: =IF('Bidragsforskning VR (Prisma)'!$D$6<'Bidragsforskning VR (Prisma)'!$G$52,"",'Bidragsforskning VR (Prisma)'!$G$52&"01") ->  | D8: =IF('Bidragsforskning VR (Prisma)'!$D$6<'Bidragsforskning VR (Prisma)'!$G$52,"",'Bidragsforskning VR (Prisma)'!$G$52&"12") ->  | E8: =IFERROR(IF(C8="","",ROUND('Bidragsforskning VR (Prisma)'!G$122,0)),0) ->  | F8: Budget år
A9: =IF(C9="","",3511) -> 3511 | B9: =IF(C9="","",IF('Bidragsforskning VR (Prisma)'!$D$9="","Ange projeknummer",'Bidragsforskning VR (Prisma)'!$D$9)) -> Ange projeknummer | C9: =IF('Bidragsforskning VR (Prisma)'!$D$7<'Bidragsforskning VR (Prisma)'!$H$52,"",'Bidragsforskning VR (Prisma)'!$H$52&"01") -> 01 | D9: =IF('Bidragsforskning VR (Prisma)'!$D$7<'Bidragsforskning VR (Prisma)'!$H$52,"",'Bidragsforskning VR (Prisma)'!$H$52&"12") -> 12 | E9: =IFERROR(IF('Inläsning UBW Planner'!C9="","",ROUND('Bidragsforskning VR (Prisma)'!H$123,0))*-1,0) -> 0 | F9: =IF(C9="","","Budget år "&LEFT(C9,4)) -> Budget år 01
A10: =IF(C10="","",4011) -> 4011 | B10: =IF(C10="","",IF('Bidragsforskning VR (Prisma)'!$D$9="","Ange projeknummer",'Bidragsforskning VR (Prisma)'!$D$9)) -> Ange projeknummer | C10: =IF('Bidragsforskning VR (Prisma)'!$D$7<'Bidragsforskning VR (Prisma)'!$H$52,"",'Bidragsforskning VR (Prisma)'!$H$52&"01") -> 01 | D10: =IF('Bidragsforskning VR (Prisma)'!$D$7<'Bidragsforskning VR (Prisma)'!$H$52,"",'Bidragsforskning VR (Prisma)'!$H$52&"12") -> 12 | E10: =IFERROR(IF(C10="","",ROUND('Bidragsforskning VR (Prisma)'!H$117,0)),0) -> 0 | F10: =IF(C10="","","Budget år "&LEFT(C10,4)) -> Budget år 01
A11: =IF(C11="","",50111) -> 50111 | B11: =IF(C11="","",IF('Bidragsforskning VR (Prisma)'!$D$9="","Ange projeknummer",'Bidragsforskning VR (Prisma)'!$D$9)) -> Ange projeknummer | C11: =IF('Bidragsforskning VR (Prisma)'!$D$7<'Bidragsforskning VR (Prisma)'!$H$52,"",'Bidragsforskning VR (Prisma)'!$H$52&"01") -> 01 | D11: =IF('Bidragsforskning VR (Prisma)'!$D$7<'Bidragsforskning VR (Prisma)'!$H$52,"",'Bidragsforskning VR (Prisma)'!$H$52&"12") -> 12 | E11: =IFERROR(IF(C11="","",ROUND('Bidragsforskning VR (Prisma)'!H$120,0)),0) -> 0 | F11: Budget år 01
A12: =IF(C12="","",5871) -> 5871 | B12: =IF(C12="","",IF('Bidragsforskning VR (Prisma)'!$D$9="","Ange projeknummer",'Bidragsforskning VR (Prisma)'!$D$9)) -> Ange projeknummer | C12: =IF('Bidragsforskning VR (Prisma)'!$D$7<'Bidragsforskning VR (Prisma)'!$H$52,"",'Bidragsforskning VR (Prisma)'!$H$52&"01") -> 01 | D12: =IF('Bidragsforskning VR (Prisma)'!$D$7<'Bidragsforskning VR (Prisma)'!$H$52,"",'Bidragsforskning VR (Prisma)'!$H$52&"12") -> 12 | E12: =IFERROR(IF(C12="","",ROUND(SUM('Bidragsforskning VR (Prisma)'!H$81:H$90),0)),0) -> 0 | F12: Budget år 01
A13: =IF(C13="","",57849) -> 57849 | B13: =IF(C13="","",IF('Bidragsforskning VR (Prisma)'!$D$9="","Ange projeknummer",'Bidragsforskning VR (Prisma)'!$D$9)) -> Ange projeknummer | C13: =IF('Bidragsforskning VR (Prisma)'!$D$7<'Bidragsforskning VR (Prisma)'!$H$52,"",'Bidragsforskning VR (Prisma)'!$H$52&"01") -> 01 | D13: =IF('Bidragsforskning VR (Prisma)'!$D$7<'Bidragsforskning VR (Prisma)'!$H$52,"",'Bidragsforskning VR (Prisma)'!$H$52&"12") -> 12 | E13: =IFERROR(IF(C13="","",ROUND(SUM('Bidragsforskning VR (Prisma)'!H$92:H$96),0)),0) -> 0 | F13: Budget år 01
A14: =IF(C14="","",6911) -> 6911 | B14: =IF(C14="","",IF('Bidragsforskning VR (Prisma)'!$D$9="","Ange projeknummer",'Bidragsforskning VR (Prisma)'!$D$9)) -> Ange projeknummer | C14: =IF('Bidragsforskning VR (Prisma)'!$D$7<'Bidragsforskning VR (Prisma)'!$H$52,"",'Bidragsforskning VR (Prisma)'!$H$52&"01") -> 01 | D14: =IF('Bidragsforskning VR (Prisma)'!$D$7<'Bidragsforskning VR (Prisma)'!$H$52,"",'Bidragsforskning VR (Prisma)'!$H$52&"12") -> 12 | E14: =IFERROR(IF(C14="","",ROUND('Bidragsforskning VR (Prisma)'!H$119,0)),0) -> 0 | F14: Budget år 01
A15: =IF(C15="","",49988) -> 49988 | B15: =IF(C15="","",IF('Bidragsforskning VR (Prisma)'!$D$9="","Ange projeknummer",'Bidragsforskning VR (Prisma)'!$D$9)) -> Ange projeknummer | C15: =IF('Bidragsforskning VR (Prisma)'!$D$7<'Bidragsforskning VR (Prisma)'!$H$52,"",'Bidragsforskning VR (Prisma)'!$H$52&"01") -> 01 | D15: =IF('Bidragsforskning VR (Prisma)'!$D$7<'Bidragsforskning VR (Prisma)'!$H$52,"",'Bidragsforskning VR (Prisma)'!$H$52&"12") -> 12 | E15: =IFERROR(IF(C15="","",ROUND('Bidragsforskning VR (Prisma)'!H$122,0)),0) -> 0 | F15: Budget år 01
A16: =IF(C16="","",3511) -> 3511 | B16: =IF(C16="","",IF('Bidragsforskning VR (Prisma)'!$D$9="","Ange projeknummer",'Bidragsforskning VR (Prisma)'!$D$9)) -> Ange projeknummer | C16: =IF('Bidragsforskning VR (Prisma)'!$D$7<'Bidragsforskning VR (Prisma)'!$I$52,"",'Bidragsforskning VR (Prisma)'!$I$52&"01") -> 01 | D16: =IF('Bidragsforskning VR (Prisma)'!$D$7<'Bidragsforskning VR (Prisma)'!$I$52,"",'Bidragsforskning VR (Prisma)'!$I$52&"12") -> 12 | E16: =IFERROR(IF(IF('Inläsning UBW Planner'!C16="","",ROUND('Bidragsforskning VR (Prisma)'!I$123,0))*-1=0,0,IF('Inläsning UBW Planner'!C16="","",ROUND('Bidragsforskning VR (Prisma)'!I$123,0))*-1),0) -> 0 | F16: =IF(C16="","","Budget år "&LEFT(C16,4)) -> Budget år 01
A17: =IF(C17="","",4011) -> 4011 | B17: =IF(C17="","",IF('Bidragsforskning VR (Prisma)'!$D$9="","Ange projeknummer",'Bidragsforskning VR (Prisma)'!$D$9)) -> Ange projeknummer | C17: =IF('Bidragsforskning VR (Prisma)'!$D$7<'Bidragsforskning VR (Prisma)'!$I$52,"",'Bidragsforskning VR (Prisma)'!$I$52&"01") -> 01 | D17: =IF('Bidragsforskning VR (Prisma)'!$D$7<'Bidragsforskning VR (Prisma)'!$I$52,"",'Bidragsforskning VR (Prisma)'!$I$52&"12") -> 12 | E17: =IFERROR(IF(C17="","",ROUND('Bidragsforskning VR (Prisma)'!I$117,0)),0) -> 0 | F17: =IF(C17="","","Budget år "&LEFT(C17,4)) -> Budget år 01
A18: =IF(C18="","",50111) -> 50111 | B18: =IF(C18="","",IF('Bidragsforskning VR (Prisma)'!$D$9="","Ange projeknummer",'Bidragsforskning VR (Prisma)'!$D$9)) -> Ange projeknummer | C18: =IF('Bidragsforskning VR (Prisma)'!$D$7<'Bidragsforskning VR (Prisma)'!$I$52,"",'Bidragsforskning VR (Prisma)'!$I$52&"01") -> 01 | D18: =IF('Bidragsforskning VR (Prisma)'!$D$7<'Bidragsforskning VR (Prisma)'!$I$52,"",'Bidragsforskning VR (Prisma)'!$I$52&"12") -> 12 | E18: =IFERROR(IF(C18="","",ROUND('Bidragsforskning VR (Prisma)'!I$120,0)),0) -> 0 | F18: Budget år 01
A19: =IF(C19="","",5871) -> 5871 | B19: =IF(C19="","",IF('Bidragsforskning VR (Prisma)'!$D$9="","Ange projeknummer",'Bidragsforskning VR (Prisma)'!$D$9)) -> Ange projeknummer | C19: =IF('Bidragsforskning VR (Prisma)'!$D$7<'Bidragsforskning VR (Prisma)'!$I$52,"",'Bidragsforskning VR (Prisma)'!$I$52&"01") -> 01 | D19: =IF('Bidragsforskning VR (Prisma)'!$D$7<'Bidragsforskning VR (Prisma)'!$I$52,"",'Bidragsforskning VR (Prisma)'!$I$52&"12") -> 12 | E19: =IFERROR(IF(C19="","",ROUND(SUM('Bidragsforskning VR (Prisma)'!I$81:I$90),0)),0) -> 0 | F19: Budget år 01
A20: =IF(C20="","",57849) -> 57849 | B20: =IF(C20="","",IF('Bidragsforskning VR (Prisma)'!$D$9="","Ange projeknummer",'Bidragsforskning VR (Prisma)'!$D$9)) -> Ange projeknummer | C20: =IF('Bidragsforskning VR (Prisma)'!$D$7<'Bidragsforskning VR (Prisma)'!$I$52,"",'Bidragsforskning VR (Prisma)'!$I$52&"01") -> 01 | D20: =IF('Bidragsforskning VR (Prisma)'!$D$7<'Bidragsforskning VR (Prisma)'!$I$52,"",'Bidragsforskning VR (Prisma)'!$I$52&"12") -> 12 | E20: =IFERROR(IF(C20="","",ROUND(SUM('Bidragsforskning VR (Prisma)'!I$92:I$96),0)),0) -> 0 | F20: Budget år 01
A21: =IF(C21="","",6911) -> 6911 | B21: =IF(C21="","",IF('Bidragsforskning VR (Prisma)'!$D$9="","Ange projeknummer",'Bidragsforskning VR (Prisma)'!$D$9)) -> Ange projeknummer | C21: =IF('Bidragsforskning VR (Prisma)'!$D$7<'Bidragsforskning VR (Prisma)'!$I$52,"",'Bidragsforskning VR (Prisma)'!$I$52&"01") -> 01 | D21: =IF('Bidragsforskning VR (Prisma)'!$D$7<'Bidragsforskning VR (Prisma)'!$I$52,"",'Bidragsforskning VR (Prisma)'!$I$52&"12") -> 12 | E21: =IFERROR(IF(C21="","",ROUND('Bidragsforskning VR (Prisma)'!I$119,0)),0) -> 0 | F21: Budget år 01
A22: =IF(C22="","",49988) -> 49988 | B22: =IF(C22="","",IF('Bidragsforskning VR (Prisma)'!$D$9="","Ange projeknummer",'Bidragsforskning VR (Prisma)'!$D$9)) -> Ange projeknummer | C22: =IF('Bidragsforskning VR (Prisma)'!$D$7<'Bidragsforskning VR (Prisma)'!$I$52,"",'Bidragsforskning VR (Prisma)'!$I$52&"01") -> 01 | D22: =IF('Bidragsforskning VR (Prisma)'!$D$7<'Bidragsforskning VR (Prisma)'!$I$52,"",'Bidragsforskning VR (Prisma)'!$I$52&"12") -> 12 | E22: =IFERROR(IF(C22="","",ROUND('Bidragsforskning VR (Prisma)'!I$122,0)),0) -> 0 | F22: Budget år 01
A23: =IF(C23="","",3511) -> 3511 | B23: =IF(C23="","",IF('Bidragsforskning VR (Prisma)'!$D$9="","Ange projeknummer",'Bidragsforskning VR (Prisma)'!$D$9)) -> Ange projeknummer | C23: =IF('Bidragsforskning VR (Prisma)'!$D$7<'Bidragsforskning VR (Prisma)'!$J$52,"",'Bidragsforskning VR (Prisma)'!$J$52&"01") -> 01 | D23: =IF('Bidragsforskning VR (Prisma)'!$D$7<'Bidragsforskning VR (Prisma)'!$J$52,"",'Bidragsforskning VR (Prisma)'!$J$52&"12") -> 12 | E23: =IFERROR(IF(IF('Inläsning UBW Planner'!C23="","",ROUND('Bidragsforskning VR (Prisma)'!J$123,0))*-1=0,0,IF('Inläsning UBW Planner'!C23="","",ROUND('Bidragsforskning VR (Prisma)'!J$123,0))*-1),0) -> 0 | F23: =IF(C23="","","Budget år "&LEFT(C23,4)) -> Budget år 01
A24: =IF(C24="","",4011) -> 4011 | B24: =IF(C24="","",IF('Bidragsforskning VR (Prisma)'!$D$9="","Ange projeknummer",'Bidragsforskning VR (Prisma)'!$D$9)) -> Ange projeknummer | C24: =IF('Bidragsforskning VR (Prisma)'!$D$7<'Bidragsforskning VR (Prisma)'!$J$52,"",'Bidragsforskning VR (Prisma)'!$J$52&"01") -> 01 | D24: =IF('Bidragsforskning VR (Prisma)'!$D$7<'Bidragsforskning VR (Prisma)'!$J$52,"",'Bidragsforskning VR (Prisma)'!$J$52&"12") -> 12 | E24: =IFERROR(IF(C24="","",ROUND('Bidragsforskning VR (Prisma)'!J$117,0)),0) -> 0 | F24: =IF(C24="","","Budget år "&LEFT(C24,4)) -> Budget år 01
A25: =IF(C25="","",50111) -> 50111 | B25: =IF(C25="","",IF('Bidragsforskning VR (Prisma)'!$D$9="","Ange projeknummer",'Bidragsforskning VR (Prisma)'!$D$9)) -> Ange projeknummer | C25: =IF('Bidragsforskning VR (Prisma)'!$D$7<'Bidragsforskning VR (Prisma)'!$J$52,"",'Bidragsforskning VR (Prisma)'!$J$52&"01") -> 01 | D25: =IF('Bidragsforskning VR (Prisma)'!$D$7<'Bidragsforskning VR (Prisma)'!$J$52,"",'Bidragsforskning VR (Prisma)'!$J$52&"12") -> 12 | E25: =IFERROR(IF(C25="","",ROUND('Bidragsforskning VR (Prisma)'!J$120,0)),0) -> 0 | F25: Budget år 01
A26: =IF(C26="","",5871) -> 5871 | B26: =IF(C26="","",IF('Bidragsforskning VR (Prisma)'!$D$9="","Ange projeknummer",'Bidragsforskning VR (Prisma)'!$D$9)) -> Ange projeknummer | C26: =IF('Bidragsforskning VR (Prisma)'!$D$7<'Bidragsforskning VR (Prisma)'!$J$52,"",'Bidragsforskning VR (Prisma)'!$J$52&"01") -> 01 | D26: =IF('Bidragsforskning VR (Prisma)'!$D$7<'Bidragsforskning VR (Prisma)'!$J$52,"",'Bidragsforskning VR (Prisma)'!$J$52&"12") -> 12 | E26: =IFERROR(IF(C26="","",ROUND(SUM('Bidragsforskning VR (Prisma)'!J$81:J$90),0)),0) -> 0 | F26: Budget år 01
A27: =IF(C27="","",57849) -> 57849 | B27: =IF(C27="","",IF('Bidragsforskning VR (Prisma)'!$D$9="","Ange projeknummer",'Bidragsforskning VR (Prisma)'!$D$9)) -> Ange projeknummer | C27: =IF('Bidragsforskning VR (Prisma)'!$D$7<'Bidragsforskning VR (Prisma)'!$J$52,"",'Bidragsforskning VR (Prisma)'!$J$52&"01") -> 01 | D27: =IF('Bidragsforskning VR (Prisma)'!$D$7<'Bidragsforskning VR (Prisma)'!$J$52,"",'Bidragsforskning VR (Prisma)'!$J$52&"12") -> 12 | E27: =IFERROR(IF(C27="","",ROUND(SUM('Bidragsforskning VR (Prisma)'!J$92:J$96),0)),0) -> 0 | F27: Budget år 01
A28: =IF(C28="","",6911) -> 6911 | B28: =IF(C28="","",IF('Bidragsforskning VR (Prisma)'!$D$9="","Ange projeknummer",'Bidragsforskning VR (Prisma)'!$D$9)) -> Ange projeknummer | C28: =IF('Bidragsforskning VR (Prisma)'!$D$7<'Bidragsforskning VR (Prisma)'!$J$52,"",'Bidragsforskning VR (Prisma)'!$J$52&"01") -> 01 | D28: =IF('Bidragsforskning VR (Prisma)'!$D$7<'Bidragsforskning VR (Prisma)'!$J$52,"",'Bidragsforskning VR (Prisma)'!$J$52&"12") -> 12 | E28: =IFERROR(IF(C28="","",ROUND('Bidragsforskning VR (Prisma)'!J$119,0)),0) -> 0 | F28: Budget år 01
A29: =IF(C29="","",49988) -> 49988 | B29: =IF(C29="","",IF('Bidragsforskning VR (Prisma)'!$D$9="","Ange projeknummer",'Bidragsforskning VR (Prisma)'!$D$9)) -> Ange projeknummer | C29: =IF('Bidragsforskning VR (Prisma)'!$D$7<'Bidragsforskning VR (Prisma)'!$J$52,"",'Bidragsforskning VR (Prisma)'!$J$52&"01") -> 01 | D29: =IF('Bidragsforskning VR (Prisma)'!$D$7<'Bidragsforskning VR (Prisma)'!$J$52,"",'Bidragsforskning VR (Prisma)'!$J$52&"12") -> 12 | E29: =IFERROR(IF(C29="","",ROUND('Bidragsforskning VR (Prisma)'!J$122,0)),0) -> 0 | F29: Budget år 01
A30: =IF(C30="","",3511) -> 3511 | B30: =IF(C30="","",IF('Bidragsforskning VR (Prisma)'!$D$9="","Ange projeknummer",'Bidragsforskning VR (Prisma)'!$D$9)) -> Ange projeknummer | C30: =IF('Bidragsforskning VR (Prisma)'!$D$7<'Bidragsforskning VR (Prisma)'!$K$52,"",'Bidragsforskning VR (Prisma)'!$K$52&"01") -> 01 | D30: =IF('Bidragsforskning VR (Prisma)'!$D$7<'Bidragsforskning VR (Prisma)'!$K$52,"",'Bidragsforskning VR (Prisma)'!$K$52&"12") -> 12 | E30: =IFERROR(IF(IF('Inläsning UBW Planner'!C30="","",ROUND('Bidragsforskning VR (Prisma)'!K$123,0))*-1=0,0,IF('Inläsning UBW Planner'!C30="","",ROUND('Bidragsforskning VR (Prisma)'!K$123,0))*-1),0) -> 0 | F30: =IF(C30="","","Budget år "&LEFT(C30,4)) -> Budget år 01
A31: =IF(C31="","",4011) -> 4011 | B31: =IF(C31="","",IF('Bidragsforskning VR (Prisma)'!$D$9="","Ange projeknummer",'Bidragsforskning VR (Prisma)'!$D$9)) -> Ange projeknummer | C31: =IF('Bidragsforskning VR (Prisma)'!$D$7<'Bidragsforskning VR (Prisma)'!$K$52,"",'Bidragsforskning VR (Prisma)'!$K$52&"01") -> 01 | D31: =IF('Bidragsforskning VR (Prisma)'!$D$7<'Bidragsforskning VR (Prisma)'!$K$52,"",'Bidragsforskning VR (Prisma)'!$K$52&"12") -> 12 | E31: =IFERROR(IF(C31="","",ROUND('Bidragsforskning VR (Prisma)'!K$117,0)),0) -> 0 | F31: =IF(C31="","","Budget år "&LEFT(C31,4)) -> Budget år 01
A32: =IF(C32="","",50111) -> 50111 | B32: =IF(C32="","",IF('Bidragsforskning VR (Prisma)'!$D$9="","Ange projeknummer",'Bidragsforskning VR (Prisma)'!$D$9)) -> Ange projeknummer | C32: =IF('Bidragsforskning VR (Prisma)'!$D$7<'Bidragsforskning VR (Prisma)'!$K$52,"",'Bidragsforskning VR (Prisma)'!$K$52&"01") -> 01 | D32: =IF('Bidragsforskning VR (Prisma)'!$D$7<'Bidragsforskning VR (Prisma)'!$K$52,"",'Bidragsforskning VR (Prisma)'!$K$52&"12") -> 12 | E32: =IFERROR(IF(C32="","",ROUND('Bidragsforskning VR (Prisma)'!K$120,0)),0) -> 0 | F32: Budget år 01
A33: =IF(C33="","",5871) -> 5871 | B33: =IF(C33="","",IF('Bidragsforskning VR (Prisma)'!$D$9="","Ange projeknummer",'Bidragsforskning VR (Prisma)'!$D$9)) -> Ange projeknummer | C33: =IF('Bidragsforskning VR (Prisma)'!$D$7<'Bidragsforskning VR (Prisma)'!$K$52,"",'Bidragsforskning VR (Prisma)'!$K$52&"01") -> 01 | D33: =IF('Bidragsforskning VR (Prisma)'!$D$7<'Bidragsforskning VR (Prisma)'!$K$52,"",'Bidragsforskning VR (Prisma)'!$K$52&"12") -> 12 | E33: =IFERROR(IF(C33="","",ROUND(SUM('Bidragsforskning VR (Prisma)'!K$81:K$90),0)),0) -> 0 | F33: Budget år 01
A34: =IF(C34="","",57849) -> 57849 | B34: =IF(C34="","",IF('Bidragsforskning VR (Prisma)'!$D$9="","Ange projeknummer",'Bidragsforskning VR (Prisma)'!$D$9)) -> Ange projeknummer | C34: =IF('Bidragsforskning VR (Prisma)'!$D$7<'Bidragsforskning VR (Prisma)'!$K$52,"",'Bidragsforskning VR (Prisma)'!$K$52&"01") -> 01 | D34: =IF('Bidragsforskning VR (Prisma)'!$D$7<'Bidragsforskning VR (Prisma)'!$K$52,"",'Bidragsforskning VR (Prisma)'!$K$52&"12") -> 12 | E34: =IFERROR(IF(C34="","",ROUND(SUM('Bidragsforskning VR (Prisma)'!K$92:K$96),0)),0) -> 0 | F34: Budget år 01
A35: =IF(C35="","",6911) -> 6911 | B35: =IF(C35="","",IF('Bidragsforskning VR (Prisma)'!$D$9="","Ange projeknummer",'Bidragsforskning VR (Prisma)'!$D$9)) -> Ange projeknummer | C35: =IF('Bidragsforskning VR (Prisma)'!$D$7<'Bidragsforskning VR (Prisma)'!$K$52,"",'Bidragsforskning VR (Prisma)'!$K$52&"01") -> 01 | D35: =IF('Bidragsforskning VR (Prisma)'!$D$7<'Bidragsforskning VR (Prisma)'!$K$52,"",'Bidragsforskning VR (Prisma)'!$K$52&"12") -> 12 | E35: =IFERROR(IF(C35="","",ROUND('Bidragsforskning VR (Prisma)'!K$119,0)),0) -> 0 | F35: Budget år 01
A36: =IF(C36="","",49988) -> 49988 | B36: =IF(C36="","",IF('Bidragsforskning VR (Prisma)'!$D$9="","Ange projeknummer",'Bidragsforskning VR (Prisma)'!$D$9)) -> Ange projeknummer | C36: =IF('Bidragsforskning VR (Prisma)'!$D$7<'Bidragsforskning VR (Prisma)'!$K$52,"",'Bidragsforskning VR (Prisma)'!$K$52&"01") -> 01 | D36: =IF('Bidragsforskning VR (Prisma)'!$D$7<'Bidragsforskning VR (Prisma)'!$K$52,"",'Bidragsforskning VR (Prisma)'!$K$52&"12") -> 12 | E36: =IFERROR(IF(C36="","",ROUND('Bidragsforskning VR (Prisma)'!K$122,0)),0) -> 0 | F36: Budget år 01
A37: =IF(C37="","",3511) -> 3511 | B37: =IF(C37="","",IF('Bidragsforskning VR (Prisma)'!$D$9="","Ange projeknummer",'Bidragsforskning VR (Prisma)'!$D$9)) -> Ange projeknummer | C37: =IF('Bidragsforskning VR (Prisma)'!$D$7<'Bidragsforskning VR (Prisma)'!$L$52,"",'Bidragsforskning VR (Prisma)'!$L$52&"01") -> 01 | D37: =IF('Bidragsforskning VR (Prisma)'!$D$7<'Bidragsforskning VR (Prisma)'!$L$52,"",'Bidragsforskning VR (Prisma)'!$L$52&"12") -> 12 | E37: =IFERROR(IF(IF('Inläsning UBW Planner'!C37="","",ROUND('Bidragsforskning VR (Prisma)'!L$123,0))*-1=0,0,IF('Inläsning UBW Planner'!C37="","",ROUND('Bidragsforskning VR (Prisma)'!L$123,0))*-1),0) -> 0 | F37: =IF(C37="","","Budget år "&LEFT(C37,4)) -> Budget år 01
A38: =IF(C38="","",4011) -> 4011 | B38: =IF(C38="","",IF('Bidragsforskning VR (Prisma)'!$D$9="","Ange projeknummer",'Bidragsforskning VR (Prisma)'!$D$9)) -> Ange projeknummer | C38: =IF('Bidragsforskning VR (Prisma)'!$D$7<'Bidragsforskning VR (Prisma)'!$L$52,"",'Bidragsforskning VR (Prisma)'!$L$52&"01") -> 01 | D38: =IF('Bidragsforskning VR (Prisma)'!$D$7<'Bidragsforskning VR (Prisma)'!$L$52,"",'Bidragsforskning VR (Prisma)'!$L$52&"12") -> 12 | E38: =IFERROR(IF(C38="","",ROUND('Bidragsforskning VR (Prisma)'!L$117,0)),0) -> 0 | F38: =IF(C38="","","Budget år "&LEFT(C38,4)) -> Budget år 01
A39: =IF(C39="","",50111) -> 50111 | B39: =IF(C39="","",IF('Bidragsforskning VR (Prisma)'!$D$9="","Ange projeknummer",'Bidragsforskning VR (Prisma)'!$D$9)) -> Ange projeknummer | C39: =IF('Bidragsforskning VR (Prisma)'!$D$7<'Bidragsforskning VR (Prisma)'!$L$52,"",'Bidragsforskning VR (Prisma)'!$L$52&"01") -> 01 | D39: =IF('Bidragsforskning VR (Prisma)'!$D$7<'Bidragsforskning VR (Prisma)'!$L$52,"",'Bidragsforskning VR (Prisma)'!$L$52&"12") -> 12 | E39: =IFERROR(IF(C39="","",ROUND('Bidragsforskning VR (Prisma)'!L$120,0)),0) -> 0 | F39: Budget år 01
A40: =IF(C40="","",5871) -> 5871 | B40: =IF(C40="","",IF('Bidragsforskning VR (Prisma)'!$D$9="","Ange projeknummer",'Bidragsforskning VR (Prisma)'!$D$9)) -> Ange projeknummer | C40: =IF('Bidragsforskning VR (Prisma)'!$D$7<'Bidragsforskning VR (Prisma)'!$L$52,"",'Bidragsforskning VR (Prisma)'!$L$52&"01") -> 01 | D40: =IF('Bidragsforskning VR (Prisma)'!$D$7<'Bidragsforskning VR (Prisma)'!$L$52,"",'Bidragsforskning VR (Prisma)'!$L$52&"12") -> 12 | E40: =IFERROR(IF(C40="","",ROUND(SUM('Bidragsforskning VR (Prisma)'!L$81:L$90),0)),0) -> 0 | F40: Budget år 01
A41: =IF(C41="","",57849) -> 57849 | B41: =IF(C41="","",IF('Bidragsforskning VR (Prisma)'!$D$9="","Ange projeknummer",'Bidragsforskning VR (Prisma)'!$D$9)) -> Ange projeknummer | C41: =IF('Bidragsforskning VR (Prisma)'!$D$7<'Bidragsforskning VR (Prisma)'!$L$52,"",'Bidragsforskning VR (Prisma)'!$L$52&"01") -> 01 | D41: =IF('Bidragsforskning VR (Prisma)'!$D$7<'Bidragsforskning VR (Prisma)'!$L$52,"",'Bidragsforskning VR (Prisma)'!$L$52&"12") -> 12 | E41: =IFERROR(IF(C41="","",ROUND(SUM('Bidragsforskning VR (Prisma)'!L$92:L$96),0)),0) -> 0 | F41: Budget år 01
A42: =IF(C42="","",6911) -> 6911 | B42: =IF(C42="","",IF('Bidragsforskning VR (Prisma)'!$D$9="","Ange projeknummer",'Bidragsforskning VR (Prisma)'!$D$9)) -> Ange projeknummer | C42: =IF('Bidragsforskning VR (Prisma)'!$D$7<'Bidragsforskning VR (Prisma)'!$L$52,"",'Bidragsforskning VR (Prisma)'!$L$52&"01") -> 01 | D42: =IF('Bidragsforskning VR (Prisma)'!$D$7<'Bidragsforskning VR (Prisma)'!$L$52,"",'Bidragsforskning VR (Prisma)'!$L$52&"12") -> 12 | E42: =IFERROR(IF(C42="","",ROUND('Bidragsforskning VR (Prisma)'!L$119,0)),0) -> 0 | F42: Budget år 01
A43: =IF(C43="","",49988) -> 49988 | B43: =IF(C43="","",IF('Bidragsforskning VR (Prisma)'!$D$9="","Ange projeknummer",'Bidragsforskning VR (Prisma)'!$D$9)) -> Ange projeknummer | C43: =IF('Bidragsforskning VR (Prisma)'!$D$7<'Bidragsforskning VR (Prisma)'!$L$52,"",'Bidragsforskning VR (Prisma)'!$L$52&"01") -> 01 | D43: =IF('Bidragsforskning VR (Prisma)'!$D$7<'Bidragsforskning VR (Prisma)'!$L$52,"",'Bidragsforskning VR (Prisma)'!$L$52&"12") -> 12 | E43: =IFERROR(IF(C43="","",ROUND('Bidragsforskning VR (Prisma)'!L$122,0)),0) -> 0 | F43: Budget år 01
A44: =IF(C44="","",3511) -> 3511 | B44: =IF(C44="","",IF('Bidragsforskning VR (Prisma)'!$D$9="","Ange projeknummer",'Bidragsforskning VR (Prisma)'!$D$9)) -> Ange projeknummer | C44: =IF('Bidragsforskning VR (Prisma)'!$D$7<'Bidragsforskning VR (Prisma)'!$M$52,"",'Bidragsforskning VR (Prisma)'!$M$52&"01") -> 01 | D44: =IF('Bidragsforskning VR (Prisma)'!$D$7<'Bidragsforskning VR (Prisma)'!$M$52,"",'Bidragsforskning VR (Prisma)'!$M$52&"12") -> 12 | E44: =IFERROR(IF(IF('Inläsning UBW Planner'!C44="","",ROUND('Bidragsforskning VR (Prisma)'!M$123,0))*-1=0,0,IF('Inläsning UBW Planner'!C44="","",ROUND('Bidragsforskning VR (Prisma)'!M$123,0))*-1),"") ->  | F44: =IF(C44="","","Budget år "&LEFT(C44,4)) -> Budget år 01
A45: =IF(C45="","",4011) -> 4011 | B45: =IF(C45="","",IF('Bidragsforskning VR (Prisma)'!$D$9="","Ange projeknummer",'Bidragsforskning VR (Prisma)'!$D$9)) -> Ange projeknummer | C45: =IF('Bidragsforskning VR (Prisma)'!$D$7<'Bidragsforskning VR (Prisma)'!$M$52,"",'Bidragsforskning VR (Prisma)'!$M$52&"01") -> 01 | D45: =IF('Bidragsforskning VR (Prisma)'!$D$7<'Bidragsforskning VR (Prisma)'!$M$52,"",'Bidragsforskning VR (Prisma)'!$M$52&"12") -> 12 | E45: =IFERROR(IF(C45="","",ROUND('Bidragsforskning VR (Prisma)'!M$117,0)),0) -> 0 | F45: =IF(C45="","","Budget år "&LEFT(C45,4)) -> Budget år 01
A46: =IF(C46="","",50111) -> 50111 | B46: =IF(C46="","",IF('Bidragsforskning VR (Prisma)'!$D$9="","Ange projeknummer",'Bidragsforskning VR (Prisma)'!$D$9)) -> Ange projeknummer | C46: =IF('Bidragsforskning VR (Prisma)'!$D$7<'Bidragsforskning VR (Prisma)'!$M$52,"",'Bidragsforskning VR (Prisma)'!$M$52&"01") -> 01 | D46: =IF('Bidragsforskning VR (Prisma)'!$D$7<'Bidragsforskning VR (Prisma)'!$M$52,"",'Bidragsforskning VR (Prisma)'!$M$52&"12") -> 12 | E46: =IFERROR(IF(C46="","",ROUND('Bidragsforskning VR (Prisma)'!M$120,0)),0) -> 0 | F46: Budget år 01
A47: =IF(C47="","",5871) -> 5871 | B47: =IF(C47="","",IF('Bidragsforskning VR (Prisma)'!$D$9="","Ange projeknummer",'Bidragsforskning VR (Prisma)'!$D$9)) -> Ange projeknummer | C47: =IF('Bidragsforskning VR (Prisma)'!$D$7<'Bidragsforskning VR (Prisma)'!$M$52,"",'Bidragsforskning VR (Prisma)'!$M$52&"01") -> 01 | D47: =IF('Bidragsforskning VR (Prisma)'!$D$7<'Bidragsforskning VR (Prisma)'!$M$52,"",'Bidragsforskning VR (Prisma)'!$M$52&"12") -> 12 | E47: =IFERROR(IF(C47="","",ROUND(SUM('Bidragsforskning VR (Prisma)'!M$81:M$90),0)),0) -> 0 | F47: Budget år 01
A48: =IF(C48="","",57849) -> 57849 | B48: =IF(C48="","",IF('Bidragsforskning VR (Prisma)'!$D$9="","Ange projeknummer",'Bidragsforskning VR (Prisma)'!$D$9)) -> Ange projeknummer | C48: =IF('Bidragsforskning VR (Prisma)'!$D$7<'Bidragsforskning VR (Prisma)'!$M$52,"",'Bidragsforskning VR (Prisma)'!$M$52&"01") -> 01 | D48: =IF('Bidragsforskning VR (Prisma)'!$D$7<'Bidragsforskning VR (Prisma)'!$M$52,"",'Bidragsforskning VR (Prisma)'!$M$52&"12") -> 12 | E48: =IFERROR(IF(C48="","",ROUND(SUM('Bidragsforskning VR (Prisma)'!M$92:M$96),0)),0) -> 0 | F48: Budget år 01
A49: =IF(C49="","",6911) -> 6911 | B49: =IF(C49="","",IF('Bidragsforskning VR (Prisma)'!$D$9="","Ange projeknummer",'Bidragsforskning VR (Prisma)'!$D$9)) -> Ange projeknummer | C49: =IF('Bidragsforskning VR (Prisma)'!$D$7<'Bidragsforskning VR (Prisma)'!$M$52,"",'Bidragsforskning VR (Prisma)'!$M$52&"01") -> 01 | D49: =IF('Bidragsforskning VR (Prisma)'!$D$7<'Bidragsforskning VR (Prisma)'!$M$52,"",'Bidragsforskning VR (Prisma)'!$M$52&"12") -> 12 | E49: =IFERROR(IF(C49="","",ROUND('Bidragsforskning VR (Prisma)'!M$119,0)),0) -> 0 | F49: Budget år 01
A50: =IF(C50="","",49988) -> 49988 | B50: =IF(C50="","",IF('Bidragsforskning VR (Prisma)'!$D$9="","Ange projeknummer",'Bidragsforskning VR (Prisma)'!$D$9)) -> Ange projeknummer | C50: =IF('Bidragsforskning VR (Prisma)'!$D$7<'Bidragsforskning VR (Prisma)'!$M$52,"",'Bidragsforskning VR (Prisma)'!$M$52&"01") -> 01 | D50: =IF('Bidragsforskning VR (Prisma)'!$D$7<'Bidragsforskning VR (Prisma)'!$M$52,"",'Bidragsforskning VR (Prisma)'!$M$52&"12") -> 12 | E50: =IFERROR(IF(C50="","",ROUND('Bidragsforskning VR (Prisma)'!M$122,0)),0) -> 0 | F50: Budget år 01
A51: =IF(C51="","",3511) -> 3511 | B51: =IF(C51="","",IF('Bidragsforskning VR (Prisma)'!$D$9="","Ange projeknummer",'Bidragsforskning VR (Prisma)'!$D$9)) -> Ange projeknummer | C51: =IF('Bidragsforskning VR (Prisma)'!$D$7<'Bidragsforskning VR (Prisma)'!$N$52,"",'Bidragsforskning VR (Prisma)'!$N$52&"01") -> 01 | D51: =IF('Bidragsforskning VR (Prisma)'!$D$7<'Bidragsforskning VR (Prisma)'!$N$52,"",'Bidragsforskning VR (Prisma)'!$N$52&"12") -> 12 | E51: =IFERROR(IF(IF('Inläsning UBW Planner'!C51="","",ROUND('Bidragsforskning VR (Prisma)'!N$123,0))*-1=0,0,IF('Inläsning UBW Planner'!C51="","",ROUND('Bidragsforskning VR (Prisma)'!N$123,0))*-1),"") ->  | F51: =IF(C51="","","Budget år "&LEFT(C51,4)) -> Budget år 01
A52: =IF(C52="","",4011) -> 4011 | B52: =IF(C52="","",IF('Bidragsforskning VR (Prisma)'!$D$9="","Ange projeknummer",'Bidragsforskning VR (Prisma)'!$D$9)) -> Ange projeknummer | C52: =IF('Bidragsforskning VR (Prisma)'!$D$7<'Bidragsforskning VR (Prisma)'!$N$52,"",'Bidragsforskning VR (Prisma)'!$N$52&"01") -> 01 | D52: =IF('Bidragsforskning VR (Prisma)'!$D$7<'Bidragsforskning VR (Prisma)'!$N$52,"",'Bidragsforskning VR (Prisma)'!$N$52&"12") -> 12 | E52: =IFERROR(IF(C52="","",ROUND('Bidragsforskning VR (Prisma)'!N$117,0)),0) -> 0 | F52: =IF(C52="","","Budget år "&LEFT(C52,4)) -> Budget år 01
A53: =IF(C53="","",50111) -> 50111 | B53: =IF(C53="","",IF('Bidragsforskning VR (Prisma)'!$D$9="","Ange projeknummer",'Bidragsforskning VR (Prisma)'!$D$9)) -> Ange projeknummer | C53: =IF('Bidragsforskning VR (Prisma)'!$D$7<'Bidragsforskning VR (Prisma)'!$N$52,"",'Bidragsforskning VR (Prisma)'!$N$52&"01") -> 01 | D53: =IF('Bidragsforskning VR (Prisma)'!$D$7<'Bidragsforskning VR (Prisma)'!$N$52,"",'Bidragsforskning VR (Prisma)'!$N$52&"12") -> 12 | E53: =IFERROR(IF(C53="","",ROUND('Bidragsforskning VR (Prisma)'!N$120,0)),0) -> 0 | F53: Budget år 01
A54: =IF(C54="","",5871) -> 5871 | B54: =IF(C54="","",IF('Bidragsforskning VR (Prisma)'!$D$9="","Ange projeknummer",'Bidragsforskning VR (Prisma)'!$D$9)) -> Ange projeknummer | C54: =IF('Bidragsforskning VR (Prisma)'!$D$7<'Bidragsforskning VR (Prisma)'!$N$52,"",'Bidragsforskning VR (Prisma)'!$N$52&"01") -> 01 | D54: =IF('Bidragsforskning VR (Prisma)'!$D$7<'Bidragsforskning VR (Prisma)'!$N$52,"",'Bidragsforskning VR (Prisma)'!$N$52&"12") -> 12 | E54: =IFERROR(IF(C54="","",ROUND(SUM('Bidragsforskning VR (Prisma)'!N$81:N$90),0)),0) -> 0 | F54: Budget år 01
A55: =IF(C55="","",57849) -> 57849 | B55: =IF(C55="","",IF('Bidragsforskning VR (Prisma)'!$D$9="","Ange projeknummer",'Bidragsforskning VR (Prisma)'!$D$9)) -> Ange projeknummer | C55: =IF('Bidragsforskning VR (Prisma)'!$D$7<'Bidragsforskning VR (Prisma)'!$N$52,"",'Bidragsforskning VR (Prisma)'!$N$52&"01") -> 01 | D55: =IF('Bidragsforskning VR (Prisma)'!$D$7<'Bidragsforskning VR (Prisma)'!$N$52,"",'Bidragsforskning VR (Prisma)'!$N$52&"12") -> 12 | E55: =IFERROR(IF(C55="","",ROUND(SUM('Bidragsforskning VR (Prisma)'!N$92:N$96),0)),0) -> 0 | F55: Budget år 01
A56: =IF(C56="","",6911) -> 6911 | B56: =IF(C56="","",IF('Bidragsforskning VR (Prisma)'!$D$9="","Ange projeknummer",'Bidragsforskning VR (Prisma)'!$D$9)) -> Ange projeknummer | C56: =IF('Bidragsforskning VR (Prisma)'!$D$7<'Bidragsforskning VR (Prisma)'!$N$52,"",'Bidragsforskning VR (Prisma)'!$N$52&"01") -> 01 | D56: =IF('Bidragsforskning VR (Prisma)'!$D$7<'Bidragsforskning VR (Prisma)'!$N$52,"",'Bidragsforskning VR (Prisma)'!$N$52&"12") -> 12 | E56: =IFERROR(IF(C56="","",ROUND('Bidragsforskning VR (Prisma)'!N$119,0)),0) -> 0 | F56: Budget år 01
A57: =IF(C57="","",49988) -> 49988 | B57: =IF(C57="","",IF('Bidragsforskning VR (Prisma)'!$D$9="","Ange projeknummer",'Bidragsforskning VR (Prisma)'!$D$9)) -> Ange projeknummer | C57: =IF('Bidragsforskning VR (Prisma)'!$D$7<'Bidragsforskning VR (Prisma)'!$N$52,"",'Bidragsforskning VR (Prisma)'!$N$52&"01") -> 01 | D57: =IF('Bidragsforskning VR (Prisma)'!$D$7<'Bidragsforskning VR (Prisma)'!$N$52,"",'Bidragsforskning VR (Prisma)'!$N$52&"12") -> 12 | E57: =IFERROR(IF(C57="","",ROUND('Bidragsforskning VR (Prisma)'!N$122,0)),0) -> 0 | F57: Budget år 01
A58: =IF(C58="","",3511) -> 3511 | B58: =IF(C58="","",IF('Bidragsforskning VR (Prisma)'!$D$9="","Ange projeknummer",'Bidragsforskning VR (Prisma)'!$D$9)) -> Ange projeknummer | C58: =IF('Bidragsforskning VR (Prisma)'!$D$7<'Bidragsforskning VR (Prisma)'!$O$52,"",'Bidragsforskning VR (Prisma)'!$O$52&"01") -> 01 | D58: =IF('Bidragsforskning VR (Prisma)'!$D$7<'Bidragsforskning VR (Prisma)'!$O$52,"",'Bidragsforskning VR (Prisma)'!$O$52&"12") -> 12 | E58: =IFERROR(IF(IF('Inläsning UBW Planner'!C58="","",ROUND('Bidragsforskning VR (Prisma)'!O$123,0))*-1=0,0,IF('Inläsning UBW Planner'!C58="","",ROUND('Bidragsforskning VR (Prisma)'!O$123,0))*-1),"") ->  | F58: =IF(C58="","","Budget år "&LEFT(C58,4)) -> Budget år 01
A59: =IF(C59="","",4011) -> 4011 | B59: =IF(C59="","",IF('Bidragsforskning VR (Prisma)'!$D$9="","Ange projeknummer",'Bidragsforskning VR (Prisma)'!$D$9)) -> Ange projeknummer | C59: =IF('Bidragsforskning VR (Prisma)'!$D$7<'Bidragsforskning VR (Prisma)'!$O$52,"",'Bidragsforskning VR (Prisma)'!$O$52&"01") -> 01 | D59: =IF('Bidragsforskning VR (Prisma)'!$D$7<'Bidragsforskning VR (Prisma)'!$O$52,"",'Bidragsforskning VR (Prisma)'!$O$52&"12") -> 12 | E59: =IFERROR(IF(C59="","",ROUND('Bidragsforskning VR (Prisma)'!O$117,0)),0) -> 0 | F59: =IF(C59="","","Budget år "&LEFT(C59,4)) -> Budget år 01
A60: =IF(C60="","",50111) -> 50111 | B60: =IF(C60="","",IF('Bidragsforskning VR (Prisma)'!$D$9="","Ange projeknummer",'Bidragsforskning VR (Prisma)'!$D$9)) -> Ange projeknummer | C60: =IF('Bidragsforskning VR (Prisma)'!$D$7<'Bidragsforskning VR (Prisma)'!$O$52,"",'Bidragsforskning VR (Prisma)'!$O$52&"01") -> 01 | D60: =IF('Bidragsforskning VR (Prisma)'!$D$7<'Bidragsforskning VR (Prisma)'!$O$52,"",'Bidragsforskning VR (Prisma)'!$O$52&"12") -> 12 | E60: =IFERROR(IF(C60="","",ROUND('Bidragsforskning VR (Prisma)'!O$120,0)),0) -> 0 | F60: Budget år 01
A61: =IF(C61="","",5871) -> 5871 | B61: =IF(C61="","",IF('Bidragsforskning VR (Prisma)'!$D$9="","Ange projeknummer",'Bidragsforskning VR (Prisma)'!$D$9)) -> Ange projeknummer | C61: =IF('Bidragsforskning VR (Prisma)'!$D$7<'Bidragsforskning VR (Prisma)'!$O$52,"",'Bidragsforskning VR (Prisma)'!$O$52&"01") -> 01 | D61: =IF('Bidragsforskning VR (Prisma)'!$D$7<'Bidragsforskning VR (Prisma)'!$O$52,"",'Bidragsforskning VR (Prisma)'!$O$52&"12") -> 12 | E61: =IFERROR(IF(C61="","",ROUND(SUM('Bidragsforskning VR (Prisma)'!O$81:O$90),0)),0) -> 0 | F61: Budget år 01
A62: =IF(C62="","",57849) -> 57849 | B62: =IF(C62="","",IF('Bidragsforskning VR (Prisma)'!$D$9="","Ange projeknummer",'Bidragsforskning VR (Prisma)'!$D$9)) -> Ange projeknummer | C62: =IF('Bidragsforskning VR (Prisma)'!$D$7<'Bidragsforskning VR (Prisma)'!$O$52,"",'Bidragsforskning VR (Prisma)'!$O$52&"01") -> 01 | D62: =IF('Bidragsforskning VR (Prisma)'!$D$7<'Bidragsforskning VR (Prisma)'!$O$52,"",'Bidragsforskning VR (Prisma)'!$O$52&"12") -> 12 | E62: =IFERROR(IF(C62="","",ROUND(SUM('Bidragsforskning VR (Prisma)'!O$92:O$96),0)),0) -> 0 | F62: Budget år 01
A63: =IF(C63="","",6911) -> 6911 | B63: =IF(C63="","",IF('Bidragsforskning VR (Prisma)'!$D$9="","Ange projeknummer",'Bidragsforskning VR (Prisma)'!$D$9)) -> Ange projeknummer | C63: =IF('Bidragsforskning VR (Prisma)'!$D$7<'Bidragsforskning VR (Prisma)'!$O$52,"",'Bidragsforskning VR (Prisma)'!$O$52&"01") -> 01 | D63: =IF('Bidragsforskning VR (Prisma)'!$D$7<'Bidragsforskning VR (Prisma)'!$O$52,"",'Bidragsforskning VR (Prisma)'!$O$52&"12") -> 12 | E63: =IFERROR(IF(C63="","",ROUND('Bidragsforskning VR (Prisma)'!O$119,0)),0) -> 0 | F63: Budget år 01
A64: =IF(C64="","",49988) -> 49988 | B64: =IF(C64="","",IF('Bidragsforskning VR (Prisma)'!$D$9="","Ange projeknummer",'Bidragsforskning VR (Prisma)'!$D$9)) -> Ange projeknummer | C64: =IF('Bidragsforskning VR (Prisma)'!$D$7<'Bidragsforskning VR (Prisma)'!$O$52,"",'Bidragsforskning VR (Prisma)'!$O$52&"01") -> 01 | D64: =IF('Bidragsforskning VR (Prisma)'!$D$7<'Bidragsforskning VR (Prisma)'!$O$52,"",'Bidragsforskning VR (Prisma)'!$O$52&"12") -> 12 | E64: =IFERROR(IF(C64="","",ROUND('Bidragsforskning VR (Prisma)'!O$122,0)),0) -> 0 | F64: Budget år 01
A65: =IF(C65="","",3511) -> 3511 | B65: =IF(C65="","",IF('Bidragsforskning VR (Prisma)'!$D$9="","Ange projeknummer",'Bidragsforskning VR (Prisma)'!$D$9)) -> Ange projeknummer | C65: =IF('Bidragsforskning VR (Prisma)'!$D$7<'Bidragsforskning VR (Prisma)'!$P$52,"",'Bidragsforskning VR (Prisma)'!$P$52&"01") -> 01 | D65: =IF('Bidragsforskning VR (Prisma)'!$D$7<'Bidragsforskning VR (Prisma)'!$P$52,"",'Bidragsforskning VR (Prisma)'!$P$52&"12") -> 12 | E65: =IFERROR(IF(IF('Inläsning UBW Planner'!C65="","",ROUND('Bidragsforskning VR (Prisma)'!P$123,0))*-1=0,0,IF('Inläsning UBW Planner'!C65="","",ROUND('Bidragsforskning VR (Prisma)'!P$123,0))*-1),"") ->  | F65: =IF(C65="","","Budget år "&LEFT(C65,4)) -> Budget år 01
A66: =IF(C66="","",4011) -> 4011 | B66: =IF(C66="","",IF('Bidragsforskning VR (Prisma)'!$D$9="","Ange projeknummer",'Bidragsforskning VR (Prisma)'!$D$9)) -> Ange projeknummer | C66: =IF('Bidragsforskning VR (Prisma)'!$D$7<'Bidragsforskning VR (Prisma)'!$P$52,"",'Bidragsforskning VR (Prisma)'!$P$52&"01") -> 01 | D66: =IF('Bidragsforskning VR (Prisma)'!$D$7<'Bidragsforskning VR (Prisma)'!$P$52,"",'Bidragsforskning VR (Prisma)'!$P$52&"12") -> 12 | E66: =IFERROR(IF(C66="","",ROUND('Bidragsforskning VR (Prisma)'!P$117,0)),0) -> 0 | F66: =IF(C66="","","Budget år "&LEFT(C66,4)) -> Budget år 01
A67: =IF(C67="","",50111) -> 50111 | B67: =IF(C67="","",IF('Bidragsforskning VR (Prisma)'!$D$9="","Ange projeknummer",'Bidragsforskning VR (Prisma)'!$D$9)) -> Ange projeknummer | C67: =IF('Bidragsforskning VR (Prisma)'!$D$7<'Bidragsforskning VR (Prisma)'!$P$52,"",'Bidragsforskning VR (Prisma)'!$P$52&"01") -> 01 | D67: =IF('Bidragsforskning VR (Prisma)'!$D$7<'Bidragsforskning VR (Prisma)'!$P$52,"",'Bidragsforskning VR (Prisma)'!$P$52&"12") -> 12 | E67: =IFERROR(IF(C67="","",ROUND('Bidragsforskning VR (Prisma)'!P$120,0)),0) -> 0 | F67: Budget år 01
A68: =IF(C68="","",5871) -> 5871 | B68: =IF(C68="","",IF('Bidragsforskning VR (Prisma)'!$D$9="","Ange projeknummer",'Bidragsforskning VR (Prisma)'!$D$9)) -> Ange projeknummer | C68: =IF('Bidragsforskning VR (Prisma)'!$D$7<'Bidragsforskning VR (Prisma)'!$P$52,"",'Bidragsforskning VR (Prisma)'!$P$52&"01") -> 01 | D68: =IF('Bidragsforskning VR (Prisma)'!$D$7<'Bidragsforskning VR (Prisma)'!$P$52,"",'Bidragsforskning VR (Prisma)'!$P$52&"12") -> 12 | E68: =IFERROR(IF(C68="","",ROUND(SUM('Bidragsforskning VR (Prisma)'!P$81:P$90),0)),0) -> 0 | F68: Budget år 01
A69: =IF(C69="","",57849) -> 57849 | B69: =IF(C69="","",IF('Bidragsforskning VR (Prisma)'!$D$9="","Ange projeknummer",'Bidragsforskning VR (Prisma)'!$D$9)) -> Ange projeknummer | C69: =IF('Bidragsforskning VR (Prisma)'!$D$7<'Bidragsforskning VR (Prisma)'!$P$52,"",'Bidragsforskning VR (Prisma)'!$P$52&"01") -> 01 | D69: =IF('Bidragsforskning VR (Prisma)'!$D$7<'Bidragsforskning VR (Prisma)'!$P$52,"",'Bidragsforskning VR (Prisma)'!$P$52&"12") -> 12 | E69: =IFERROR(IF(C69="","",ROUND(SUM('Bidragsforskning VR (Prisma)'!P$92:P$96),0)),0) -> 0 | F69: Budget år 01
A70: =IF(C70="","",6911) -> 6911 | B70: =IF(C70="","",IF('Bidragsforskning VR (Prisma)'!$D$9="","Ange projeknummer",'Bidragsforskning VR (Prisma)'!$D$9)) -> Ange projeknummer | C70: =IF('Bidragsforskning VR (Prisma)'!$D$7<'Bidragsforskning VR (Prisma)'!$P$52,"",'Bidragsforskning VR (Prisma)'!$P$52&"01") -> 01 | D70: =IF('Bidragsforskning VR (Prisma)'!$D$7<'Bidragsforskning VR (Prisma)'!$P$52,"",'Bidragsforskning VR (Prisma)'!$P$52&"12") -> 12 | E70: =IFERROR(IF(C70="","",ROUND('Bidragsforskning VR (Prisma)'!P$119,0)),0) -> 0 | F70: Budget år 01
A71: =IF(C71="","",49988) -> 49988 | B71: =IF(C71="","",IF('Bidragsforskning VR (Prisma)'!$D$9="","Ange projeknummer",'Bidragsforskning VR (Prisma)'!$D$9)) -> Ange projeknummer | C71: =IF('Bidragsforskning VR (Prisma)'!$D$7<'Bidragsforskning VR (Prisma)'!$P$52,"",'Bidragsforskning VR (Prisma)'!$P$52&"01") -> 01 | D71: =IF('Bidragsforskning VR (Prisma)'!$D$7<'Bidragsforskning VR (Prisma)'!$P$52,"",'Bidragsforskning VR (Prisma)'!$P$52&"12") -> 12 | E71: =IFERROR(IF(C71="","",ROUND('Bidragsforskning VR (Prisma)'!P$122,0)),0) -> 0 | F71: Budget år 01

Sheet Tabell Prisma (hidden)
A1: Doktorand
A2: Medverkande administratör
A3: Medverkande forskare
A4: Projektledare
A5: Övrig disputerad personal
A6: Övrig ej disputerad personal

Sheet Bidragsforskning
B1: BIDRAGSFORSKNING - FULL KOSTNADSTÄCKNINGSKALKYL
U3: Instruktioner Generellt Med knappen under rubriken väljs typ av mall, uppdrag / bidragskalkylmall. Det går alltid att hoppa mellan olika mallar utan att förlora inmatade uppgifter. De vita cellerna i mallen fylls i med värden och de färgade cellerna är beräkningar som filen gör automatiskt. Namn / beskrivningar som är ifyllda exempel bör raderas. Grupperingarna / plusknapparna (1, 2 och 3) ute till vänster i filen gör det möjligt att komprimera och expandera kostnads- / intäktsdetaljerna. Grupperingen / plusknappen längst upp (ovanför R kolumnen) ger utökade antal år. Vid behov kan ytterligare rader och även kolumner (för år) infogas, men då med viss försiktighet då formler inte följer med automatiskt. Vid behov av ytterligare rader är rekommenderat att kopiera en hel rad i mitten av de kostnader / intäkter där behov av ytterligare poster uppstår och sedan infoga hela den kopierade raden på samma rad. Vid behov av ytterligare år rekommenderas kontakt med EA eller att två seprata mallar nyttjas för uträkning men med olika projekt start år. Omf.% innebär omfattning av heltid Nyttj % innebär nyttjandegrad av resursen i procent Förbr % innebär förbrukningsgrad av resursen i procent
B6: Inledning för bidrag Med bidrag menas medel som tas emot utan krav på motprestation i form av till exempel varor, tjänster eller särskilda förmåner. Finansiären kan dock villkora vad bidraget får användas till och dessutom ställa krav på återrapportering av hur medlen nyttjats. Denna mall är ämnad för att stötta beräkning av ett forskningsprojekts kostnader samt finansiering och därmed även det eventuella samfinansieringsbehovet som kan uppstå. Med samfinansieringsbehov i detta sammanhang menas den del av kostnader som uppstår i projektet som inte har beviljats täckning från huvudfinansiärerna. Till skillnad från uppdragsforskningskalkylmallen kan denna mall med fördel även användas som underlag att bifoga en ansökan där bidragsgivaren så kräver. Detta kan ske då de inte själva tillhandahåller någon specifik mall. Mallen i sig kan skrivas ut i komprimerad form genom grupperingsfunktionen till vänster i bladet. Mallen ska alltid skrivas under av prefekt, eller av den till vilken prefekten delegerat beslutsrätten, när det ansökta bidraget överstiger 100 000 kr. I dessa fall ska ett exemplar av ansökan och kalkylen diarieföras och sparas. Vid beviljade ansökningar ska kalkylen bifogas i Avtalsreskontran i KIs affärssystem.
U25: Grundläggande uppgifter Här väljs institutionskod i rullistan som påverkar de indirekta kostnaderna (INDI) både i denna mall men även värden i specifikations- och uppföljningsflikar. Innevarande år kommer upp automatiskt, men val av projektets start år påverkar Index av personal-, drift-, och lokalkostnader. För uppdrag redogörs även om projektet är internt, statligt, externt eller övrigt uppdrag och där moms av annan anldening ska exkluderas. Resten av fälten är fritextfält, men observera att framförallt projektnumret och även de andra fält hämtas upp av de övriga bladen.
C26: GRUNDLÄGGANDE UPPGIFTER
C28: Institutionskod
C29: Innevarande år | D29: =Tabeller!$A$1 -> 2025
C30: Projektets start år/månad
C31: Projektets slut år/månad
C32: Projektledare/-ansvarig
C33: Projektnummer - UBW
C34: Beskrivnig av projektet
C38: ="PROJEKTKOSTNADER"&" - "&LEFT($B$1,(LEN($B$1)-41)) -> PROJEKTKOSTNADER - BIDRAG
C40: A. Personalkostnader | H40: =IF($D$30="","",IF($D$29>$D$30,"Fel i grundläggande uppgifter",$D$30)) ->  | J40: =IFERROR(H40+1,"") ->  | L40: =IFERROR(J40+1,"") ->  | N40: =IFERROR(L40+1,"") ->  | P40: =IFERROR(N40+1,"") -> 
C41: A.1 Medverkande personal med LÖN från KI
C43: A.1.1 - Projektledare
H44: =IF($D$30="","",IF($D$29>$D$30,"Fel i grunduppgifter",$D$30)) ->  | J44: =IFERROR(H44+1,"") ->  | L44: =IFERROR(J44+1,"") ->  | N44: =IFERROR(L44+1,"") ->  | P44: =IFERROR(N44+1,"") ->  | U44: Personalkostnader
C45: Namn/Roll | D45: Arbetsmoment/Beskrivning | F45: Antal timmar | G45: Månadslön (kr) | H45: Omf. % | I45: =IF($D$29=$D$30,"inkl. index 0%","inkl. index 4%") -> inkl. index 4% | J45: Omf. % | K45: inkl. index 3% | L45: Omf. % | M45: inkl. index 3% | N45: Omf. % | O45: inkl. index 3% | P45: Omf. % | Q45: inkl. index 3%
C46: Professor1 | F46: =(H46+J46+L46+N46+P46)*1680 -> 0 | I46: =IFERROR(IF(OR($D$29="",$D$30=""),"År saknas",(($G46*12)*H46*((1+(MID(I$45,12,2))/100)^(H$44-$D$29)))),0) -> År saknas | K46: =IFERROR(IF(OR($D$29="",$D$30=""),"År saknas",(($G46*12)*J46*((1+(MID(K$45,12,2))/100)^(J$44-$D$29)))),0) -> År saknas | M46: =IFERROR(IF(OR($D$29="",$D$30=""),"År saknas",(($G46*12)*L46*((1+(MID(M$45,12,2))/100)^(L$44-$D$29)))),0) -> År saknas | O46: =IFERROR(IF(OR($D$29="",$D$30=""),"År saknas",(($G46*12)*N46*((1+(MID(O$45,12,2))/100)^(N$44-$D$29)))),0) -> År saknas | Q46: =IFERROR(IF(OR($D$29="",$D$30=""),"År saknas",(($G46*12)*P46*((1+(MID(Q$45,12,2))/100)^(P$44-$D$29)))),0) -> År saknas | U46: Beräkningen baserar sig på total månadsersättning och omfattning av heltid i projektet. För bidragsforksning nyttjas bruttolön och standardtiden anges automatiskt, vilket motsvarar 1680 timmar per år på KI. För externa uppdrag ska månadsersättning baseras på debiterbar tid. Bruttolönen behöver beräknas om till debiterbar månadsersättning. Detta är högre än bruttolönen då avräkning för indirekt tid eller produktionsbortfall såsom egen- administration, utbildning och utvecklingsarbete görs. Mallen utgår ifrån en standard produktionsbortfall om 480 timmar, men denna kan enkelt justeras genom att ange nya siffror i beräkningsunderlaget längst ner i bladet. (se även länk ovan eller i rubriken för månadsersättning) Index för personalkostnader är satt till 2% ökning per år.
F47: =(H47+J47+L47+N47+P47)*1680 -> 0 | I47: =IFERROR(IF(OR($D$29="",$D$30=""),"År saknas",(($G47*12)*H47*((1+(MID(I$45,12,2))/100)^(H$44-$D$29)))),0) -> År saknas | K47: =IFERROR(IF(OR($D$29="",$D$30=""),"År saknas",(($G47*12)*J47*((1+(MID(K$45,12,2))/100)^(J$44-$D$29)))),0) -> År saknas | M47: =IFERROR(IF(OR($D$29="",$D$30=""),"År saknas",(($G47*12)*L47*((1+(MID(M$45,12,2))/100)^(L$44-$D$29)))),0) -> År saknas | O47: =IFERROR(IF(OR($D$29="",$D$30=""),"År saknas",(($G47*12)*N47*((1+(MID(O$45,12,2))/100)^(N$44-$D$29)))),0) -> År saknas | Q47: =IFERROR(IF(OR($D$29="",$D$30=""),"År saknas",(($G47*12)*P47*((1+(MID(Q$45,12,2))/100)^(P$44-$D$29)))),0) -> År saknas
F48: =(H48+J48+L48+N48+P48)*1680 -> 0 | I48: =IFERROR(IF(OR($D$29="",$D$30=""),"År saknas",(($G48*12)*H48*((1+(MID(I$45,12,2))/100)^(H$44-$D$29)))),0) -> År saknas | K48: =IFERROR(IF(OR($D$29="",$D$30=""),"År saknas",(($G48*12)*J48*((1+(MID(K$45,12,2))/100)^(J$44-$D$29)))),0) -> År saknas | M48: =IFERROR(IF(OR($D$29="",$D$30=""),"År saknas",(($G48*12)*L48*((1+(MID(M$45,12,2))/100)^(L$44-$D$29)))),0) -> År saknas | O48: =IFERROR(IF(OR($D$29="",$D$30=""),"År saknas",(($G48*12)*N48*((1+(MID(O$45,12,2))/100)^(N$44-$D$29)))),0) -> År saknas | Q48: =IFERROR(IF(OR($D$29="",$D$30=""),"År saknas",(($G48*12)*P48*((1+(MID(Q$45,12,2))/100)^(P$44-$D$29)))),0) -> År saknas
F49: =(H49+J49+L49+N49+P49)*1680 -> 0 | I49: =IFERROR(IF(OR($D$29="",$D$30=""),"År saknas",(($G49*12)*H49*((1+(MID(I$45,12,2))/100)^(H$44-$D$29)))),0) -> År saknas | K49: =IFERROR(IF(OR($D$29="",$D$30=""),"År saknas",(($G49*12)*J49*((1+(MID(K$45,12,2))/100)^(J$44-$D$29)))),0) -> År saknas | M49: =IFERROR(IF(OR($D$29="",$D$30=""),"År saknas",(($G49*12)*L49*((1+(MID(M$45,12,2))/100)^(L$44-$D$29)))),0) -> År saknas | O49: =IFERROR(IF(OR($D$29="",$D$30=""),"År saknas",(($G49*12)*N49*((1+(MID(O$45,12,2))/100)^(N$44-$D$29)))),0) -> År saknas | Q49: =IFERROR(IF(OR($D$29="",$D$30=""),"År saknas",(($G49*12)*P49*((1+(MID(Q$45,12,2))/100)^(P$44-$D$29)))),0) -> År saknas
C51: A.1.2 - Doktorander
H52: =IF($D$30="","",IF($D$29>$D$30,"Fel i grunduppgifter",$D$30)) ->  | J52: =IFERROR(H52+1,"") ->  | L52: =IFERROR(J52+1,"") ->  | N52: =IFERROR(L52+1,"") ->  | P52: =IFERROR(N52+1,"") -> 
C53: Namn/Roll | D53: Arbetsmoment/Beskrivning | F53: Antal timmar | G53: Månadslön (kr) | H53: Omf. % | I53: =IF($D$29=$D$30,"inkl. index 0%","inkl. index 4%") -> inkl. index 4% | J53: Omf. % | K53: inkl. index 3% | L53: Omf. % | M53: inkl. index 3% | N53: Omf. % | O53: inkl. index 3% | P53: Omf. % | Q53: inkl. index 3%
C54: Doktorand1 | F54: =(H54+J54+L54+N54+P54)*1680 -> 0 | I54: =IFERROR(IF(OR($D$29="",$D$30=""),"År saknas",(($G54*12)*H54*((1+(MID(I$53,12,2))/100)^(H$52-$D$29)))),0) -> År saknas | K54: =IFERROR(IF(OR($D$29="",$D$30=""),"År saknas",(($G54*12)*J54*((1+(MID(K$53,12,2))/100)^(J$52-$D$29)))),0) -> År saknas | M54: =IFERROR(IF(OR($D$29="",$D$30=""),"År saknas",(($G54*12)*L54*((1+(MID(M$53,12,2))/100)^(L$52-$D$29)))),0) -> År saknas | O54: =IFERROR(IF(OR($D$29="",$D$30=""),"År saknas",(($G54*12)*N54*((1+(MID(O$53,12,2))/100)^(N$52-$D$29)))),0) -> År saknas | Q54: =IFERROR(IF(OR($D$29="",$D$30=""),"År saknas",(($G54*12)*P54*((1+(MID(Q$53,12,2))/100)^(P$52-$D$29)))),0) -> År saknas
F55: =(H55+J55+L55+N55+P55)*1680 -> 0 | I55: =IFERROR(IF(OR($D$29="",$D$30=""),"År saknas",(($G55*12)*H55*((1+(MID(I$53,12,2))/100)^(H$52-$D$29)))),0) -> År saknas | K55: =IFERROR(IF(OR($D$29="",$D$30=""),"År saknas",(($G55*12)*J55*((1+(MID(K$53,12,2))/100)^(J$52-$D$29)))),0) -> År saknas | M55: =IFERROR(IF(OR($D$29="",$D$30=""),"År saknas",(($G55*12)*L55*((1+(MID(M$53,12,2))/100)^(L$52-$D$29)))),0) -> År saknas | O55: =IFERROR(IF(OR($D$29="",$D$30=""),"År saknas",(($G55*12)*N55*((1+(MID(O$53,12,2))/100)^(N$52-$D$29)))),0) -> År saknas | Q55: =IFERROR(IF(OR($D$29="",$D$30=""),"År saknas",(($G55*12)*P55*((1+(MID(Q$53,12,2))/100)^(P$52-$D$29)))),0) -> År saknas
C57: A.1.3 - Övrig forskande personal
H58: =IF($D$30="","",IF($D$29>$D$30,"Fel i grunduppgifter",$D$30)) ->  | J58: =IFERROR(H58+1,"") ->  | L58: =IFERROR(J58+1,"") ->  | N58: =IFERROR(L58+1,"") ->  | P58: =IFERROR(N58+1,"") -> 
C59: Namn/Roll | D59: Arbetsmoment/Beskrivning | F59: Antal timmar | G59: Månadslön (kr) | H59: Omf. % | I59: =IF($D$29=$D$30,"inkl. index 0%","inkl. index 4%") -> inkl. index 4% | J59: Omf. % | K59: inkl. index 3% | L59: Omf. % | M59: inkl. index 3% | N59: Omf. % | O59: inkl. index 3% | P59: Omf. % | Q59: inkl. index 3%
C60: Forskningsassistent1 | F60: =(H60+J60+L60+N60+P60)*1680 -> 0 | I60: =IFERROR(IF(OR($D$29="",$D$30=""),"År saknas",(($G60*12)*H60*((1+(MID(I$59,12,2))/100)^(H$58-$D$29)))),0) -> År saknas | K60: =IFERROR(IF(OR($D$29="",$D$30=""),"År saknas",(($G60*12)*J60*((1+(MID(K$59,12,2))/100)^(J$58-$D$29)))),0) -> År saknas | M60: =IFERROR(IF(OR($D$29="",$D$30=""),"År saknas",(($G60*12)*L60*((1+(MID(M$59,12,2))/100)^(L$58-$D$29)))),0) -> År saknas | O60: =IFERROR(IF(OR($D$29="",$D$30=""),"År saknas",(($G60*12)*N60*((1+(MID(O$59,12,2))/100)^(N$58-$D$29)))),0) -> År saknas | Q60: =IFERROR(IF(OR($D$29="",$D$30=""),"År saknas",(($G60*12)*P60*((1+(MID(Q$59,12,2))/100)^(P$58-$D$29)))),0) -> År saknas
F61: =(H61+J61+L61+N61+P61)*1680 -> 0 | I61: =IFERROR(IF(OR($D$29="",$D$30=""),"År saknas",(($G61*12)*H61*((1+(MID(I$59,12,2))/100)^(H$58-$D$29)))),0) -> År saknas | K61: =IFERROR(IF(OR($D$29="",$D$30=""),"År saknas",(($G61*12)*J61*((1+(MID(K$59,12,2))/100)^(J$58-$D$29)))),0) -> År saknas | M61: =IFERROR(IF(OR($D$29="",$D$30=""),"År saknas",(($G61*12)*L61*((1+(MID(M$59,12,2))/100)^(L$58-$D$29)))),0) -> År saknas | O61: =IFERROR(IF(OR($D$29="",$D$30=""),"År saknas",(($G61*12)*N61*((1+(MID(O$59,12,2))/100)^(N$58-$D$29)))),0) -> År saknas | Q61: =IFERROR(IF(OR($D$29="",$D$30=""),"År saknas",(($G61*12)*P61*((1+(MID(Q$59,12,2))/100)^(P$58-$D$29)))),0) -> År saknas
C63: A.1.4 - TA-personal som ej ingår i det gemensamma stödet
H64: =IF($D$30="","",IF($D$29>$D$30,"Fel i grunduppgifter",$D$30)) ->  | J64: =IFERROR(H64+1,"") ->  | L64: =IFERROR(J64+1,"") ->  | N64: =IFERROR(L64+1,"") ->  | P64: =IFERROR(N64+1,"") -> 
C65: Namn/Roll | D65: Arbetsmoment/Beskrivning | F65: Antal timmar | G65: Månadslön (kr) | H65: Omf. % | I65: =IF($D$29=$D$30,"inkl. index 0%","inkl. index 4%") -> inkl. index 4% | J65: Omf. % | K65: inkl. index 3% | L65: Omf. % | M65: inkl. index 3% | N65: Omf. % | O65: inkl. index 3% | P65: Omf. % | Q65: inkl. index 3%
C66: Administratör1 | F66: =(H66+J66+L66+N66+P66)*1680 -> 0 | I66: =IFERROR(IF(OR($D$29="",$D$30=""),"År saknas",(($G66*12)*H66*((1+(MID(I$65,12,2))/100)^(H$64-$D$29)))),0) -> År saknas | K66: =IFERROR(IF(OR($D$29="",$D$30=""),"År saknas",(($G66*12)*J66*((1+(MID(K$65,12,2))/100)^(J$64-$D$29)))),0) -> År saknas | M66: =IFERROR(IF(OR($D$29="",$D$30=""),"År saknas",(($G66*12)*L66*((1+(MID(M$65,12,2))/100)^(L$64-$D$29)))),0) -> År saknas | O66: =IFERROR(IF(OR($D$29="",$D$30=""),"År saknas",(($G66*12)*N66*((1+(MID(O$65,12,2))/100)^(N$64-$D$29)))),0) -> År saknas | Q66: =IFERROR(IF(OR($D$29="",$D$30=""),"År saknas",(($G66*12)*P66*((1+(MID(Q$65,12,2))/100)^(P$64-$D$29)))),0) -> År saknas
F67: =(H67+J67+L67+N67+P67)*1680 -> 0 | I67: =IFERROR(IF(OR($D$29="",$D$30=""),"År saknas",(($G67*12)*H67*((1+(MID(I$65,12,2))/100)^(H$64-$D$29)))),0) -> År saknas | K67: =IFERROR(IF(OR($D$29="",$D$30=""),"År saknas",(($G67*12)*J67*((1+(MID(K$65,12,2))/100)^(J$64-$D$29)))),0) -> År saknas | M67: =IFERROR(IF(OR($D$29="",$D$30=""),"År saknas",(($G67*12)*L67*((1+(MID(M$65,12,2))/100)^(L$64-$D$29)))),0) -> År saknas | O67: =IFERROR(IF(OR($D$29="",$D$30=""),"År saknas",(($G67*12)*N67*((1+(MID(O$65,12,2))/100)^(N$64-$D$29)))),0) -> År saknas | Q67: =IFERROR(IF(OR($D$29="",$D$30=""),"År saknas",(($G67*12)*P67*((1+(MID(Q$65,12,2))/100)^(P$64-$D$29)))),0) -> År saknas
C69: Summa Personalkostnader exkl. lönekostnadspålägg (LKP) | F69: =SUM(F$46:F67) -> 0 | H69: =SUM(I$46:I67) -> 0 | J69: =SUM(K$46:K67) -> 0 | L69: =SUM(M$46:M67) -> 0 | N69: =SUM(O$46:O67) -> 0 | P69: =SUM(Q$46:Q67) -> 0
C71: Sociala avgifter (LKP) - 2023 | G71: 0.5401 | U71: LKP LKP (Lönekostnadspålägg) är en kostnad som de flesta arbetsgivare har för den anställda utöver den individuella bruttolönen som den anställda har. Detta är en standardsats som revideras centralt årligen.
C72: Semestertillägg | G72: 0.0185
F73: LKP Total | G73: =SUM(G71:G72) -> 0.5586
C75: Summa personalkostnad där lönekostnadspålägg (LKP) ingår | H75: =SUM(H69)*(1+$G73) -> 0 | J75: =SUM(J69)*(1+$G73) -> 0 | L75: =SUM(L69)*(1+$G73) -> 0 | N75: =SUM(N69)*(1+$G73) -> 0 | P75: =SUM(P69)*(1+$G73) -> 0
C77: A.2 Övriga medverkande som har annan ersättning än lön (dessa exkluderas från LKP)
C78: A.2.1 - Övriga medverkande
H79: =IF($D$30="","",IF($D$29>$D$30,"Fel i grunduppgifter",$D$30)) ->  | J79: =IFERROR(H79+1,"") ->  | L79: =IFERROR(J79+1,"") ->  | N79: =IFERROR(L79+1,"") ->  | P79: =IFERROR(N79+1,"") ->  | U79: Övriga medverkande (exkl. LKP) Detta är främst för stipendiater, men kan även användas för medverkande där LKP inte ska ingå av andra eventuella skäl.
C80: Namn/Roll | D80: Arbetsmoment/Beskrivning | F80: Antal timmar | G80: Månadsers. (kr) | H80: Omf. % | I80: =IF($D$29=$D$30,"inkl. index 0%","inkl. index 0%") -> inkl. index 0% | J80: Omf. % | K80: inkl. index 0% | L80: Omf. % | M80: inkl. index 0% | N80: Omf. % | O80: inkl. index 0% | P80: Omf. % | Q80: inkl. index 0%
C81: Stipendiat 1 | F81: =(H81+J81+L81+N81+P81)*1680 -> 0 | I81: =IFERROR(IF(OR($D$29="",$D$30=""),"År saknas",(($G81*12)*H81*((1+(MID(I$80,12,2))/100)^(H$79-$D$29)))),0) -> År saknas | K81: =IFERROR(IF(OR($D$29="",$D$30=""),"År saknas",(($G81*12)*J81*((1+(MID(K$80,12,2))/100)^(J$79-$D$29)))),0) -> År saknas | M81: =IFERROR(IF(OR($D$29="",$D$30=""),"År saknas",(($G81*12)*L81*((1+(MID(M$80,12,2))/100)^(L$79-$D$29)))),0) -> År saknas | O81: =IFERROR(IF(OR($D$29="",$D$30=""),"År saknas",(($G81*12)*N81*((1+(MID(O$80,12,2))/100)^(N$79-$D$29)))),0) -> År saknas | Q81: =IFERROR(IF(OR($D$29="",$D$30=""),"År saknas",(($G81*12)*P81*((1+(MID(Q$80,12,2))/100)^(P$79-$D$29)))),0) -> År saknas
F82: =(H82+J82+L82+N82+P82)*1680 -> 0 | I82: =IFERROR(IF(OR($D$29="",$D$30=""),"År saknas",(($G82*12)*H82*((1+(MID(I$80,12,2))/100)^(H$79-$D$29)))),0) -> År saknas | K82: =IFERROR(IF(OR($D$29="",$D$30=""),"År saknas",(($G82*12)*J82*((1+(MID(K$80,12,2))/100)^(J$79-$D$29)))),0) -> År saknas | M82: =IFERROR(IF(OR($D$29="",$D$30=""),"År saknas",(($G82*12)*L82*((1+(MID(M$80,12,2))/100)^(L$79-$D$29)))),0) -> År saknas | O82: =IFERROR(IF(OR($D$29="",$D$30=""),"År saknas",(($G82*12)*N82*((1+(MID(O$80,12,2))/100)^(N$79-$D$29)))),0) -> År saknas | Q82: =IFERROR(IF(OR($D$29="",$D$30=""),"År saknas",(($G82*12)*P82*((1+(MID(Q$80,12,2))/100)^(P$79-$D$29)))),0) -> År saknas
C84: Summa kostnader för övriga medverkande | H84: =SUM(I$81:I82) -> 0 | J84: =SUM(K$81:K82) -> 0 | L84: =SUM(M$81:M82) -> 0 | N84: =SUM(O$81:O82) -> 0 | P84: =SUM(Q$81:Q82) -> 0
C86: Summa samtliga personalkostnader | H86: =H84+H75 -> 0 | J86: =J84+J75 -> 0 | L86: =L84+L75 -> 0 | N86: =N84+N75 -> 0 | P86: =P84+P75 -> 0
C88: B. Driftkostnader
C90: B.1 Resekostnader
H92: =IF($D$30="","",IF($D$29>$D$30,"Fel i grunduppgifter",$D$30)) ->  | J92: =IFERROR(H92+1,"") ->  | L92: =IFERROR(J92+1,"") ->  | N92: =IFERROR(L92+1,"") ->  | P92: =IFERROR(N92+1,"") ->  | U92: Resekostnader
C93: Resekostnader - beskrivning | G93: Kostnad att fördela -> | H93: Förbr. % | I93: =IF($D$29=$D$30,"inkl. index 0%","inkl. index 3%") -> inkl. index 3% | J93: Förbr. % | K93: inkl. index 3% | L93: Förbr. % | M93: inkl. index 3% | N93: Förbr. % | O93: inkl. index 3% | P93: Förbr. % | Q93: inkl. index 3% | U93: Hit förs alla typer av resekostnader som är förknippade med projektet (inkl. brutto av eventuella skattepliktiga traktamenten).
C94: Resa 1 | I94: =IF(OR($D$29="",$D$30=""),"År saknas",(($G94)*H94)*((1+(MID(I$93,12,2))/100)^(H$92-$D$29))) -> År saknas | K94: =IF(OR($D$29="",$D$30=""),"År saknas",(($G94)*J94)*((1+(MID(K$93,12,2))/100)^(J$102-$D$29))) -> År saknas | M94: =IF(OR($D$29="",$D$30=""),"År saknas",(($G94)*L94)*((1+(MID(M$93,12,2))/100)^(L$92-$D$29))) -> År saknas | O94: =IF(OR($D$29="",$D$30=""),"År saknas",(($G94)*N94)*((1+(MID(O$93,12,2))/100)^(N$92-$D$29))) -> År saknas | Q94: =IF(OR($D$29="",$D$30=""),"År saknas",(($G94)*P94)*((1+(MID(Q$93,12,2))/100)^(P$92-$D$29))) -> År saknas
I95: =IF(OR($D$29="",$D$30=""),"År saknas",(($G95)*H95)*((1+(MID(I$93,12,2))/100)^(H$102-$D$29))) -> År saknas | K95: =IF(OR($D$29="",$D$30=""),"År saknas",(($G95)*J95)*((1+(MID(K$93,12,2))/100)^(J$92-$D$29))) -> År saknas | M95: =IF(OR($D$29="",$D$30=""),"År saknas",(($G95)*L95)*((1+(MID(M$93,12,2))/100)^(L$92-$D$29))) -> År saknas | O95: =IF(OR($D$29="",$D$30=""),"År saknas",(($G95)*N95)*((1+(MID(O$93,12,2))/100)^(N$92-$D$29))) -> År saknas | Q95: =IF(OR($D$29="",$D$30=""),"År saknas",(($G95)*P95)*((1+(MID(Q$93,12,2))/100)^(P$92-$D$29))) -> År saknas
I96: =IF(OR($D$29="",$D$30=""),"År saknas",(($G96)*H96)*((1+(MID(I$93,12,2))/100)^(H$102-$D$29))) -> År saknas | K96: =IF(OR($D$29="",$D$30=""),"År saknas",(($G96)*J96)*((1+(MID(K$93,12,2))/100)^(J$92-$D$29))) -> År saknas | M96: =IF(OR($D$29="",$D$30=""),"År saknas",(($G96)*L96)*((1+(MID(M$93,12,2))/100)^(L$92-$D$29))) -> År saknas | O96: =IF(OR($D$29="",$D$30=""),"År saknas",(($G96)*N96)*((1+(MID(O$93,12,2))/100)^(N$92-$D$29))) -> År saknas | Q96: =IF(OR($D$29="",$D$30=""),"År saknas",(($G96)*P96)*((1+(MID(Q$93,12,2))/100)^(P$92-$D$29))) -> År saknas
C98: Summa resekostnader | H98: =SUM(I$94:I96) -> 0 | J98: =SUM(K$94:K96) -> 0 | L98: =SUM(M$94:M96) -> 0 | N98: =SUM(O$94:O96) -> 0 | P98: =SUM(Q$94:Q96) -> 0
C100: B.2 Direkta driftkostnader (Lokal- och KI-interna kostnader kommer under övriga drifkostnader)
H102: =IF($D$30="","",IF($D$29>$D$30,"Fel i grunduppgifter",$D$30)) ->  | J102: =IFERROR(H102+1,"") ->  | L102: =IFERROR(J102+1,"") ->  | N102: =IFERROR(L102+1,"") ->  | P102: =IFERROR(N102+1,"") ->  | U102: Drifkostnader Hit förs alla typer av driftkostnader (exklusive resekostnader) som är direkt förknippade med projektet. Detta kan innefatta för projektet nödvändig litteratur, kemikalier, laboratorieutrustning, konsultkostnader. Beloppet anges som en total kostnad för projektet på respektive rad sedan anges förbrukning av resursen (kostnden) för respektive år som procent. 100% innebär alltså att hela kostnaden tas på det året.
C103: Driftkostnader - beskrivning | G103: Kostnad att fördela -> | H103: Förbr. % | I103: =IF($D$29=$D$30,"inkl. index 0%","inkl. index 1%") -> inkl. index 1% | J103: Förbr. % | K103: inkl. index 1% | L103: Förbr. % | M103: inkl. index 1% | N103: Förbr. % | O103: inkl. index 1% | P103: Förbr. % | Q103: inkl. index 1%
C104: Instrument | I104: =IF(OR($D$29="",$D$30=""),"År saknas",(($G104)*H104)*((1+(MID(I$103,12,2))/100)^(H$102-$D$29))) -> År saknas | K104: =IF(OR($D$29="",$D$30=""),"År saknas",(($G104)*J104)*((1+(MID(K$103,12,2))/100)^(J$102-$D$29))) -> År saknas | M104: =IF(OR($D$29="",$D$30=""),"År saknas",(($G104)*L104)*((1+(MID(M$103,12,2))/100)^(L$102-$D$29))) -> År saknas | O104: =IF(OR($D$29="",$D$30=""),"År saknas",(($G104)*N104)*((1+(MID(O$103,12,2))/100)^(N$102-$D$29))) -> År saknas | Q104: =IF(OR($D$29="",$D$30=""),"År saknas",(($G104)*P104)*((1+(MID(Q$103,12,2))/100)^(P$102-$D$29))) -> År saknas
C105: Konsulttid | I105: År saknas | K105: År saknas | M105: År saknas | O105: År saknas | Q105: År saknas
C106: Litteratur | I106: År saknas | K106: År saknas | M106: År saknas | O106: År saknas | Q106: År saknas
C107: Djur | I107: År saknas | K107: År saknas | M107: År saknas | O107: År saknas | Q107: År saknas
I108: År saknas | K108: År saknas | M108: År saknas | O108: År saknas | Q108: År saknas
I109: År saknas | K109: År saknas | M109: År saknas | O109: År saknas | Q109: År saknas
I110: År saknas | K110: År saknas | M110: År saknas | O110: År saknas | Q110: År saknas
I111: År saknas | K111: År saknas | M111: År saknas | O111: År saknas | Q111: År saknas
I112: År saknas | K112: År saknas | M112: År saknas | O112: År saknas | Q112: År saknas
C114: Summa direkta driftkostnader | H114: =SUM(I$104:I112) -> 0 | J114: =SUM(K$104:K112) -> 0 | L114: =SUM(M$104:M112) -> 0 | N114: =SUM(O$104:O112) -> 0 | P114: =SUM(Q$104:Q112) -> 0
U115: Övriga driftkostnader Avskrivningar, Lokalkostnader och interna kostnader genererar ingen INDI i den mån kalkylen inkluderar detta.
C116: B.3 Övriga driftkostnader (dessa exkluderas från INDI)
H118: =IF($D$30="","",IF($D$29>$D$30,"Fel i grunduppgifter",$D$30)) ->  | J118: =IFERROR(H118+1,"") ->  | L118: =IFERROR(J118+1,"") ->  | N118: =IFERROR(L118+1,"") ->  | P118: =IFERROR(N118+1,"") -> 
C119: Anläggning - beskrivning | F119: Eko. livslängd | G119: Investeringskostnad | H119: Nyttj. % | I119: =IF($D$29=$D$30,"inkl. index 0%","inkl. index 0%") -> inkl. index 0% | J119: Nyttj. % | K119: inkl. index 0% | L119: Nyttj. % | M119: inkl. index 0% | N119: Nyttj. % | O119: inkl. index 0% | P119: Nyttj. % | Q119: inkl. index 0% | U119: Anläggningar Ange den kvarvarande ekonomiska livslängden och investeringskostnaden (nettofakturabelopp) eller totala restvärdet vid befintliga anläggningar. Nyttjandegrad kan uppskattas eller beräknas genom att ta den totala tiden som anläggningen kommer nyttjas respektive år med den totala möjliga nyttjandetiden för anläggningen per år. Lokalkostnader Hit förs alla kostnader för de lokaler som nyttjas samt eventuella kostnader för städning och gemensamma ytor. Uppgifter om ytor och kostnd erhålls oftast från institutionens administration. Interna kostnader Hit förs interna kostnader som uppstår av produkter eller tjänster som tillhandahålls från andra delar av KI, vilket ska inkludera motpartens indirekta kostnader (INDI)
C120: Anl 1 | I120: =IFERROR(IF((H$118-$D$30)>=((IF(LEN($F120)=4,LEFT($F120,1),LEFT($F120,2)))*1),"*livslängd < proj-tid",(($G120/(IF(LEN($F120)=4,LEFT($F120,1),LEFT($F120,2))))*H120)*((1+(MID(I$119,12,2))/100)^(H$118-$D$29))),0) -> 0 | K120: =IFERROR(IF((J$118-$D$30)>=((IF(LEN($F120)=4,LEFT($F120,1),LEFT($F120,2)))*1),"*livslängd < proj-tid",(($G120/(IF(LEN($F120)=4,LEFT($F120,1),LEFT($F120,2))))*J120)*((1+(MID(K$119,12,2))/100)^(J$118-$D$29))),0) -> 0 | M120: =IFERROR(IF((L$118-$D$30)>=((IF(LEN($F120)=4,LEFT($F120,1),LEFT($F120,2)))*1),"*livslängd < proj-tid",(($G120/(IF(LEN($F120)=4,LEFT($F120,1),LEFT($F120,2))))*L120)*((1+(MID(M$119,12,2))/100)^(L$118-$D$29))),0) -> 0 | O120: =IFERROR(IF((N$118-$D$30)>=((IF(LEN($F120)=4,LEFT($F120,1),LEFT($F120,2)))*1),"*livslängd < proj-tid",(($G120/(IF(LEN($F120)=4,LEFT($F120,1),LEFT($F120,2))))*N120)*((1+(MID(O$119,12,2))/100)^(N$118-$D$29))),0) -> 0 | Q120: =IFERROR(IF((P$118-$D$30)>=((IF(LEN($F120)=4,LEFT($F120,1),LEFT($F120,2)))*1),"*livslängd < proj-tid",(($G120/(IF(LEN($F120)=4,LEFT($F120,1),LEFT($F120,2))))*P120)*((1+(MID(Q$119,12,2))/100)^(P$118-$D$29))),0) -> 0
I121: =IFERROR(IF((H$118-$D$30)>=((IF(LEN($F121)=4,LEFT($F121,1),LEFT($F121,2)))*1),"*livslängd < proj-tid",(($G121/(IF(LEN($F121)=4,LEFT($F121,1),LEFT($F121,2))))*H121)*((1+(MID(I$119,12,2))/100)^(H$118-$D$29))),0) -> 0 | K121: =IFERROR(IF((J$118-$D$30)>=((IF(LEN($F121)=4,LEFT($F121,1),LEFT($F121,2)))*1),"*livslängd < proj-tid",(($G121/(IF(LEN($F121)=4,LEFT($F121,1),LEFT($F121,2))))*J121)*((1+(MID(K$119,12,2))/100)^(J$118-$D$29))),0) -> 0 | M121: =IFERROR(IF((L$118-$D$30)>=((IF(LEN($F121)=4,LEFT($F121,1),LEFT($F121,2)))*1),"*livslängd < proj-tid",(($G121/(IF(LEN($F121)=4,LEFT($F121,1),LEFT($F121,2))))*L121)*((1+(MID(M$119,12,2))/100)^(L$118-$D$29))),0) -> 0 | O121: =IFERROR(IF((N$118-$D$30)>=((IF(LEN($F121)=4,LEFT($F121,1),LEFT($F121,2)))*1),"*livslängd < proj-tid",(($G121/(IF(LEN($F121)=4,LEFT($F121,1),LEFT($F121,2))))*N121)*((1+(MID(O$119,12,2))/100)^(N$118-$D$29))),0) -> 0 | Q121: =IFERROR(IF((P$118-$D$30)>=((IF(LEN($F121)=4,LEFT($F121,1),LEFT($F121,2)))*1),"*livslängd < proj-tid",(($G121/(IF(LEN($F121)=4,LEFT($F121,1),LEFT($F121,2))))*P121)*((1+(MID(Q$119,12,2))/100)^(P$118-$D$29))),0) -> 0
H123: =IF($D$30="","",IF($D$29>$D$30,"Fel i grunduppgifter",$D$30)) ->  | J123: =IFERROR(H123+1,"") ->  | L123: =IFERROR(J123+1,"") ->  | N123: =IFERROR(L123+1,"") ->  | P123: =IFERROR(N123+1,"") -> 
C124: Lokalkostnader - beskrivning | F124: Lokal yta kvm | G124: Kvm kostnad / år | H124: Nyttj. % | I124: =IF($D$29=$D$30,"inkl. index 0%","inkl. index 2%") -> inkl. index 2% | J124: Nyttj. % | K124: inkl. index 2% | L124: Nyttj. % | M124: inkl. index 2% | N124: Nyttj. % | O124: inkl. index 2% | P124: Nyttj. % | Q124: inkl. index 2%
C125: Kontor1 | I125: =IF(OR($D$29="",$D$30=""),"År saknas",(($F125*$G125)*H125)*((1+(MID(I$124,12,2))/100)^(H$123-$D$29))) -> År saknas | K125: =IF(OR($D$29="",$D$30=""),"År saknas",(($F125*$G125)*J125)*((1+(MID(K$124,12,2))/100)^(J$123-$D$29))) -> År saknas | M125: =IF(OR($D$29="",$D$30=""),"År saknas",(($F125*$G125)*L125)*((1+(MID(M$124,12,2))/100)^(L$123-$D$29))) -> År saknas | O125: =IF(OR($D$29="",$D$30=""),"År saknas",(($F125*$G125)*N125)*((1+(MID(O$124,12,2))/100)^(N$123-$D$29))) -> År saknas | Q125: =IF(OR($D$29="",$D$30=""),"År saknas",(($F125*$G125)*P125)*((1+(MID(Q$124,12,2))/100)^(P$123-$D$29))) -> År saknas
C126: Lab1 | I126: =IF(OR($D$29="",$D$30=""),"År saknas",(($F126*$G126)*H126)*((1+(MID(I$124,12,2))/100)^(H$123-$D$29))) -> År saknas | K126: =IF(OR($D$29="",$D$30=""),"År saknas",(($F126*$G126)*J126)*((1+(MID(K$124,12,2))/100)^(J$123-$D$29))) -> År saknas | M126: =IF(OR($D$29="",$D$30=""),"År saknas",(($F126*$G126)*L126)*((1+(MID(M$124,12,2))/100)^(L$123-$D$29))) -> År saknas | O126: =IF(OR($D$29="",$D$30=""),"År saknas",(($F126*$G126)*N126)*((1+(MID(O$124,12,2))/100)^(N$123-$D$29))) -> År saknas | Q126: =IF(OR($D$29="",$D$30=""),"År saknas",(($F126*$G126)*P126)*((1+(MID(Q$124,12,2))/100)^(P$123-$D$29))) -> År saknas
I127: =IF(OR($D$29="",$D$30=""),"År saknas",(($F127*$G127)*H127)*((1+(MID(I$124,12,2))/100)^(H$123-$D$29))) -> År saknas | K127: =IF(OR($D$29="",$D$30=""),"År saknas",(($F127*$G127)*J127)*((1+(MID(K$124,12,2))/100)^(J$123-$D$29))) -> År saknas | M127: =IF(OR($D$29="",$D$30=""),"År saknas",(($F127*$G127)*L127)*((1+(MID(M$124,12,2))/100)^(L$123-$D$29))) -> År saknas | O127: =IF(OR($D$29="",$D$30=""),"År saknas",(($F127*$G127)*N127)*((1+(MID(O$124,12,2))/100)^(N$123-$D$29))) -> År saknas | Q127: =IF(OR($D$29="",$D$30=""),"År saknas",(($F127*$G127)*P127)*((1+(MID(Q$124,12,2))/100)^(P$123-$D$29))) -> År saknas
H129: =IF($D$30="","",IF($D$29>$D$30,"Fel i grunduppgifter",$D$30)) ->  | J129: =IFERROR(H129+1,"") ->  | L129: =IFERROR(J129+1,"") ->  | N129: =IFERROR(L129+1,"") ->  | P129: =IFERROR(N129+1,"") -> 
C130: Interna kostnader och eventuell INDI-befriad verksamhet - beskrivning | G130: Kostnad att fördela -> | H130: Förbr. % | I130: =IF($D$29=$D$30,"inkl. index 0%","inkl. index 0%") -> inkl. index 0% | J130: Förbr. % | K130: inkl. index 0% | L130: Förbr. % | M130: inkl. index 0% | N130: Förbr. % | O130: inkl. index 0% | P130: Förbr. % | Q130: inkl. index 0%
C131: Interntjänst1, inkl. motpartens INDI | I131: =IF(OR($D$29="",$D$30=""),"År saknas",(($G131)*H131)*((1+(MID(I$130,12,2))/100)^(H$129-$D$29))) -> År saknas | K131: =IF(OR($D$29="",$D$30=""),"År saknas",(($G131)*J131)*((1+(MID(K$130,12,2))/100)^(J$129-$D$29))) -> År saknas | M131: =IF(OR($D$29="",$D$30=""),"År saknas",(($G131)*L131)*((1+(MID(M$130,12,2))/100)^(L$129-$D$29))) -> År saknas | O131: =IF(OR($D$29="",$D$30=""),"År saknas",(($G131)*N131)*((1+(MID(O$130,12,2))/100)^(N$129-$D$29))) -> År saknas | Q131: =IF(OR($D$29="",$D$30=""),"År saknas",(($G131)*P131)*((1+(MID(Q$130,12,2))/100)^(P$129-$D$29))) -> År saknas
C132: IT avgift 10 400 kr per anställd/anknuten och år (2022) | I132: =IF(OR($D$29="",$D$30=""),"År saknas",(($G132)*H132)*((1+(MID(I$130,12,2))/100)^(H$129-$D$29))) -> År saknas | K132: =IF(OR($D$29="",$D$30=""),"År saknas",(($G132)*J132)*((1+(MID(K$130,12,2))/100)^(J$129-$D$29))) -> År saknas | M132: =IF(OR($D$29="",$D$30=""),"År saknas",(($G132)*L132)*((1+(MID(M$130,12,2))/100)^(L$129-$D$29))) -> År saknas | O132: =IF(OR($D$29="",$D$30=""),"År saknas",(($G132)*N132)*((1+(MID(O$130,12,2))/100)^(N$129-$D$29))) -> År saknas | Q132: =IF(OR($D$29="",$D$30=""),"År saknas",(($G132)*P132)*((1+(MID(Q$130,12,2))/100)^(P$129-$D$29))) -> År saknas
I133: =IF(OR($D$29="",$D$30=""),"År saknas",(($G133)*H133)*((1+(MID(I$130,12,2))/100)^(H$129-$D$29))) -> År saknas | K133: =IF(OR($D$29="",$D$30=""),"År saknas",(($G133)*J133)*((1+(MID(K$130,12,2))/100)^(J$129-$D$29))) -> År saknas | M133: =IF(OR($D$29="",$D$30=""),"År saknas",(($G133)*L133)*((1+(MID(M$130,12,2))/100)^(L$129-$D$29))) -> År saknas | O133: =IF(OR($D$29="",$D$30=""),"År saknas",(($G133)*N133)*((1+(MID(O$130,12,2))/100)^(N$129-$D$29))) -> År saknas | Q133: =IF(OR($D$29="",$D$30=""),"År saknas",(($G133)*P133)*((1+(MID(Q$130,12,2))/100)^(P$129-$D$29))) -> År saknas
C135: Summa Övriga kostnader | H135: =SUM(I$120:I121)+SUM(I$131:I133)+SUM(I$125:I127) -> 0 | J135: =SUM(K$120:K121)+SUM(K$131:K133)+SUM(K$125:K127) -> 0 | L135: =SUM(M$120:M121)+SUM(M$131:M133)+SUM(M$125:M127) -> 0 | N135: =SUM(O$120:O121)+SUM(O$131:O133)+SUM(O$125:O127) -> 0 | P135: =SUM(Q$120:Q121)+SUM(Q$131:Q133)+SUM(Q$125:Q127) -> 0
C137: Summa Driftkostnader | H137: =H135+H114+H98 -> 0 | J137: =J135+J114+J98 -> 0 | L137: =L135+L114+L98 -> 0 | N137: =N135+N114+N98 -> 0 | P137: =P135+P114+P98 -> 0
U138: Gemensamma kostnader Indirekta kostnader (INDI) Dessa innefattar oftast universitets- och fakultetsgemensamma kostnader samt institutionsgemensamma kostnader. Här finns även möjlighet att göra ned- eller uppräkning av INDI (kan nyttjas vid flerårigt projekt).
C139: C. Gemensamma kostnader
C140: =IF(LEFT($D$28,2)="UF",$D$28,"Universitetsgem.") -> Universitetsgem. | G140: =IF($D$28="",0,IF(LEFT($D$28,2)="UF",VLOOKUP($C$140,'INDI FO 2025'!$C:$G,5,0),VLOOKUP(LEFT($D$28,2),'INDI FO 2025'!$A:$G,6,0))) -> 0
C141: =IF(LEFT($D$28,2)="UF","","Institutionsgem.") -> Institutionsgem. | G141: =IF($D$28="",0,IF(LEFT($D$28,2)="UF","",VLOOKUP(LEFT($D$28,2),'INDI FO 2025'!$A:$G,4,0))) -> 0
C142: Ned- / Uppräkning av INDI | G142: 0
F143: INDI Total | G143: =SUM(G140:G142) -> 0
C145: Summa Indirekta kostnader | H145: =(H75+H114+H98)*$G$143 -> 0 | J145: =(J75+J114+J98)*$G$143 -> 0 | L145: =(L75+L114+L98)*$G$143 -> 0 | N145: =(N75+N114+N98)*$G$143 -> 0 | P145: =(P75+P114+P98)*$G$143 -> 0
C148: SUMMA PROJEKTKOSTNADER | H148: =H86+H137+H145 -> 0 | J148: =J86+J137+J145 -> 0 | L148: =L86+L137+L145 -> 0 | N148: =N86+N137+N145 -> 0 | P148: =P86+P137+P145 -> 0
C151: FINANSIERING | U151: Finansiering Här redogörs för finansiering av de förväntade kostnader Huvudfinansiär Här redogörs för den förväntade huvudfinansieringen av projektets kostnader. Detta är oftast en finansiär men kan givetvis innefatta flera finansieringskällor. Huvudfinansiärerna är till majoritet KI-externa organisationer och föreningar. I fritexfält kan vid behov formler nyttjas för beräkning då finansiering baserar sig på regler kopplade till andra kostnadsposter, exempelvis INDI.
C153: A. Huvudfinansiär
C154: Beviljad finansiering | F154: Frivillig rubrik | G154: Frivillig rubrik | H154: =IF($D$30="","",IF($D$29>$D$30,"Fel i grunduppgifter",$D$30)) ->  | J154: =IFERROR(H154+1,"") ->  | L154: =IFERROR(J154+1,"") ->  | N154: =IFERROR(L154+1,"") ->  | P154: =IFERROR(N154+1,"") -> 
C155: Finansiär1
C156: Finansiär2
C159: Summa finansiering | H159: =SUM(H155:I157) -> 0 | J159: =SUM(J155:K157) -> 0 | L159: =SUM(L155:M157) -> 0 | N159: =SUM(N155:O157) -> 0 | P159: =SUM(P155:Q157) -> 0
C161: B. Samfinansiering
C162: Samfinansiering / kapital från projekt | F162: Frivillig rubrik | G162: Frivillig rubrik | H162: =IF($D$30="","",IF($D$29>$D$30,"Fel i grunduppgifter",$D$30)) ->  | J162: =IFERROR(H162+1,"") ->  | L162: =IFERROR(J162+1,"") ->  | N162: =IFERROR(L162+1,"") ->  | P162: =IFERROR(N162+1,"") ->  | U162: Samfinansiering Innan något har förts in här visar totalen eller uträkningen längst ner samfinansieringsbehovet som finns. Dvs totalen av de kostnader som inte täcks av huvudfinansiären / -finansiärerna. Efter behovet av samfinansiering visats kan här redogöras för varifrån och i hur stor omfattning samfinansieringen som kommer, allt eftersom samfinansiering förs in reduseras samfinansieringsbehovet totalt i filen.
C163: Projekt1
C164: Projekt2
C167: Samfinansieringsbehov (finansiering - kostnader + samfinansiering) | H167: =H159-H148+SUM(H163:I164) -> 0 | J167: =J159-J148+SUM(J163:K164) -> 0 | L167: =L159-L148+SUM(L163:M164) -> 0 | N167: =N159-N148+SUM(N163:O164) -> 0 | P167: =P159-P148+SUM(P163:Q164) -> 0
C169: Huvudansökanden | E169: Kontrollerad av inst.-ekonom / motsvarande | G169: Prefekt / med motsvarande beslutsrätt
C172: Signatur | E172: Signatur | G172: Signatur | U172: Underskrifter Mallen ska alltid skrivas under av prefekt, eller av den till vilken prefekten delegerat beslutsrätten, när det ansökta bidraget överstiger 100 000 kr.
C175: Namnförtydligande | E175: Namnförtydligande | G175: Namnförtydligande

Sheet Spec-indir-kostn-inst & -proj
B1: BIDRAGSFORKSNING - BILAGA TILL FULL KOSTNADSTÄCKNINGSKALKYL
B3: Inledning Denna flik preciserar de gemensamma / indirekta kostnaderna (INDI) för myndigheten Karolinska Institutet, men även för utförande institution samt för det specifika projektet. Fördelningen görs på följande nivåer: Ledning, Utbildning-forskning, Ekonomi-personal, Infrastruktur-service, Bibliotek, Nivåspecifikt övrigt. Siffrorna i mallen hämtas automatiskt om uppgifterna i bidragsforksningsfliken är korrekt ifyllda.
C12: GRUNDLÄGGANDE UPPGIFTER
C14: Institutions kod | D14: =Bidragsforskning!$D$28 -> 0
C15: Projektledare/-ansvarig | D15: =IF(Bidragsforskning!$D32="","",Bidragsforskning!$D32) -> 
C16: Projektnummer - UBW | D16: =IF(Bidragsforskning!$D33="","",Bidragsforskning!$D33) -> 
C17: Beskrivnig av projektet | D17: =IF(Bidragsforskning!$D34="","",Bidragsforskning!$D34) -> 
C19: Fördelningsbas kostnadsunderlag i tkr: | E19: =IF(Bidragsforskning!$D$28="","",VLOOKUP(LEFT(Bidragsforskning!$D$28,2),'INDI FO 2025'!K1:M26,3,0)) -> 
C22: INDIREKTA KOSTNADER KAROLINSKA INSTITUTET I TUSENTALS KR (KSEK)
E25: Universitetsgem kostnader - totalt | F25: Institutionsgem kostnader - totalt
C26: Ledning | E26: 80104 | F26: =SUMIF('INDI FO 2025'!$R$36:$R$45,'Spec-indir-kostn-inst & -proj'!$C26,'INDI FO 2025'!$T$36:$T$45)/-1000 -> 0
C27: Utbildning-forskning | E27: 131527 | F27: =SUMIF('INDI FO 2025'!$R$36:$R$45,'Spec-indir-kostn-inst & -proj'!$C27,'INDI FO 2025'!$T$36:$T$45)/-1000 -> 0
C28: Ekonomi-personal | E28: 82512 | F28: =SUMIF('INDI FO 2025'!$R$36:$R$45,'Spec-indir-kostn-inst & -proj'!$C28,'INDI FO 2025'!$T$36:$T$45)/-1000 -> 0
C29: Infrastruktur-service | E29: 123183 | F29: =SUMIF('INDI FO 2025'!$R$36:$R$45,'Spec-indir-kostn-inst & -proj'!$C29,'INDI FO 2025'!$T$36:$T$45)/-1000 -> 0
C30: Bibliotek | E30: 75731 | F30: =SUMIF('INDI FO 2025'!$R$36:$R$45,'Spec-indir-kostn-inst & -proj'!$C30,'INDI FO 2025'!$T$36:$T$45)/-1000 -> 0
C31: Nivåspecifikt mm | E31: 0 | F31: =SUMIF('INDI FO 2025'!$R$36:$R$45,'Spec-indir-kostn-inst & -proj'!$C31,'INDI FO 2025'!$T$36:$T$45)/-1000 -> 0
C32: Summa | E32: =SUM(E26:E31) -> 493057 | F32: =SUM(F26:F31) -> 0
E35: Inst andel av Universitetsgem | F35: Inst andel av Institutionsgem | G35: Totalt indirekta kostnader för Inst | H35: % andel av total INDI för Inst
E36: =IF(Bidragsforskning!$D$28="","",E43/E32) ->  | F36: =IF(Bidragsforskning!$D$28="","",100%) -> 
C37: Ledning | E37: =IF(E$36="","",E$36*E26) ->  | F37: =IF(Bidragsforskning!$D$28="","",F26*F$36) ->  | G37: =IF(Bidragsforskning!$D$28="","",E37+F37) ->  | H37: =IF(Bidragsforskning!$D$28="","",(IF(G37=0,0,G37/E$19))) -> 
C38: Utbildning-forskning | F38: =IF(Bidragsforskning!$D$28="","",F27*F$36) ->  | G38: =IF(Bidragsforskning!$D$28="","",E38+F38) ->  | H38: =IF(Bidragsforskning!$D$28="","",(IF(G38=0,0,G38/E$19))) -> 
C39: Ekonomi-personal | F39: =IF(Bidragsforskning!$D$28="","",F28*F$36) ->  | G39: =IF(Bidragsforskning!$D$28="","",E39+F39) ->  | H39: =IF(Bidragsforskning!$D$28="","",(IF(G39=0,0,G39/E$19))) -> 
C40: Infrastruktur-service | F40: =IF(Bidragsforskning!$D$28="","",F29*F$36) ->  | G40: =IF(Bidragsforskning!$D$28="","",E40+F40) ->  | H40: =IF(Bidragsforskning!$D$28="","",(IF(G40=0,0,G40/E$19))) -> 
C41: Bibliotek | F41: =IF(Bidragsforskning!$D$28="","",F30*F$36) ->  | G41: =IF(Bidragsforskning!$D$28="","",E41+F41) ->  | H41: =IF(Bidragsforskning!$D$28="","",(IF(G41=0,0,G41/E$19))) -> 
C42: Nivåspecifikt mm | F42: =IF(Bidragsforskning!$D$28="","",F31*F$36) ->  | G42: =IF(Bidragsforskning!$D$28="","",E42+F42) ->  | H42: =IF(Bidragsforskning!$D$28="","",(IF(G42=0,0,G42/E$19))) -> 
C43: Summa | E43: =IF(Bidragsforskning!$D$28="","",VLOOKUP(LEFT(Bidragsforskning!$D$28,2),'INDI FO 2025'!K1:O26,4,0)) ->  | F43: =IF(Bidragsforskning!$D$28="","",VLOOKUP(LEFT(Bidragsforskning!$D$28,2),'INDI FO 2025'!K1:P26,8,0)) ->  | G43: =SUM(G37:G42) -> 0 | H43: =SUM(H37:H42) -> 0
C45: Andel av total fördelningsbas | E45: =IF(Bidragsforskning!$D$28="","",E43/$E$19) ->  | F45: =IF(Bidragsforskning!$D$28="","",F43/$E$19) ->  | G45: =ROUND(SUM(E45:F45),4) -> 0 | H45: =IF(AND(ROUND(SUM(H37:H42),4)=G45,G45=(ROUND(VLOOKUP(LEFT(Bidragsforskning!D28,2),'INDI FO 2025'!A2:G26,7,0),4))),"VARIABEL CHECK - OK","CONTACT EA") -> 
C46: (Löner och drift; exklusive avskr, lokal och interna -kostnader)
C49: INDIREKTA KOSTNADER FÖR SPECIFIKT PROJEKT I HELA KR (SEK)
E52: =Bidragsforskning!H40 ->  | F52: =IFERROR(E52+1,"") ->  | G52: =IFERROR(F52+1,"") ->  | H52: =IFERROR(G52+1,"") ->  | I52: =IFERROR(H52+1,"") -> 
C53: Proj. andel av Universitetsgem
C54: Ledning | D54: =IF(Bidragsforskning!$D$28="",0,(E37/$E$19)/$G$45) -> 0 | E54: =IF(Bidragsforskning!$D$28="",0,$D54*Bidragsforskning!H$145) -> 0 | F54: =IF(Bidragsforskning!$D$28="",0,$D54*Bidragsforskning!J$145) -> 0 | G54: =IF(Bidragsforskning!$D$28="",0,$D54*Bidragsforskning!L$145) -> 0 | H54: =IF(Bidragsforskning!$D$28="",0,$D54*Bidragsforskning!N$145) -> 0 | I54: =IF(Bidragsforskning!$D$28="",0,$D54*Bidragsforskning!P$145) -> 0
C55: Utbildning-forskning | D55: =IF(Bidragsforskning!$D$28="",0,(E38/$E$19)/$G$45) -> 0 | E55: =IF(Bidragsforskning!$D$28="",0,$D55*Bidragsforskning!H$145) -> 0 | F55: =IF(Bidragsforskning!$D$28="",0,$D55*Bidragsforskning!J$145) -> 0 | G55: =IF(Bidragsforskning!$D$28="",0,$D55*Bidragsforskning!L$145) -> 0 | H55: =IF(Bidragsforskning!$D$28="",0,$D55*Bidragsforskning!N$145) -> 0 | I55: =IF(Bidragsforskning!$D$28="",0,$D55*Bidragsforskning!P$145) -> 0
C56: Ekonomi-personal | D56: =IF(Bidragsforskning!$D$28="",0,(E39/$E$19)/$G$45) -> 0 | E56: =IF(Bidragsforskning!$D$28="",0,$D56*Bidragsforskning!H$145) -> 0 | F56: =IF(Bidragsforskning!$D$28="",0,$D56*Bidragsforskning!J$145) -> 0 | G56: =IF(Bidragsforskning!$D$28="",0,$D56*Bidragsforskning!L$145) -> 0 | H56: =IF(Bidragsforskning!$D$28="",0,$D56*Bidragsforskning!N$145) -> 0 | I56: =IF(Bidragsforskning!$D$28="",0,$D56*Bidragsforskning!P$145) -> 0
C57: Infrastruktur-service | D57: =IF(Bidragsforskning!$D$28="",0,(E40/$E$19)/$G$45) -> 0 | E57: =IF(Bidragsforskning!$D$28="",0,$D57*Bidragsforskning!H$145) -> 0 | F57: =IF(Bidragsforskning!$D$28="",0,$D57*Bidragsforskning!J$145) -> 0 | G57: =IF(Bidragsforskning!$D$28="",0,$D57*Bidragsforskning!L$145) -> 0 | H57: =IF(Bidragsforskning!$D$28="",0,$D57*Bidragsforskning!N$145) -> 0 | I57: =IF(Bidragsforskning!$D$28="",0,$D57*Bidragsforskning!P$145) -> 0
C58: Bibliotek | D58: =IF(Bidragsforskning!$D$28="",0,(E41/$E$19)/$G$45) -> 0 | E58: =IF(Bidragsforskning!$D$28="",0,$D58*Bidragsforskning!H$145) -> 0 | F58: =IF(Bidragsforskning!$D$28="",0,$D58*Bidragsforskning!J$145) -> 0 | G58: =IF(Bidragsforskning!$D$28="",0,$D58*Bidragsforskning!L$145) -> 0 | H58: =IF(Bidragsforskning!$D$28="",0,$D58*Bidragsforskning!N$145) -> 0 | I58: =IF(Bidragsforskning!$D$28="",0,$D58*Bidragsforskning!P$145) -> 0
C59: Nivåspecifikt mm | D59: =IF(Bidragsforskning!$D$28="",0,(E42/$E$19)/$G$45) -> 0 | E59: =IF(Bidragsforskning!$D$28="",0,$D59*Bidragsforskning!H$145) -> 0 | F59: =IF(Bidragsforskning!$D$28="",0,$D59*Bidragsforskning!J$145) -> 0 | G59: =IF(Bidragsforskning!$D$28="",0,$D59*Bidragsforskning!L$145) -> 0 | H59: =IF(Bidragsforskning!$D$28="",0,$D59*Bidragsforskning!N$145) -> 0 | I59: =IF(Bidragsforskning!$D$28="",0,$D59*Bidragsforskning!P$145) -> 0
C60: Summa | D60: =IF(Bidragsforskning!$D$28="",0,(E43/$E$19)/$G$45) -> 0 | E60: =SUM(E54:E59) -> 0 | F60: =SUM(F54:F59) -> 0 | G60: =SUM(G54:G59) -> 0 | H60: =SUM(H54:H59) -> 0 | I60: =SUM(I54:I59) -> 0
C62: Proj. andel av Institutionsgem
C63: Ledning | D63: =IF(Bidragsforskning!$D$28="",0,(F37/$E$19)/$G$45) -> 0 | E63: =IF(Bidragsforskning!$D$28="",0,$D63*Bidragsforskning!H$145) -> 0 | F63: =IF(Bidragsforskning!$D$28="",0,$D63*Bidragsforskning!J$145) -> 0 | G63: =IF(Bidragsforskning!$D$28="",0,$D63*Bidragsforskning!L$145) -> 0 | H63: =IF(Bidragsforskning!$D$28="",0,$D63*Bidragsforskning!N$145) -> 0 | I63: =IF(Bidragsforskning!$D$28="",0,$D63*Bidragsforskning!P$145) -> 0
C64: Utbildning-forskning | D64: =IF(Bidragsforskning!$D$28="",0,(F38/$E$19)/$G$45) -> 0 | E64: =IF(Bidragsforskning!$D$28="",0,$D64*Bidragsforskning!H$145) -> 0 | F64: =IF(Bidragsforskning!$D$28="",0,$D64*Bidragsforskning!J$145) -> 0 | G64: =IF(Bidragsforskning!$D$28="",0,$D64*Bidragsforskning!L$145) -> 0 | H64: =IF(Bidragsforskning!$D$28="",0,$D64*Bidragsforskning!N$145) -> 0 | I64: =IF(Bidragsforskning!$D$28="",0,$D64*Bidragsforskning!P$145) -> 0
C65: Ekonomi-personal | D65: =IF(Bidragsforskning!$D$28="",0,(F39/$E$19)/$G$45) -> 0 | E65: =IF(Bidragsforskning!$D$28="",0,$D65*Bidragsforskning!H$145) -> 0 | F65: =IF(Bidragsforskning!$D$28="",0,$D65*Bidragsforskning!J$145) -> 0 | G65: =IF(Bidragsforskning!$D$28="",0,$D65*Bidragsforskning!L$145) -> 0 | H65: =IF(Bidragsforskning!$D$28="",0,$D65*Bidragsforskning!N$145) -> 0 | I65: =IF(Bidragsforskning!$D$28="",0,$D65*Bidragsforskning!P$145) -> 0
C66: Infrastruktur-service | D66: =IF(Bidragsforskning!$D$28="",0,(F40/$E$19)/$G$45) -> 0 | E66: =IF(Bidragsforskning!$D$28="",0,$D66*Bidragsforskning!H$145) -> 0 | F66: =IF(Bidragsforskning!$D$28="",0,$D66*Bidragsforskning!J$145) -> 0 | G66: =IF(Bidragsforskning!$D$28="",0,$D66*Bidragsforskning!L$145) -> 0 | H66: =IF(Bidragsforskning!$D$28="",0,$D66*Bidragsforskning!N$145) -> 0 | I66: =IF(Bidragsforskning!$D$28="",0,$D66*Bidragsforskning!P$145) -> 0
C67: Bibliotek | D67: =IF(Bidragsforskning!$D$28="",0,(F41/$E$19)/$G$45) -> 0 | E67: =IF(Bidragsforskning!$D$28="",0,$D67*Bidragsforskning!H$145) -> 0 | F67: =IF(Bidragsforskning!$D$28="",0,$D67*Bidragsforskning!J$145) -> 0 | G67: =IF(Bidragsforskning!$D$28="",0,$D67*Bidragsforskning!L$145) -> 0 | H67: =IF(Bidragsforskning!$D$28="",0,$D67*Bidragsforskning!N$145) -> 0 | I67: =IF(Bidragsforskning!$D$28="",0,$D67*Bidragsforskning!P$145) -> 0
C68: Nivåspecifikt mm | D68: =IF(Bidragsforskning!$D$28="",0,(F42/$E$19)/$G$45) -> 0 | E68: =IF(Bidragsforskning!$D$28="",0,$D68*Bidragsforskning!H$145) -> 0 | F68: =IF(Bidragsforskning!$D$28="",0,$D68*Bidragsforskning!J$145) -> 0 | G68: =IF(Bidragsforskning!$D$28="",0,$D68*Bidragsforskning!L$145) -> 0 | H68: =IF(Bidragsforskning!$D$28="",0,$D68*Bidragsforskning!N$145) -> 0 | I68: =IF(Bidragsforskning!$D$28="",0,$D68*Bidragsforskning!P$145) -> 0
C69: Summa | D69: =IF(Bidragsforskning!$D$28="",0,(F43/$E$19)/$G$45) -> 0 | E69: =SUM(E63:E68) -> 0 | F69: =SUM(F63:F68) -> 0 | G69: =SUM(G63:G68) -> 0 | H69: =SUM(H63:H68) -> 0 | I69: =SUM(I63:I68) -> 0
C71: Proj. total indirekta kost
C72: Ledning | D72: =IF(Bidragsforskning!$D$28="",0,(G37/$E$19)/$G$45) -> 0 | E72: =IF(Bidragsforskning!$D$28="",0,$D72*Bidragsforskning!H$145) -> 0 | F72: =IF(Bidragsforskning!$D$28="",0,$D72*Bidragsforskning!J$145) -> 0 | G72: =IF(Bidragsforskning!$D$28="",0,$D72*Bidragsforskning!L$145) -> 0 | H72: =IF(Bidragsforskning!$D$28="",0,$D72*Bidragsforskning!N$145) -> 0 | I72: =IF(Bidragsforskning!$D$28="",0,$D72*Bidragsforskning!P$145) -> 0
C73: Utbildning-forskning | D73: =IF(Bidragsforskning!$D$28="",0,(G38/$E$19)/$G$45) -> 0 | E73: =IF(Bidragsforskning!$D$28="",0,$D73*Bidragsforskning!H$145) -> 0 | F73: =IF(Bidragsforskning!$D$28="",0,$D73*Bidragsforskning!J$145) -> 0 | G73: =IF(Bidragsforskning!$D$28="",0,$D73*Bidragsforskning!L$145) -> 0 | H73: =IF(Bidragsforskning!$D$28="",0,$D73*Bidragsforskning!N$145) -> 0 | I73: =IF(Bidragsforskning!$D$28="",0,$D73*Bidragsforskning!P$145) -> 0
C74: Ekonomi-personal | D74: =IF(Bidragsforskning!$D$28="",0,(G39/$E$19)/$G$45) -> 0 | E74: =IF(Bidragsforskning!$D$28="",0,$D74*Bidragsforskning!H$145) -> 0 | F74: =IF(Bidragsforskning!$D$28="",0,$D74*Bidragsforskning!J$145) -> 0 | G74: =IF(Bidragsforskning!$D$28="",0,$D74*Bidragsforskning!L$145) -> 0 | H74: =IF(Bidragsforskning!$D$28="",0,$D74*Bidragsforskning!N$145) -> 0 | I74: =IF(Bidragsforskning!$D$28="",0,$D74*Bidragsforskning!P$145) -> 0
C75: Infrastruktur-service | D75: =IF(Bidragsforskning!$D$28="",0,(G40/$E$19)/$G$45) -> 0 | E75: =IF(Bidragsforskning!$D$28="",0,$D75*Bidragsforskning!H$145) -> 0 | F75: =IF(Bidragsforskning!$D$28="",0,$D75*Bidragsforskning!J$145) -> 0 | G75: =IF(Bidragsforskning!$D$28="",0,$D75*Bidragsforskning!L$145) -> 0 | H75: =IF(Bidragsforskning!$D$28="",0,$D75*Bidragsforskning!N$145) -> 0 | I75: =IF(Bidragsforskning!$D$28="",0,$D75*Bidragsforskning!P$145) -> 0
C76: Bibliotek | D76: =IF(Bidragsforskning!$D$28="",0,(G41/$E$19)/$G$45) -> 0 | E76: =IF(Bidragsforskning!$D$28="",0,$D76*Bidragsforskning!H$145) -> 0 | F76: =IF(Bidragsforskning!$D$28="",0,$D76*Bidragsforskning!J$145) -> 0 | G76: =IF(Bidragsforskning!$D$28="",0,$D76*Bidragsforskning!L$145) -> 0 | H76: =IF(Bidragsforskning!$D$28="",0,$D76*Bidragsforskning!N$145) -> 0 | I76: =IF(Bidragsforskning!$D$28="",0,$D76*Bidragsforskning!P$145) -> 0
C77: Nivåspecifikt mm | D77: =IF(Bidragsforskning!$D$28="",0,(G42/$E$19)/$G$45) -> 0 | E77: =IF(Bidragsforskning!$D$28="",0,$D77*Bidragsforskning!H$145) -> 0 | F77: =IF(Bidragsforskning!$D$28="",0,$D77*Bidragsforskning!J$145) -> 0 | G77: =IF(Bidragsforskning!$D$28="",0,$D77*Bidragsforskning!L$145) -> 0 | H77: =IF(Bidragsforskning!$D$28="",0,$D77*Bidragsforskning!N$145) -> 0 | I77: =IF(Bidragsforskning!$D$28="",0,$D77*Bidragsforskning!P$145) -> 0
C78: Summa | D78: =IF(Bidragsforskning!$D$28="",0,(G43/$E$19)/$G$45) -> 0 | E78: =SUM(E72:E77) -> 0 | F78: =SUM(F72:F77) -> 0 | G78: =SUM(G72:G77) -> 0 | H78: =SUM(H72:H77) -> 0 | I78: =SUM(I72:I77) -> 0

Sheet Inläsning Planner (hidden)
B1: BIDRAGSFORSKNING - STÖD FÖR BUDGET TILL UBW
B3: Inledning Denna flik summerar kostnader och intäkter som fyllts in i kalkylfliken och återvisar dem i en budgetmodell som enkelt kan föras in i Planner i UBW med hjälp av inläsningsmall. Posterna till olika konton hämtas beroende på vad som fyllts i under respektive rubrik i kalkylen. Nedan finns två alternativ som kan nyttjas för uppföljning i UBW. Det första som återfinns under rubiken TOTAL BUDGET summerar samtliga intäkter och kostnader för projektet, och det andra som återfinns under rubriken ÅRSFÖRDELAD BUDGET fördelarar intäkter och kostnader på respektive år.
C12: TOTAL BUDGET
C14: Beskrivning | D14: Konto | E14: Proj | F14: Per från | G14: Per till | H14: Budget (BB) | I14: Text
C15: Intäkter av bidrag | D15: 3511 | E15: =IF(Bidragsforskning!$D$33="","Ange projektnummer",Bidragsforskning!$D$33) -> Ange projektnummer | F15: =IF(OR(Bidragsforskning!$D$30="",Bidragsforskning!$E$30=""),"Ange start år/månad",Bidragsforskning!$D$30&Bidragsforskning!$E$30) -> Ange start år/månad | G15: =IF(OR(Bidragsforskning!$D$31="",Bidragsforskning!$E$31=""),"Ange slut år/månad",Bidragsforskning!$D$31&Bidragsforskning!$E$31) -> Ange slut år/månad | H15: =H27+H35+H43+H51+H59 -> 0 | I15: ="Budget totalt "&Bidragsforskning!$D$33&"" -> Budget totalt
C16: Personalkostnader | D16: 4011 | E16: =IF(Bidragsforskning!$D$33="","Ange projektnummer",Bidragsforskning!$D$33) -> Ange projektnummer | F16: =IF(OR(Bidragsforskning!$D$30="",Bidragsforskning!$E$30=""),"Ange start år/månad",Bidragsforskning!$D$30&Bidragsforskning!$E$30) -> Ange start år/månad | G16: =IF(OR(Bidragsforskning!$D$31="",Bidragsforskning!$E$31=""),"Ange slut år/månad",Bidragsforskning!$D$31&Bidragsforskning!$E$31) -> Ange slut år/månad | H16: 0 | I16: ="Budget totalt "&Bidragsforskning!$D$33&"" -> Budget totalt
C17: Gemensamma kostnader (INDI) | D17: 49988 | E17: =IF(Bidragsforskning!$D$33="","Ange projektnummer",Bidragsforskning!$D$33) -> Ange projektnummer | F17: =IF(OR(Bidragsforskning!$D$30="",Bidragsforskning!$E$30=""),"Ange start år/månad",Bidragsforskning!$D$30&Bidragsforskning!$E$30) -> Ange start år/månad | G17: =IF(OR(Bidragsforskning!$D$31="",Bidragsforskning!$E$31=""),"Ange slut år/månad",Bidragsforskning!$D$31&Bidragsforskning!$E$31) -> Ange slut år/månad | H17: 0 | I17: ="Budget totalt "&Bidragsforskning!$D$33&"" -> Budget totalt
C18: Lokalkostnader | D18: 50111 | E18: =IF(Bidragsforskning!$D$33="","Ange projektnummer",Bidragsforskning!$D$33) -> Ange projektnummer | F18: =IF(OR(Bidragsforskning!$D$30="",Bidragsforskning!$E$30=""),"Ange start år/månad",Bidragsforskning!$D$30&Bidragsforskning!$E$30) -> Ange start år/månad | G18: =IF(OR(Bidragsforskning!$D$31="",Bidragsforskning!$E$31=""),"Ange slut år/månad",Bidragsforskning!$D$31&Bidragsforskning!$E$31) -> Ange slut år/månad | H18: 0 | I18: ="Budget totalt "&Bidragsforskning!$D$33&"" -> Budget totalt
C19: Resekostnader | D19: 5522 | E19: =IF(Bidragsforskning!$D$33="","Ange projektnummer",Bidragsforskning!$D$33) -> Ange projektnummer | F19: =IF(OR(Bidragsforskning!$D$30="",Bidragsforskning!$E$30=""),"Ange start år/månad",Bidragsforskning!$D$30&Bidragsforskning!$E$30) -> Ange start år/månad | G19: =IF(OR(Bidragsforskning!$D$31="",Bidragsforskning!$E$31=""),"Ange slut år/månad",Bidragsforskning!$D$31&Bidragsforskning!$E$31) -> Ange slut år/månad | H19: 0 | I19: ="Budget totalt "&Bidragsforskning!$D$33&"" -> Budget totalt
C20: Övriga driftskostnader | D20: 5797 | E20: =IF(Bidragsforskning!$D$33="","Ange projektnummer",Bidragsforskning!$D$33) -> Ange projektnummer | F20: =IF(OR(Bidragsforskning!$D$30="",Bidragsforskning!$E$30=""),"Ange start år/månad",Bidragsforskning!$D$30&Bidragsforskning!$E$30) -> Ange start år/månad | G20: =IF(OR(Bidragsforskning!$D$31="",Bidragsforskning!$E$31=""),"Ange slut år/månad",Bidragsforskning!$D$31&Bidragsforskning!$E$31) -> Ange slut år/månad | H20: 0 | I20: ="Budget totalt "&Bidragsforskning!$D$33&"" -> Budget totalt
C21: Interna kostnader | D21: 57849 | E21: =IF(Bidragsforskning!$D$33="","Ange projektnummer",Bidragsforskning!$D$33) -> Ange projektnummer | F21: =IF(OR(Bidragsforskning!$D$30="",Bidragsforskning!$E$30=""),"Ange start år/månad",Bidragsforskning!$D$30&Bidragsforskning!$E$30) -> Ange start år/månad | G21: =IF(OR(Bidragsforskning!$D$31="",Bidragsforskning!$E$31=""),"Ange slut år/månad",Bidragsforskning!$D$31&Bidragsforskning!$E$31) -> Ange slut år/månad | H21: 0 | I21: ="Budget totalt "&Bidragsforskning!$D$33&"" -> Budget totalt
C22: Avskrivningar | D22: 6911 | E22: =IF(Bidragsforskning!$D$33="","Ange projektnummer",Bidragsforskning!$D$33) -> Ange projektnummer | F22: =IF(OR(Bidragsforskning!$D$30="",Bidragsforskning!$E$30=""),"Ange start år/månad",Bidragsforskning!$D$30&Bidragsforskning!$E$30) -> Ange start år/månad | G22: =IF(OR(Bidragsforskning!$D$31="",Bidragsforskning!$E$31=""),"Ange slut år/månad",Bidragsforskning!$D$31&Bidragsforskning!$E$31) -> Ange slut år/månad | H22: 0 | I22: ="Budget totalt "&Bidragsforskning!$D$33&"" -> Budget totalt
C24: ÅRSFÖRDELAD BUDGET
C26: Beskrivning | D26: Konto | E26: Proj | F26: Per från | G26: Per till | H26: Budget (BB) | I26: Text
C27: Intäkter av bidrag | D27: 3511 | E27: =IF(Bidragsforskning!$D$33="","Ange projektnummer",Bidragsforskning!$D$33) -> Ange projektnummer | F27: =IF(OR(Bidragsforskning!$D$30="",Bidragsforskning!$E$30=""),"Ange start år/månad",Bidragsforskning!$D$30&Bidragsforskning!$E$30) -> Ange start år/månad | G27: =IF(OR(Bidragsforskning!$D$30="",Bidragsforskning!$E$31=""),"Ange slut år/månad",IF(_xlfn.NUMBERVALUE(Bidragsforskning!$D$30)=Bidragsforskning!$D$31,Bidragsforskning!$D$30&Bidragsforskning!$E$31,Bidragsforskning!$D$30&"12")) -> Ange slut år/månad | H27: =Bidragsforskning!H$159*-1 -> 0 | I27: =IF(OR(Bidragsforskning!$D$30="",Bidragsforskning!$E$30=""),"",IF(Bidragsforskning!$D$33="","","Budget "&Bidragsforskning!$D$33&" "&Bidragsforskning!H$40)) -> 
C28: Personalkostnader | D28: 4011 | E28: =IF(Bidragsforskning!$D$33="","Ange projektnummer",Bidragsforskning!$D$33) -> Ange projektnummer | F28: =IF(OR(Bidragsforskning!$D$30="",Bidragsforskning!$E$30=""),"Ange start år/månad",Bidragsforskning!$D$30&Bidragsforskning!$E$30) -> Ange start år/månad | G28: =IF(OR(Bidragsforskning!$D$30="",Bidragsforskning!$E$31=""),"Ange slut år/månad",IF(_xlfn.NUMBERVALUE(Bidragsforskning!$D$30)=Bidragsforskning!$D$31,Bidragsforskning!$D$30&Bidragsforskning!$E$31,Bidragsforskning!$D$30&"12")) -> Ange slut år/månad | H28: =Bidragsforskning!H$86 -> 0 | I28: =IF(OR(Bidragsforskning!$D$30="",Bidragsforskning!$E$30=""),"",IF(Bidragsforskning!$D$33="","","Budget "&Bidragsforskning!$D$33&" "&Bidragsforskning!H$40)) -> 
C29: Gemensamma kostnader (INDI) | D29: 49988 | E29: =IF(Bidragsforskning!$D$33="","Ange projektnummer",Bidragsforskning!$D$33) -> Ange projektnummer | F29: =IF(OR(Bidragsforskning!$D$30="",Bidragsforskning!$E$30=""),"Ange start år/månad",Bidragsforskning!$D$30&Bidragsforskning!$E$30) -> Ange start år/månad | G29: =IF(OR(Bidragsforskning!$D$30="",Bidragsforskning!$E$31=""),"Ange slut år/månad",IF(_xlfn.NUMBERVALUE(Bidragsforskning!$D$30)=Bidragsforskning!$D$31,Bidragsforskning!$D$30&Bidragsforskning!$E$31,Bidragsforskning!$D$30&"12")) -> Ange slut år/månad | H29: =Bidragsforskning!H$145 -> 0 | I29: =IF(OR(Bidragsforskning!$D$30="",Bidragsforskning!$E$30=""),"",IF(Bidragsforskning!$D$33="","","Budget "&Bidragsforskning!$D$33&" "&Bidragsforskning!H$40)) -> 
C30: Lokalkostnader | D30: 50111 | E30: =IF(Bidragsforskning!$D$33="","Ange projektnummer",Bidragsforskning!$D$33) -> Ange projektnummer | F30: =IF(OR(Bidragsforskning!$D$30="",Bidragsforskning!$E$30=""),"Ange start år/månad",Bidragsforskning!$D$30&Bidragsforskning!$E$30) -> Ange start år/månad | G30: =IF(OR(Bidragsforskning!$D$30="",Bidragsforskning!$E$31=""),"Ange slut år/månad",IF(_xlfn.NUMBERVALUE(Bidragsforskning!$D$30)=Bidragsforskning!$D$31,Bidragsforskning!$D$30&Bidragsforskning!$E$31,Bidragsforskning!$D$30&"12")) -> Ange slut år/månad | H30: =SUM(Bidragsforskning!I$125:I127) -> 0 | I30: =IF(OR(Bidragsforskning!$D$30="",Bidragsforskning!$E$30=""),"",IF(Bidragsforskning!$D$33="","","Budget "&Bidragsforskning!$D$33&" "&Bidragsforskning!H$40)) -> 
C31: Resekostnader | D31: 5522 | E31: =IF(Bidragsforskning!$D$33="","Ange projektnummer",Bidragsforskning!$D$33) -> Ange projektnummer | F31: =IF(OR(Bidragsforskning!$D$30="",Bidragsforskning!$E$30=""),"Ange start år/månad",Bidragsforskning!$D$30&Bidragsforskning!$E$30) -> Ange start år/månad | G31: =IF(OR(Bidragsforskning!$D$30="",Bidragsforskning!$E$31=""),"Ange slut år/månad",IF(_xlfn.NUMBERVALUE(Bidragsforskning!$D$30)=Bidragsforskning!$D$31,Bidragsforskning!$D$30&Bidragsforskning!$E$31,Bidragsforskning!$D$30&"12")) -> Ange slut år/månad | H31: =Bidragsforskning!H98 -> 0 | I31: =IF(OR(Bidragsforskning!$D$30="",Bidragsforskning!$E$30=""),"",IF(Bidragsforskning!$D$33="","","Budget "&Bidragsforskning!$D$33&" "&Bidragsforskning!H$40)) -> 
C32: Övriga driftskostnader | D32: 5797 | E32: =IF(Bidragsforskning!$D$33="","Ange projektnummer",Bidragsforskning!$D$33) -> Ange projektnummer | F32: =IF(OR(Bidragsforskning!$D$30="",Bidragsforskning!$E$30=""),"Ange start år/månad",Bidragsforskning!$D$30&Bidragsforskning!$E$30) -> Ange start år/månad | G32: =IF(OR(Bidragsforskning!$D$30="",Bidragsforskning!$E$31=""),"Ange slut år/månad",IF(_xlfn.NUMBERVALUE(Bidragsforskning!$D$30)=Bidragsforskning!$D$31,Bidragsforskning!$D$30&Bidragsforskning!$E$31,Bidragsforskning!$D$30&"12")) -> Ange slut år/månad | H32: =Bidragsforskning!H114 -> 0 | I32: =IF(OR(Bidragsforskning!$D$30="",Bidragsforskning!$E$30=""),"",IF(Bidragsforskning!$D$33="","","Budget "&Bidragsforskning!$D$33&" "&Bidragsforskning!H$40)) -> 
C33: Interna kostnader | D33: 57849 | E33: =IF(Bidragsforskning!$D$33="","Ange projektnummer",Bidragsforskning!$D$33) -> Ange projektnummer | F33: =IF(OR(Bidragsforskning!$D$30="",Bidragsforskning!$E$30=""),"Ange start år/månad",Bidragsforskning!$D$30&Bidragsforskning!$E$30) -> Ange start år/månad | G33: =IF(OR(Bidragsforskning!$D$30="",Bidragsforskning!$E$31=""),"Ange slut år/månad",IF(_xlfn.NUMBERVALUE(Bidragsforskning!$D$30)=Bidragsforskning!$D$31,Bidragsforskning!$D$30&Bidragsforskning!$E$31,Bidragsforskning!$D$30&"12")) -> Ange slut år/månad | H33: =SUM(Bidragsforskning!I$131:I133) -> 0 | I33: =IF(OR(Bidragsforskning!$D$30="",Bidragsforskning!$E$30=""),"",IF(Bidragsforskning!$D$33="","","Budget "&Bidragsforskning!$D$33&" "&Bidragsforskning!H$40)) -> 
C34: Avskrivningar | D34: 6911 | E34: =IF(Bidragsforskning!$D$33="","Ange projektnummer",Bidragsforskning!$D$33) -> Ange projektnummer | F34: =IF(OR(Bidragsforskning!$D$30="",Bidragsforskning!$E$30=""),"Ange start år/månad",Bidragsforskning!$D$30&Bidragsforskning!$E$30) -> Ange start år/månad | G34: =IF(OR(Bidragsforskning!$D$30="",Bidragsforskning!$E$31=""),"Ange slut år/månad",IF(_xlfn.NUMBERVALUE(Bidragsforskning!$D$30)=Bidragsforskning!$D$31,Bidragsforskning!$D$30&Bidragsforskning!$E$31,Bidragsforskning!$D$30&"12")) -> Ange slut år/månad | H34: =SUM(Bidragsforskning!I$120:I121) -> 0 | I34: =IF(OR(Bidragsforskning!$D$30="",Bidragsforskning!$E$30=""),"",IF(Bidragsforskning!$D$33="","","Budget "&Bidragsforskning!$D$33&" "&Bidragsforskning!H$40)) -> 
C35: Intäkter av bidrag | D35: 3511 | E35: =IF(Bidragsforskning!$D$33="","Ange projektnummer",Bidragsforskning!$D$33) -> Ange projektnummer | F35: =RIGHT(I35,4)&"01" -> 01 | G35: =IF(_xlfn.NUMBERVALUE(RIGHT(I35,4))=Bidragsforskning!$D$31,RIGHT(I35,4)&Bidragsforskning!$E$31,RIGHT(I35,4)&"12") ->  | H35: =Bidragsforskning!J$159*-1 -> 0 | I35: =IF(OR(Bidragsforskning!$D$30="",Bidragsforskning!$E$30=""),"",IF(Bidragsforskning!$D$33="","","Budget "&Bidragsforskning!$D$33&" "&Bidragsforskning!H$40+1)) -> 
C36: Personalkostnader | D36: 4011 | E36: =IF(Bidragsforskning!$D$33="","Ange projektnummer",Bidragsforskning!$D$33) -> Ange projektnummer | F36: 01 | G36: =IF(_xlfn.NUMBERVALUE(RIGHT(I36,4))=Bidragsforskning!$D$31,RIGHT(I36,4)&Bidragsforskning!$E$31,RIGHT(I36,4)&"12") ->  | H36: =Bidragsforskning!J$86 -> 0 | I36: =IF(OR(Bidragsforskning!$D$30="",Bidragsforskning!$E$30=""),"",IF(Bidragsforskning!$D$33="","","Budget "&Bidragsforskning!$D$33&" "&Bidragsforskning!H$40+1)) -> 
C37: Gemensamma kostnader (INDI) | D37: 49988 | E37: =IF(Bidragsforskning!$D$33="","Ange projektnummer",Bidragsforskning!$D$33) -> Ange projektnummer | F37: 01 | G37: =IF(_xlfn.NUMBERVALUE(RIGHT(I37,4))=Bidragsforskning!$D$31,RIGHT(I37,4)&Bidragsforskning!$E$31,RIGHT(I37,4)&"12") ->  | H37: =Bidragsforskning!J$145 -> 0 | I37: =IF(OR(Bidragsforskning!$D$30="",Bidragsforskning!$E$30=""),"",IF(Bidragsforskning!$D$33="","","Budget "&Bidragsforskning!$D$33&" "&Bidragsforskning!H$40+1)) -> 
C38: Lokalkostnader | D38: 50111 | E38: =IF(Bidragsforskning!$D$33="","Ange projektnummer",Bidragsforskning!$D$33) -> Ange projektnummer | F38: 01 | G38: =IF(_xlfn.NUMBERVALUE(RIGHT(I38,4))=Bidragsforskning!$D$31,RIGHT(I38,4)&Bidragsforskning!$E$31,RIGHT(I38,4)&"12") ->  | H38: =SUM(Bidragsforskning!K$125:K127) -> 0 | I38: =IF(OR(Bidragsforskning!$D$30="",Bidragsforskning!$E$30=""),"",IF(Bidragsforskning!$D$33="","","Budget "&Bidragsforskning!$D$33&" "&Bidragsforskning!H$40+1)) -> 
C39: Resekostnader | D39: 5522 | E39: =IF(Bidragsforskning!$D$33="","Ange projektnummer",Bidragsforskning!$D$33) -> Ange projektnummer | F39: 01 | G39: =IF(_xlfn.NUMBERVALUE(RIGHT(I39,4))=Bidragsforskning!$D$31,RIGHT(I39,4)&Bidragsforskning!$E$31,RIGHT(I39,4)&"12") ->  | H39: =Bidragsforskning!J98 -> 0 | I39: =IF(OR(Bidragsforskning!$D$30="",Bidragsforskning!$E$30=""),"",IF(Bidragsforskning!$D$33="","","Budget "&Bidragsforskning!$D$33&" "&Bidragsforskning!H$40+1)) -> 
C40: Övriga driftskostnader | D40: 5797 | E40: =IF(Bidragsforskning!$D$33="","Ange projektnummer",Bidragsforskning!$D$33) -> Ange projektnummer | F40: 01 | G40: =IF(_xlfn.NUMBERVALUE(RIGHT(I40,4))=Bidragsforskning!$D$31,RIGHT(I40,4)&Bidragsforskning!$E$31,RIGHT(I40,4)&"12") ->  | H40: =Bidragsforskning!J114 -> 0 | I40: =IF(OR(Bidragsforskning!$D$30="",Bidragsforskning!$E$30=""),"",IF(Bidragsforskning!$D$33="","","Budget "&Bidragsforskning!$D$33&" "&Bidragsforskning!H$40+1)) -> 
C41: Interna kostnader | D41: 57849 | E41: =IF(Bidragsforskning!$D$33="","Ange projektnummer",Bidragsforskning!$D$33) -> Ange projektnummer | F41: 01 | G41: =IF(_xlfn.NUMBERVALUE(RIGHT(I41,4))=Bidragsforskning!$D$31,RIGHT(I41,4)&Bidragsforskning!$E$31,RIGHT(I41,4)&"12") ->  | H41: =SUM(Bidragsforskning!K$131:K133) -> 0 | I41: =IF(OR(Bidragsforskning!$D$30="",Bidragsforskning!$E$30=""),"",IF(Bidragsforskning!$D$33="","","Budget "&Bidragsforskning!$D$33&" "&Bidragsforskning!H$40+1)) -> 
C42: Avskrivningar | D42: 6911 | E42: =IF(Bidragsforskning!$D$33="","Ange projektnummer",Bidragsforskning!$D$33) -> Ange projektnummer | F42: 01 | G42: =IF(_xlfn.NUMBERVALUE(RIGHT(I42,4))=Bidragsforskning!$D$31,RIGHT(I42,4)&Bidragsforskning!$E$31,RIGHT(I42,4)&"12") ->  | H42: =SUM(Bidragsforskning!K$120:K121) -> 0 | I42: =IF(OR(Bidragsforskning!$D$30="",Bidragsforskning!$E$30=""),"",IF(Bidragsforskning!$D$33="","","Budget "&Bidragsforskning!$D$33&" "&Bidragsforskning!H$40+1)) -> 
C43: Intäkter av bidrag | D43: 3511 | E43: =IF(Bidragsforskning!$D$33="","Ange projektnummer",Bidragsforskning!$D$33) -> Ange projektnummer | F43: 01 | G43: =IF(_xlfn.NUMBERVALUE(RIGHT(I43,4))=Bidragsforskning!$D$31,RIGHT(I43,4)&Bidragsforskning!$E$31,RIGHT(I43,4)&"12") ->  | H43: =Bidragsforskning!L$159*-1 -> 0 | I43: =IF(OR(Bidragsforskning!$D$30="",Bidragsforskning!$E$30=""),"",IF(Bidragsforskning!$D$33="","","Budget "&Bidragsforskning!$D$33&" "&Bidragsforskning!H$40+2)) -> 
C44: Personalkostnader | D44: 4011 | E44: =IF(Bidragsforskning!$D$33="","Ange projektnummer",Bidragsforskning!$D$33) -> Ange projektnummer | F44: 01 | G44: =IF(_xlfn.NUMBERVALUE(RIGHT(I44,4))=Bidragsforskning!$D$31,RIGHT(I44,4)&Bidragsforskning!$E$31,RIGHT(I44,4)&"12") ->  | H44: =Bidragsforskning!L$86 -> 0 | I44: =IF(OR(Bidragsforskning!$D$30="",Bidragsforskning!$E$30=""),"",IF(Bidragsforskning!$D$33="","","Budget "&Bidragsforskning!$D$33&" "&Bidragsforskning!H$40+2)) -> 
C45: Gemensamma kostnader (INDI) | D45: 49988 | E45: =IF(Bidragsforskning!$D$33="","Ange projektnummer",Bidragsforskning!$D$33) -> Ange projektnummer | F45: 01 | G45: =IF(_xlfn.NUMBERVALUE(RIGHT(I45,4))=Bidragsforskning!$D$31,RIGHT(I45,4)&Bidragsforskning!$E$31,RIGHT(I45,4)&"12") ->  | H45: =Bidragsforskning!L$145 -> 0 | I45: =IF(OR(Bidragsforskning!$D$30="",Bidragsforskning!$E$30=""),"",IF(Bidragsforskning!$D$33="","","Budget "&Bidragsforskning!$D$33&" "&Bidragsforskning!H$40+2)) -> 
C46: Lokalkostnader | D46: 50111 | E46: =IF(Bidragsforskning!$D$33="","Ange projektnummer",Bidragsforskning!$D$33) -> Ange projektnummer | F46: 01 | G46: =IF(_xlfn.NUMBERVALUE(RIGHT(I46,4))=Bidragsforskning!$D$31,RIGHT(I46,4)&Bidragsforskning!$E$31,RIGHT(I46,4)&"12") ->  | H46: =SUM(Bidragsforskning!M$125:M127) -> 0 | I46: =IF(OR(Bidragsforskning!$D$30="",Bidragsforskning!$E$30=""),"",IF(Bidragsforskning!$D$33="","","Budget "&Bidragsforskning!$D$33&" "&Bidragsforskning!H$40+2)) -> 
C47: Resekostnader | D47: 5522 | E47: =IF(Bidragsforskning!$D$33="","Ange projektnummer",Bidragsforskning!$D$33) -> Ange projektnummer | F47: 01 | G47: =IF(_xlfn.NUMBERVALUE(RIGHT(I47,4))=Bidragsforskning!$D$31,RIGHT(I47,4)&Bidragsforskning!$E$31,RIGHT(I47,4)&"12") ->  | H47: =Bidragsforskning!L98 -> 0 | I47: =IF(OR(Bidragsforskning!$D$30="",Bidragsforskning!$E$30=""),"",IF(Bidragsforskning!$D$33="","","Budget "&Bidragsforskning!$D$33&" "&Bidragsforskning!H$40+2)) -> 
C48: Övriga driftskostnader | D48: 5797 | E48: =IF(Bidragsforskning!$D$33="","Ange projektnummer",Bidragsforskning!$D$33) -> Ange projektnummer | F48: 01 | G48: =IF(_xlfn.NUMBERVALUE(RIGHT(I48,4))=Bidragsforskning!$D$31,RIGHT(I48,4)&Bidragsforskning!$E$31,RIGHT(I48,4)&"12") ->  | H48: =Bidragsforskning!L114 -> 0 | I48: =IF(OR(Bidragsforskning!$D$30="",Bidragsforskning!$E$30=""),"",IF(Bidragsforskning!$D$33="","","Budget "&Bidragsforskning!$D$33&" "&Bidragsforskning!H$40+2)) -> 
C49: Interna kostnader | D49: 57849 | E49: =IF(Bidragsforskning!$D$33="","Ange projektnummer",Bidragsforskning!$D$33) -> Ange projektnummer | F49: 01 | G49: =IF(_xlfn.NUMBERVALUE(RIGHT(I49,4))=Bidragsforskning!$D$31,RIGHT(I49,4)&Bidragsforskning!$E$31,RIGHT(I49,4)&"12") ->  | H49: =SUM(Bidragsforskning!M$131:M133) -> 0 | I49: =IF(OR(Bidragsforskning!$D$30="",Bidragsforskning!$E$30=""),"",IF(Bidragsforskning!$D$33="","","Budget "&Bidragsforskning!$D$33&" "&Bidragsforskning!H$40+2)) -> 
C50: Avskrivningar | D50: 6911 | E50: =IF(Bidragsforskning!$D$33="","Ange projektnummer",Bidragsforskning!$D$33) -> Ange projektnummer | F50: 01 | G50: =IF(_xlfn.NUMBERVALUE(RIGHT(I50,4))=Bidragsforskning!$D$31,RIGHT(I50,4)&Bidragsforskning!$E$31,RIGHT(I50,4)&"12") ->  | H50: =SUM(Bidragsforskning!M$120:M121) -> 0 | I50: =IF(OR(Bidragsforskning!$D$30="",Bidragsforskning!$E$30=""),"",IF(Bidragsforskning!$D$33="","","Budget "&Bidragsforskning!$D$33&" "&Bidragsforskning!H$40+2)) -> 
C51: Intäkter av bidrag | D51: 3511 | E51: =IF(Bidragsforskning!$D$33="","Ange projektnummer",Bidragsforskning!$D$33) -> Ange projektnummer | F51: 01 | G51: =IF(_xlfn.NUMBERVALUE(RIGHT(I51,4))=Bidragsforskning!$D$31,RIGHT(I51,4)&Bidragsforskning!$E$31,RIGHT(I51,4)&"12") ->  | H51: =Bidragsforskning!N$159*-1 -> 0 | I51: =IF(OR(Bidragsforskning!$D$30="",Bidragsforskning!$E$30=""),"",IF(Bidragsforskning!$D$33="","","Budget "&Bidragsforskning!$D$33&" "&Bidragsforskning!H$40+3)) -> 
C52: Personalkostnader | D52: 4011 | E52: =IF(Bidragsforskning!$D$33="","Ange projektnummer",Bidragsforskning!$D$33) -> Ange projektnummer | F52: 01 | G52: =IF(_xlfn.NUMBERVALUE(RIGHT(I52,4))=Bidragsforskning!$D$31,RIGHT(I52,4)&Bidragsforskning!$E$31,RIGHT(I52,4)&"12") ->  | H52: =Bidragsforskning!N$86 -> 0 | I52: =IF(OR(Bidragsforskning!$D$30="",Bidragsforskning!$E$30=""),"",IF(Bidragsforskning!$D$33="","","Budget "&Bidragsforskning!$D$33&" "&Bidragsforskning!H$40+3)) -> 
C53: Gemensamma kostnader (INDI) | D53: 49988 | E53: =IF(Bidragsforskning!$D$33="","Ange projektnummer",Bidragsforskning!$D$33) -> Ange projektnummer | F53: 01 | G53: =IF(_xlfn.NUMBERVALUE(RIGHT(I53,4))=Bidragsforskning!$D$31,RIGHT(I53,4)&Bidragsforskning!$E$31,RIGHT(I53,4)&"12") ->  | H53: =Bidragsforskning!N$145 -> 0 | I53: =IF(OR(Bidragsforskning!$D$30="",Bidragsforskning!$E$30=""),"",IF(Bidragsforskning!$D$33="","","Budget "&Bidragsforskning!$D$33&" "&Bidragsforskning!H$40+3)) -> 
C54: Lokalkostnader | D54: 50111 | E54: =IF(Bidragsforskning!$D$33="","Ange projektnummer",Bidragsforskning!$D$33) -> Ange projektnummer | F54: 01 | G54: =IF(_xlfn.NUMBERVALUE(RIGHT(I54,4))=Bidragsforskning!$D$31,RIGHT(I54,4)&Bidragsforskning!$E$31,RIGHT(I54,4)&"12") ->  | H54: =SUM(Bidragsforskning!O$125:O127) -> 0 | I54: =IF(OR(Bidragsforskning!$D$30="",Bidragsforskning!$E$30=""),"",IF(Bidragsforskning!$D$33="","","Budget "&Bidragsforskning!$D$33&" "&Bidragsforskning!H$40+3)) -> 
C55: Resekostnader | D55: 5522 | E55: =IF(Bidragsforskning!$D$33="","Ange projektnummer",Bidragsforskning!$D$33) -> Ange projektnummer | F55: 01 | G55: =IF(_xlfn.NUMBERVALUE(RIGHT(I55,4))=Bidragsforskning!$D$31,RIGHT(I55,4)&Bidragsforskning!$E$31,RIGHT(I55,4)&"12") ->  | H55: =Bidragsforskning!N98 -> 0 | I55: =IF(OR(Bidragsforskning!$D$30="",Bidragsforskning!$E$30=""),"",IF(Bidragsforskning!$D$33="","","Budget "&Bidragsforskning!$D$33&" "&Bidragsforskning!H$40+3)) -> 
C56: Övriga driftskostnader | D56: 5797 | E56: =IF(Bidragsforskning!$D$33="","Ange projektnummer",Bidragsforskning!$D$33) -> Ange projektnummer | F56: 01 | G56: =IF(_xlfn.NUMBERVALUE(RIGHT(I56,4))=Bidragsforskning!$D$31,RIGHT(I56,4)&Bidragsforskning!$E$31,RIGHT(I56,4)&"12") ->  | H56: =Bidragsforskning!N114 -> 0 | I56: =IF(OR(Bidragsforskning!$D$30="",Bidragsforskning!$E$30=""),"",IF(Bidragsforskning!$D$33="","","Budget "&Bidragsforskning!$D$33&" "&Bidragsforskning!H$40+3)) -> 
C57: Interna kostnader | D57: 57849 | E57: =IF(Bidragsforskning!$D$33="","Ange projektnummer",Bidragsforskning!$D$33) -> Ange projektnummer | F57: 01 | G57: =IF(_xlfn.NUMBERVALUE(RIGHT(I57,4))=Bidragsforskning!$D$31,RIGHT(I57,4)&Bidragsforskning!$E$31,RIGHT(I57,4)&"12") ->  | H57: =SUM(Bidragsforskning!O$131:O133) -> 0 | I57: =IF(OR(Bidragsforskning!$D$30="",Bidragsforskning!$E$30=""),"",IF(Bidragsforskning!$D$33="","","Budget "&Bidragsforskning!$D$33&" "&Bidragsforskning!H$40+3)) -> 
C58: Avskrivningar | D58: 6911 | E58: =IF(Bidragsforskning!$D$33="","Ange projektnummer",Bidragsforskning!$D$33) -> Ange projektnummer | F58: 01 | G58: =IF(_xlfn.NUMBERVALUE(RIGHT(I58,4))=Bidragsforskning!$D$31,RIGHT(I58,4)&Bidragsforskning!$E$31,RIGHT(I58,4)&"12") ->  | H58: =SUM(Bidragsforskning!O$120:O121) -> 0 | I58: =IF(OR(Bidragsforskning!$D$30="",Bidragsforskning!$E$30=""),"",IF(Bidragsforskning!$D$33="","","Budget "&Bidragsforskning!$D$33&" "&Bidragsforskning!H$40+3)) -> 
C59: Intäkter av bidrag | D59: 3511 | E59: =IF(Bidragsforskning!$D$33="","Ange projektnummer",Bidragsforskning!$D$33) -> Ange projektnummer | F59: 01 | G59: =IF(_xlfn.NUMBERVALUE(RIGHT(I59,4))=Bidragsforskning!$D$31,RIGHT(I59,4)&Bidragsforskning!$E$31,RIGHT(I59,4)&"12") ->  | H59: =Bidragsforskning!P$159*-1 -> 0 | I59: =IF(OR(Bidragsforskning!$D$30="",Bidragsforskning!$E$30=""),"",IF(Bidragsforskning!$D$33="","","Budget "&Bidragsforskning!$D$33&" "&Bidragsforskning!H$40+4)) -> 
C60: Personalkostnader | D60: 4011 | E60: =IF(Bidragsforskning!$D$33="","Ange projektnummer",Bidragsforskning!$D$33) -> Ange projektnummer | F60: 01 | G60: =IF(_xlfn.NUMBERVALUE(RIGHT(I60,4))=Bidragsforskning!$D$31,RIGHT(I60,4)&Bidragsforskning!$E$31,RIGHT(I60,4)&"12") ->  | H60: =Bidragsforskning!P$86 -> 0 | I60: =IF(OR(Bidragsforskning!$D$30="",Bidragsforskning!$E$30=""),"",IF(Bidragsforskning!$D$33="","","Budget "&Bidragsforskning!$D$33&" "&Bidragsforskning!H$40+4)) -> 
C61: Gemensamma kostnader (INDI) | D61: 49988 | E61: =IF(Bidragsforskning!$D$33="","Ange projektnummer",Bidragsforskning!$D$33) -> Ange projektnummer | F61: 01 | G61: =IF(_xlfn.NUMBERVALUE(RIGHT(I61,4))=Bidragsforskning!$D$31,RIGHT(I61,4)&Bidragsforskning!$E$31,RIGHT(I61,4)&"12") ->  | H61: =Bidragsforskning!P$145 -> 0 | I61: =IF(OR(Bidragsforskning!$D$30="",Bidragsforskning!$E$30=""),"",IF(Bidragsforskning!$D$33="","","Budget "&Bidragsforskning!$D$33&" "&Bidragsforskning!H$40+4)) -> 
C62: Lokalkostnader | D62: 50111 | E62: =IF(Bidragsforskning!$D$33="","Ange projektnummer",Bidragsforskning!$D$33) -> Ange projektnummer | F62: 01 | G62: =IF(_xlfn.NUMBERVALUE(RIGHT(I62,4))=Bidragsforskning!$D$31,RIGHT(I62,4)&Bidragsforskning!$E$31,RIGHT(I62,4)&"12") ->  | H62: =SUM(Bidragsforskning!Q$125:Q127) -> 0 | I62: =IF(OR(Bidragsforskning!$D$30="",Bidragsforskning!$E$30=""),"",IF(Bidragsforskning!$D$33="","","Budget "&Bidragsforskning!$D$33&" "&Bidragsforskning!H$40+4)) -> 
C63: Resekostnader | D63: 5522 | E63: =IF(Bidragsforskning!$D$33="","Ange projektnummer",Bidragsforskning!$D$33) -> Ange projektnummer | F63: 01 | G63: =IF(_xlfn.NUMBERVALUE(RIGHT(I63,4))=Bidragsforskning!$D$31,RIGHT(I63,4)&Bidragsforskning!$E$31,RIGHT(I63,4)&"12") ->  | H63: =Bidragsforskning!P98 -> 0 | I63: =IF(OR(Bidragsforskning!$D$30="",Bidragsforskning!$E$30=""),"",IF(Bidragsforskning!$D$33="","","Budget "&Bidragsforskning!$D$33&" "&Bidragsforskning!H$40+4)) -> 
C64: Övriga driftskostnader | D64: 5797 | E64: =IF(Bidragsforskning!$D$33="","Ange projektnummer",Bidragsforskning!$D$33) -> Ange projektnummer | F64: 01 | G64: =IF(_xlfn.NUMBERVALUE(RIGHT(I64,4))=Bidragsforskning!$D$31,RIGHT(I64,4)&Bidragsforskning!$E$31,RIGHT(I64,4)&"12") ->  | H64: =Bidragsforskning!P114 -> 0 | I64: =IF(OR(Bidragsforskning!$D$30="",Bidragsforskning!$E$30=""),"",IF(Bidragsforskning!$D$33="","","Budget "&Bidragsforskning!$D$33&" "&Bidragsforskning!H$40+4)) -> 
C65: Interna kostnader | D65: 57849 | E65: =IF(Bidragsforskning!$D$33="","Ange projektnummer",Bidragsforskning!$D$33) -> Ange projektnummer | F65: 01 | G65: =IF(_xlfn.NUMBERVALUE(RIGHT(I65,4))=Bidragsforskning!$D$31,RIGHT(I65,4)&Bidragsforskning!$E$31,RIGHT(I65,4)&"12") ->  | H65: =SUM(Bidragsforskning!Q$131:Q133) -> 0 | I65: =IF(OR(Bidragsforskning!$D$30="",Bidragsforskning!$E$30=""),"",IF(Bidragsforskning!$D$33="","","Budget "&Bidragsforskning!$D$33&" "&Bidragsforskning!H$40+4)) -> 
C66: Avskrivningar | D66: 6911 | E66: =IF(Bidragsforskning!$D$33="","Ange projektnummer",Bidragsforskning!$D$33) -> Ange projektnummer | F66: 01 | G66: =IF(_xlfn.NUMBERVALUE(RIGHT(I66,4))=Bidragsforskning!$D$31,RIGHT(I66,4)&Bidragsforskning!$E$31,RIGHT(I66,4)&"12") ->  | H66: =SUM(Bidragsforskning!Q$120:Q121) -> 0 | I66: =IF(OR(Bidragsforskning!$D$30="",Bidragsforskning!$E$30=""),"",IF(Bidragsforskning!$D$33="","","Budget "&Bidragsforskning!$D$33&" "&Bidragsforskning!H$40+4)) -> 

Sheet INDI FO 2025 (hidden)
A1: Forskning/Forskarutbildning 2025 | K1: Obs kostnadsunderlag är hämtad från INDI budgeten
A2: Inst | B2: Namn | C2: =A2&" - "&B2 -> Inst - Namn | D2: Institution | E2: Fakultet | F2: Universitet | G2: Summa | M2: Kostnadsunderlag (summa kostnadsunderlag FO) | N2: Universitetsgemensam | O2: Univgem andel av total | P2: Insitutionsgemensam | Q2: Summa | R2: Andel av total | S2: Uni
A3: C1 | B3: MTC | C3: =A3&" - "&B3 -> C1 - MTC | D3: 0.08 | F3: 0.145 | G3: =SUM(D3:F3) -> 0.225 | K3: C1 | L3: MTC | M3: 220800 | N3: =M3*F3 -> 32016 | O3: =N3/$N$27 -> 0.05368222031 | P3: =D3*M3 -> 17664 | Q3: =SUM(N3:O3) -> 32016.05368 | R3: =Q3/$S$27 -> 0.05368231032 | S3: =M3*T3 -> 32016 | T3: =N3/M3 -> 0.145
A4: C2 | B4: MBB | C4: C2 - MBB | D4: 0.0594 | F4: 0.145 | G4: 0.2044 | K4: C2 | L4: MBB | M4: 290000 | N4: =M4*F4 -> 42050 | O4: 0.07050653936 | P4: 17226 | Q4: 42050.07051 | R4: =Q4/$S$27 -> 0.07050665758 | S4: =M4*T4 -> 42050 | T4: 0.145
A5: C3 | B5: FyFa | C5: C3 - FyFa | D5: 0.08 | F5: 0.145 | G5: 0.225 | K5: C3 | L5: FyFa | M5: 144500 | N5: =M5*F5 -> 20952.5 | O5: 0.03513170668 | P5: 11560 | Q5: 20952.53513 | R5: 0.03513176559 | S5: 20952.5 | T5: 0.145
A6: C4 | B6: Neuro | C6: C4 - Neuro | D6: 0.075 | F6: 0.145 | G6: 0.22 | K6: C4 | L6: Neuro | M6: 151400 | N6: 21953 | O6: 0.03680927607 | P6: 11355 | Q6: 21953.03681 | R6: 0.03680933779 | S6: 21953 | T6: 0.145
A7: C5 | B7: CMB | C7: C5 - CMB | D7: 0.07 | F7: 0.145 | G7: 0.215 | K7: C5 | L7: CMB | M7: 172200 | N7: 24969 | O7: 0.04186629682 | P7: 12054 | Q7: 24969.04187 | R7: 0.04186636702 | S7: 24969 | T7: 0.145
A8: C6 | B8: IMM | C8: C6 - IMM | D8: 0.076 | F8: 0.145 | G8: 0.221 | K8: C6 | L8: IMM | M8: 191000 | N8: 27695 | O8: 0.04643706558 | P8: 14516 | Q8: 27695.04644 | R8: 0.04643714344 | S8: 27695 | T8: 0.145
A9: C7 | B9: LIME | C9: C7 - LIME | D9: 0.135 | F9: 0.145 | G9: 0.28 | K9: C7 | L9: LIME | M9: 51100 | N9: 7409.5 | O9: 0.01242373849 | P9: 6898.5 | Q9: 7409.512424 | R9: 0.01242375932 | S9: 7409.5 | T9: 0.145
A10: C8 | B10: MEB | C10: C8 - MEB | D10: 0.117 | F10: 0.145 | G10: 0.262 | K10: C8 | L10: MEB | M10: 219800 | N10: 31871 | O10: 0.05343909432 | P10: 25716.6 | Q10: 31871.05344 | R10: 0.05343918392 | S10: 31871 | T10: 0.145
A11: CC | B11: KM | C11: CC - KM | D11: 0.095 | F11: 0.145 | G11: 0.24 | K11: CC | L11: KM | M11: 91610 | N11: 13283.45 | O11: 0.02227277266 | P11: 8702.95 | Q11: 13283.47227 | R11: 0.02227281 | S11: 13283.45 | T11: 0.145
A12: D1 | B12: KIDS | C12: D1 - KIDS | D12: 0.09 | F12: 0.145 | G12: 0.235 | K12: D1 | L12: KIDS | M12: 41567.30461 | N12: 6027.259168 | O12: 0.01010609241 | P12: 3741.057415 | Q12: 6027.269275 | R12: 0.01010610935 | S12: 6027.259168 | T12: 0.145
A13: H1 | B13: NVS | C13: H1 - NVS | D13: 0.095 | F13: 0.145 | G13: 0.24 | K13: H1 | L13: NVS | M13: 234100 | N13: 33944.5 | O13: 0.05691579608 | P13: 22239.5 | Q13: 33944.55692 | R13: 0.05691589152 | S13: 33944.5 | T13: 0.145
A14: H5 | B14: LABMED | C14: H5 - LABMED | D14: 0.0728 | F14: 0.145 | G14: 0.2178 | K14: H5 | L14: LABMED | M14: 143044 | N14: 20741.38 | O14: 0.03477771523 | P14: 10413.6032 | Q14: 20741.41478 | R14: 0.03477777354 | S14: 20741.38 | T14: 0.145
A15: H7 | B15: MedH | C15: H7 - MedH | D15: 0.0719 | F15: 0.145 | G15: 0.2169 | K15: H7 | L15: MedH | M15: 488280 | N15: 70800.6 | O15: 0.1187135622 | P15: 35107.332 | Q15: 70800.71871 | R15: 0.1187137613 | S15: 70800.6 | T15: 0.145
A16: H9 | B16: CLINTEC | C16: H9 - CLINTEC | D16: 0.074 | F16: 0.145 | G16: 0.219 | K16: H9 | L16: CLINTEC | M16: 120500 | N16: 17472.5 | O16: 0.02929668273 | P16: 8917 | Q16: 17472.5293 | R16: 0.02929673186 | S16: 17472.5 | T16: 0.145
A17: K1 | B17: MMK | C17: K1 - MMK | D17: 0.09 | F17: 0.145 | G17: 0.235 | K17: K1 | L17: MMK | M17: 184300 | N17: 26723.5 | O17: 0.04480812139 | P17: 16587 | Q17: 26723.54481 | R17: 0.04480819653 | S17: 26723.5 | T17: 0.145
A18: K2 | B18: MedS | C18: K2 - MedS | D18: 0.097 | F18: 0.145 | G18: 0.242 | K18: K2 | L18: MedS | M18: 358400 | N18: 51968 | O18: 0.08713635761 | P18: 34764.8 | Q18: 51968.08714 | R18: 0.08713650371 | S18: 51968 | T18: 0.145
A19: K6 | B19: KBH | C19: K6 - KBH | D19: 0.075 | F19: 0.145 | G19: 0.22 | K19: K6 | L19: KBH | M19: 196400 | N19: 28478 | O19: 0.04774994597 | P19: 14730 | Q19: 28478.04775 | R19: 0.04775002603 | S19: 28478 | T19: 0.145
A20: K7 | B20: OnkPat | C20: K7 - OnkPat | D20: 0.07 | F20: 0.145 | G20: 0.215 | K20: K7 | L20: OnkPat | M20: 267188.8068 | N20: 38742.37698 | O20: 0.06496054525 | P20: 18703.21647 | Q20: 38742.44194 | R20: 0.06496065417 | S20: 38742.37698 | T20: 0.145
A21: K8 | B21: CNS | C21: K8 - CNS | D21: 0.07 | F21: 0.145 | G21: 0.215 | K21: K8 | L21: CNS | M21: 340000 | N21: 49300 | O21: 0.08266283925 | P21: 23800 | Q21: 49300.08266 | R21: 0.08266297785 | S21: 49300 | T21: 0.145
A22: K9 | B22: GPH | C22: K9 - GPH | D22: 0.109 | F22: 0.145 | G22: 0.254 | K22: K9 | L22: GPH | M22: 103200 | N22: 14964 | O22: 0.02509060297 | P22: 11248.8 | Q22: 14964.02509 | R22: 0.02509064504 | S22: 14964 | T22: 0.145
A23: OF | B23: DENTMED | C23: OF - DENTMED | D23: 0.149 | F23: 0.145 | G23: 0.294 | K23: OF | L23: DENTMED | M23: 31566 | N23: 4577.07 | O23: 0.007674515246 | P23: 4703.334 | Q23: 4577.077675 | R23: 0.007674528115 | S23: 4577.07 | T23: 0.145
A24: OV | B24: Universitetstandvården | C24: OV - Universitetstandvården | D24: 0.1555 | F24: 0.0562 | G24: 0.2117 | K24: OV | L24: Universitetstandvården | M24: 34607.90886 | N24: =M24*F24 -> 1944.964478 | O24: 0.003261182272 | P24: 5381.529828 | Q24: 1944.967739 | R24: =Q24/$S$27 -> 0.00326118774 | S24: 1944.964478 | T24: 0.0562 | U24: egen procent på OV
A25: S1 | B25: SÖS | C25: S1 - SÖS | D25: 0.105 | F25: 0.145 | G25: 0.25 | K25: S1 | L25: SÖS | M25: 49672 | N25: 7202.44 | O25: 0.01207655456 | P25: 5215.56 | Q25: 7202.452077 | R25: 0.01207657481 | S25: 7202.44 | T25: 0.145
A26: TL | B26: Undervisning och lärande | C26: TL - Undervisning och lärande | D26: 0.075 | F26: 0.145 | G26: 0.22 | K26: TL | L26: Undervisning och lärande | M26: 9052 | N26: 1312.54 | O26: 0.002200776532 | P26: 678.9 | Q26: 1312.542201 | R26: 0.002200780222 | S26: 1312.54 | T26: 0.145
A27: UF | B27: Externt | C27: UF - Externt | G27: 0.39 | M27: =SUM(M3:M26) -> 4134288.02 | N27: =SUM(N3:N26) -> 596398.5806 | S27: =SUM(N27:P27) -> 596398.5806
A28: UF | B28: Internt | C28: UF - Internt | G28: 0.16
A34: All INDI budget - UF saknas | L34: Arbetsgivaransvar | P34: Beräkning för att få fördelningen på respektive nivå för inst
L35: Hämtad från slutliga INDI budget | P35: Forskningsrelaterade projekt | Q35: Grp1 | R35: HuvudGrp | S35: HuvudGrpEng
A36: Konto | B36: Inst | C36: Proj | D36: Fin | E36: Anl | F36: Mpt | G36: Verks | H36: Text | I36: Per | J36: Budget (DC) | L36: Inst | M36: Arbetsgivaransvar i KSEK | N36: Arbetsgivaransvar i SEK | P36: 81008002 | Q36: Ledning | R36: Ledning | S36: Management | T36: =SUMIFS($J$37:$J$1375,$A$37:$A$1375,"39498",$C$37:$C$1375,LEFT(Bidragsforskning!$D$28,2)&'INDI FO 2025'!$P36)+SUMIF($L$37:$L$61,LEFT(Bidragsforskning!$D$28,2),'INDI FO 2025'!$N$37:$N$61) -> 0 | U36: Egen kalkylering på denna rad med arbetsgivaransvar
A37: 40 | B37: C1 | C37: C181008001 | J37: 157424.685 | L37: C1 | M37: 2350 | N37: =M37*-1000 -> -2350000 | P37: 81008012 | Q37: Ledning/Biomedicum FFU | R37: Ledning | S37: Management | T37: =SUMIFS($J$37:$J$1375,$A$37:$A$1375,"39498",$C$37:$C$1375,LEFT(Bidragsforskning!$D$28,2)&'INDI FO 2025'!$P37) -> 0
A38: 49 | B38: C1 | C38: C181008001 | J38: 57000 | L38: C2 | M38: 3320 | N38: =M38*-1000 -> -3320000 | P38: 82008002 | Q38: Utb eller forskningsadmin | R38: Utbildning-forskning | S38: Education-research | T38: =SUMIFS($J$37:$J$1375,$A$37:$A$1375,"39498",$C$37:$C$1375,LEFT(Bidragsforskning!$D$28,2)&'INDI FO 2025'!$P38) -> 0
A39: 50 | B39: C1 | C39: C181008001 | J39: 60000 | L39: C3 | M39: 94 | N39: -94000 | P39: 82008012 | Q39: FFU Administration Biomedicum | R39: Utbildning-forskning | S39: Education-research | T39: =SUMIFS($J$37:$J$1375,$A$37:$A$1375,"39498",$C$37:$C$1375,LEFT(Bidragsforskning!$D$28,2)&'INDI FO 2025'!$P39) -> 0
A40: 57 | B40: C1 | C40: C181008001 | J40: 30000 | L40: C4 | M40: 1996 | N40: -1996000 | P40: 83008002 | Q40: Ekonomi-personal | R40: Ekonomi-personal | S40: Finances-staff | T40: =SUMIFS($J$37:$J$1375,$A$37:$A$1375,"39498",$C$37:$C$1375,LEFT(Bidragsforskning!$D$28,2)&'INDI FO 2025'!$P40) -> 0
A41: 69 | B41: C1 | C41: C181008001 | J41: 0 | L41: C5 | M41: 2246.75 | N41: -2246750 | P41: 83008012 | Q41: Ekonomi/Personal Biomedicum FFU | R41: Ekonomi-personal | S41: Finances-staff | T41: =SUMIFS($J$37:$J$1375,$A$37:$A$1375,"39498",$C$37:$C$1375,LEFT(Bidragsforskning!$D$28,2)&'INDI FO 2025'!$P41) -> 0
A42: 39498 | B42: C1 | C42: C181008001 | J42: -304424.685 | L42: C6 | M42: 780 | N42: -780000 | P42: 84008002 | Q42: Infrastruktur | R42: Infrastruktur-service | S42: Infrastructure-service | T42: =SUMIFS($J$37:$J$1375,$A$37:$A$1375,"39498",$C$37:$C$1375,LEFT(Bidragsforskning!$D$28,2)&'INDI FO 2025'!$P42) -> 0
A43: 40 | B43: C1 | C43: C181008002 | J43: 4244834.025 | L43: C7 | M43: 156.6884 | N43: -156688.4 | P43: 84008012 | Q43: Infrastruktur/Biomedicum GU | R43: Infrastruktur-service | S43: Infrastructure-service | T43: =SUMIFS($J$37:$J$1375,$A$37:$A$1375,"39498",$C$37:$C$1375,LEFT(Bidragsforskning!$D$28,2)&'INDI FO 2025'!$P43) -> 0
A44: 49 | B44: C1 | C44: C181008002 | J44: 500000 | L44: C8 | M44: 0 | N44: 0 | R44: Bibliotek | S44: Library | T44: =SUMIFS($J$37:$J$1375,$A$37:$A$1375,"39498",$C$37:$C$1375,LEFT(Bidragsforskning!$D$28,2)&'INDI FO 2025'!$P44) -> 0
A45: 50 | B45: C1 | C45: C181008002 | J45: 310000 | L45: CC | M45: 0 | N45: 0 | R45: Nivåspecifikt mm | S45: Level specific, etc. | T45: =SUMIFS($J$37:$J$1375,$A$37:$A$1375,"39498",$C$37:$C$1375,LEFT(Bidragsforskning!$D$28,2)&'INDI FO 2025'!$P45) -> 0
A46: 57 | B46: C1 | C46: C181008002 | J46: 1600000 | L46: CD | M46: 0 | N46: 0
A47: 69 | B47: C1 | C47: C181008002 | J47: 0 | L47: D1 | M47: 0 | N47: 0
A48: 39498 | B48: C1 | C48: C181008002 | J48: -6654834.025 | L48: H1 | M48: 1120 | N48: -1120000
A49: 40 | B49: C1 | C49: C181008011 | J49: 0 | L49: H5 | M49: 0 | N49: 0
A50: 49 | B50: C1 | C50: C181008011 | J50: 0 | L50: H7 | M50: 4000 | N50: -4000000
A51: 50 | B51: C1 | C51: C181008011 | J51: 0 | L51: H9 | M51: 0 | N51: 0
A52: 57 | B52: C1 | C52: C181008011 | J52: 0 | L52: K1 | M52: 1200 | N52: -1200000
A53: 69 | B53: C1 | C53: C181008011 | J53: 0 | L53: K2 | M53: 3584 | N53: -3584000
A54: 39498 | B54: C1 | C54: C181008011 | J54: 0 | L54: K6 | M54: 0 | N54: 0
A55: 40 | B55: C1 | C55: C181008012 | J55: 0 | L55: K7 | M55: 1602.981103 | N55: -1602981.103
A56: 49 | B56: C1 | C56: C181008012 | J56: 0 | L56: K8 | M56: 3225 | N56: -3225000
A57: 50 | B57: C1 | C57: C181008012 | J57: 0 | L57: K9 | M57: 182 | N57: -182000
A58: 57 | B58: C1 | C58: C181008012 | J58: 0 | L58: OF | M58: 0 | N58: 0
A59: 69 | B59: C1 | C59: C181008012 | J59: 0 | L59: OV | M59: 0 | N59: 0
A60: 39498 | B60: C1 | C60: C181008012 | J60: 0 | L60: S1 | M60: 220 | N60: -220000
A61: 40 | B61: C1 | C61: C182008001 | J61: 244402.5 | L61: TL | M61: 0 | N61: 0
A62: 49 | B62: C1 | C62: C182008001 | J62: 3000
A63: 50 | B63: C1 | C63: C182008001 | J63: 53000
A64: 57 | B64: C1 | C64: C182008001 | J64: 5000
A65: 69 | B65: C1 | C65: C182008001 | J65: 0
A66: 39498 | B66: C1 | C66: C182008001 | J66: -305402.5
A67: 40 | B67: C1 | C67: C182008002 | J67: 1012233
A68: 49 | B68: C1 | C68: C182008002 | J68: 10000
A69: 50 | B69: C1 | C69: C182008002 | J69: 150000
A70: 57 | B70: C1 | C70: C182008002 | J70: 5000
A71: 69 | B71: C1 | C71: C182008002 | J71: 0
A72: 39498 | B72: C1 | C72: C182008002 | J72: -1177233
A73: 40 | B73: C1 | C73: C182008012 | J73: 0
A74: 49 | B74: C1 | C74: C182008012 | J74: 0
A75: 50 | B75: C1 | C75: C182008012 | J75: 0
A76: 57 | B76: C1 | C76: C182008012 | J76: 0
A77: 69 | B77: C1 | C77: C182008012 | J77: 0
A78: 39498 | B78: C1 | C78: C182008012 | J78: 0
A79: 40 | B79: C1 | C79: C183008001 | J79: 223268.4
A80: 49 | B80: C1 | C80: C183008001 | J80: 10000
A81: 50 | B81: C1 | C81: C183008001 | J81: 11000
A82: 57 | B82: C1 | C82: C183008001 | J82: 30000
A83: 69 | B83: C1 | C83: C183008001 | J83: 0
A84: 39498 | B84: C1 | C84: C183008001 | J84: -274268.4
A85: 40 | B85: C1 | C85: C183008002 | J85: 6146675.4
A86: 49 | B86: C1 | C86: C183008002 | J86: 110000
A87: 50 | B87: C1 | C87: C183008002 | J87: 221000
A88: 57 | B88: C1 | C88: C183008002 | J88: 1000000
A89: 69 | B89: C1 | C89: C183008002 | J89: 0
A90: 39498 | B90: C1 | C90: C183008002 | J90: -7477675.4
A91: 40 | B91: C1 | C91: C183008011 | J91: 0
A92: 49 | B92: C1 | C92: C183008011 | J92: 0
A93: 50 | B93: C1 | C93: C183008011 | J93: 0
A94: 57 | B94: C1 | C94: C183008011 | J94: 0
A95: 69 | B95: C1 | C95: C183008011 | J95: 0
A96: 39498 | B96: C1 | C96: C183008011 | J96: 0
A97: 40 | B97: C1 | C97: C183008012 | J97: 0
A98: 49 | B98: C1 | C98: C183008012 | J98: 0
A99: 50 | B99: C1 | C99: C183008012 | J99: 0
A100: 57 | B100: C1 | C100: C183008012 | J100: 0
A101: 69 | B101: C1 | C101: C183008012 | J101: 0
A102: 39498 | B102: C1 | C102: C183008012 | J102: 0
A103: 40 | B103: C1 | C103: C184008001 | J103: 0
A104: 49 | B104: C1 | C104: C184008001 | J104: 0
A105: 50 | B105: C1 | C105: C184008001 | J105: 0
A106: 57 | B106: C1 | C106: C184008001 | J106: 0
A107: 69 | B107: C1 | C107: C184008001 | J107: 0
A108: 39498 | B108: C1 | C108: C184008001 | J108: 0
A109: 40 | B109: C1 | C109: C184008002 | J109: 0
A110: 49 | B110: C1 | C110: C184008002 | J110: 0
A111: 50 | B111: C1 | C111: C184008002 | J111: 0
A112: 57 | B112: C1 | C112: C184008002 | J112: 0
A113: 69 | B113: C1 | C113: C184008002 | J113: 0
A114: 39498 | B114: C1 | C114: C184008002 | J114: 0
A115: 40 | B115: C1 | C115: C184008011 | J115: 0
A116: 49 | B116: C1 | C116: C184008011 | J116: 0
A117: 50 | B117: C1 | C117: C184008011 | J117: 0
A118: 57 | B118: C1 | C118: C184008011 | J118: 0
A119: 69 | B119: C1 | C119: C184008011 | J119: 0
A120: 39498 | B120: C1 | C120: C184008011 | J120: 0
A121: 40 | B121: C1 | C121: C184008012 | J121: 0
A122: 49 | B122: C1 | C122: C184008012 | J122: 0
A123: 50 | B123: C1 | C123: C184008012 | J123: 0
A124: 57 | B124: C1 | C124: C184008012 | J124: 0
A125: 69 | B125: C1 | C125: C184008012 | J125: 0
A126: 39498 | B126: C1 | C126: C184008012 | J126: 0
A127: 40 | B127: C2 | C127: C281008001 | J127: 221580
A128: 49 | B128: C2 | C128: C281008001 | J128: 3000
A129: 50 | B129: C2 | C129: C281008001 | J129: 1000
A130: 57 | B130: C2 | C130: C281008001 | J130: 0
A131: 69 | B131: C2 | C131: C281008001 | J131: 0
A132: 39498 | B132: C2 | C132: C281008001 | J132: -225580
A133: 40 | B133: C2 | C133: C281008002 | J133: 3992920
A134: 49 | B134: C2 | C134: C281008002 | J134: 158000
A135: 50 | B135: C2 | C135: C281008002 | J135: 0
A136: 57 | B136: C2 | C136: C281008002 | J136: 930000
A137: 69 | B137: C2 | C137: C281008002 | J137: 0
A138: 39498 | B138: C2 | C138: C281008002 | J138: -5080920
A139: 40 | B139: C2 | C139: C282008001 | J139: 317750
A140: 49 | B140: C2 | C140: C282008001 | J140: 0
A141: 50 | B141: C2 | C141: C282008001 | J141: 0
A142: 57 | B142: C2 | C142: C282008001 | J142: 0
A143: 69 | B143: C2 | C143: C282008001 | J143: 0
A144: 39498 | B144: C2 | C144: C282008001 | J144: -317750
A145: 40 | B145: C2 | C145: C282008002 | J145: 165600
A146: 49 | B146: C2 | C146: C282008002 | J146: 0
A147: 50 | B147: C2 | C147: C282008002 | J147: 0
A148: 57 | B148: C2 | C148: C282008002 | J148: 0
A149: 69 | B149: C2 | C149: C282008002 | J149: 0
A150: 39498 | B150: C2 | C150: C282008002 | J150: -165600
A151: 40 | B151: C2 | C151: C283008001 | J151: 209220
A152: 49 | B152: C2 | C152: C283008001 | J152: 4000
A153: 50 | B153: C2 | C153: C283008001 | J153: 24000
A154: 57 | B154: C2 | C154: C283008001 | J154: 28000
A155: 69 | B155: C2 | C155: C283008001 | J155: 0
A156: 39498 | B156: C2 | C156: C283008001 | J156: -265220
A157: 40 | B157: C2 | C157: C283008002 | J157: 6455280
A158: 49 | B158: C2 | C158: C283008002 | J158: 68000
A159: 50 | B159: C2 | C159: C283008002 | J159: 570000
A160: 57 | B160: C2 | C160: C283008002 | J160: 783000
A161: 69 | B161: C2 | C161: C283008002 | J161: 0
A162: 39498 | B162: C2 | C162: C283008002 | J162: -7876280
A163: 40 | B163: C2 | C163: C284008001 | J163: 15100
A164: 49 | B164: C2 | C164: C284008001 | J164: 0
A165: 50 | B165: C2 | C165: C284008001 | J165: 0
A166: 57 | B166: C2 | C166: C284008001 | J166: 14000
A167: 69 | B167: C2 | C167: C284008001 | J167: 0
A168: 39498 | B168: C2 | C168: C284008001 | J168: -29100
A169: 40 | B169: C2 | C169: C284008002 | J169: 238700
A170: 49 | B170: C2 | C170: C284008002 | J170: 2000
A171: 50 | B171: C2 | C171: C284008002 | J171: 0
A172: 57 | B172: C2 | C172: C284008002 | J172: 360000
A173: 69 | B173: C2 | C173: C284008002 | J173: 0
A174: 39498 | B174: C2 | C174: C284008002 | J174: -600700
A175: 40 | B175: C2 | C175: C284008011 | J175: 0
A176: 49 | B176: C2 | C176: C284008011 | J176: 0
A177: 50 | B177: C2 | C177: C284008011 | J177: 0
A178: 57 | B178: C2 | C178: C284008011 | J178: 0
A179: 69 | B179: C2 | C179: C284008011 | J179: 0
A180: 39498 | B180: C2 | C180: C284008011 | J180: 0
A181: 40 | B181: C2 | C181: C284008012 | J181: 0
A182: 49 | B182: C2 | C182: C284008012 | J182: 50000
A183: 50 | B183: C2 | C183: C284008012 | J183: 0
A184: 57 | B184: C2 | C184: C284008012 | J184: 40000
A185: 69 | B185: C2 | C185: C284008012 | J185: 100000
A186: 39498 | B186: C2 | C186: C284008012 | J186: -190000
A187: 40 | B187: C3 | C187: C381008001 | J187: 660330.225
A188: 49 | B188: C3 | C188: C381008001 | J188: 70000
A189: 50 | B189: C3 | C189: C381008001 | J189: 38220
A190: 57 | B190: C3 | C190: C381008001 | J190: 20000
A191: 69 | B191: C3 | C191: C381008001 | J191: 0
A192: 39498 | B192: C3 | C192: C381008001 | J192: -788550.225
A193: 40 | B193: C3 | C193: C381008002 | J193: 3508052.745
A194: 49 | B194: C3 | C194: C381008002 | J194: 225000
A195: 50 | B195: C3 | C195: C381008002 | J195: 152880
A196: 57 | B196: C3 | C196: C381008002 | J196: 250000
A197: 69 | B197: C3 | C197: C381008002 | J197: 0
A198: 39498 | B198: C3 | C198: C381008002 | J198: -4135932.745
A199: 40 | B199: C3 | C199: C382008001 | J199: 1123176.744
A200: 49 | B200: C3 | C200: C382008001 | J200: 5000
A201: 50 | B201: C3 | C201: C382008001 | J201: 281400
A202: 57 | B202: C3 | C202: C382008001 | J202: 12000
A203: 69 | B203: C3 | C203: C382008001 | J203: 0
A204: 39498 | B204: C3 | C204: C382008001 | J204: -1421576.744
A205: 40 | B205: C3 | C205: C382008002 | J205: 1372469.508
... 1110 more rows
